OrganisationNameLabel,OrganisationURI,EffectiveDate,Directorate/ServiceWhereExpenditureIncurred,ServiceCategoryLabel,ServiceCategoryURI,Supplier,SupplierRegisteredCompany Number,PaymentDate,TransactionNumber,NetAmount,IrrecoverableVAT,PurposeOfSpend,ProcurementClassification:ProclassLabel,ProcrementClassification:ProClassCode
South Lakeland District Council,http://opendatacommunities.org/id/district-council/south-lakeland,30/06/2015,Development Implementation,Cultural Environmental Regulatory & Planning Services,http://opendatacommunities.org/def/concept/finance/sercop/objective/104,WiFi Spark Ltd,,29/06/2015,46144,12986.42,0,Kendal Town Centre Wi-fi Project,Environmental Services,180000
South Lakeland District Council,http://opendatacommunities.org/id/district-council/south-lakeland,30/06/2015,Business Support Community Services,Internal Trading Accounts,,AINSWORTH'S GARAGE,,08/06/2015,48728,212.5,0,Recover SL006,Vehicle Management,380000
South Lakeland District Council,http://opendatacommunities.org/id/district-council/south-lakeland,30/06/2015,Social Enterprise Admin,Central Services,http://opendatacommunities.org/def/concept/finance/sercop/objective/102,CUMBRIA WASTE RECYCLING LTD,3162439,22/06/2015,49011,158.12,0,Wheelie bins Town hall Queen Street,Environmental Services,180000
South Lakeland District Council,http://opendatacommunities.org/id/district-council/south-lakeland,30/06/2015,Business Support Community Services,Cultural Environmental Regulatory & Planning Services,http://opendatacommunities.org/def/concept/finance/sercop/objective/104,UNITED UTILITIES WATER PLC,2366678,10/06/2015,49033,2389.65,0,Private Water Analysis - May 2015,Environmental Services,180000
South Lakeland District Council,http://opendatacommunities.org/id/district-council/south-lakeland,30/06/2015,Democratic Services,Central Services,http://opendatacommunities.org/def/concept/finance/sercop/objective/102,LOCAL GOVERNMENT ASSOCIATION,,08/06/2015,49035,990,0,Attendance at LGA conference 2015 - L,Education,170000
South Lakeland District Council,http://opendatacommunities.org/id/district-council/south-lakeland,30/06/2015,Democratic Services,Central Services,http://opendatacommunities.org/def/concept/finance/sercop/objective/102,LOCAL GOVERNMENT ASSOCIATION,,08/06/2015,49035,495,0,Attendance at LGA conference 2015 - L,Education,170000
South Lakeland District Council,http://opendatacommunities.org/id/district-council/south-lakeland,30/06/2015,Human Resources,Central Services,http://opendatacommunities.org/def/concept/finance/sercop/objective/102,SOUTH LAKES HOUSING,IP031419,22/06/2015,49050,360,0,Room hire for IOSH Managing Safely,Education,170000
South Lakeland District Council,http://opendatacommunities.org/id/district-council/south-lakeland,30/06/2015,Coronation Hall,External Trading Accounts,,YPO,,03/06/2015,49172,18.84,0,Springdawn pine disinfectant 4x5ltr code,Cleaning & Janitorial,130000
South Lakeland District Council,http://opendatacommunities.org/id/district-council/south-lakeland,30/06/2015,Coronation Hall,Cultural Environmental Regulatory & Planning Services,http://opendatacommunities.org/def/concept/finance/sercop/objective/104,YPO,,03/06/2015,49172,255.03,0,Springdawn pine disinfectant 4x5ltr code,Cleaning & Janitorial,130000
South Lakeland District Council,http://opendatacommunities.org/id/district-council/south-lakeland,30/06/2015,Human Resources,Central Services,http://opendatacommunities.org/def/concept/finance/sercop/objective/102,CHARTERED INST OF ENVIRONMNTL HLTH,,01/06/2015,49228,750,0,Advert for the Licensing Officer,Human Resources,260000
South Lakeland District Council,http://opendatacommunities.org/id/district-council/south-lakeland,30/06/2015,Business Support Community Services,Central Services,http://opendatacommunities.org/def/concept/finance/sercop/objective/102,STRAIGHT MANUFACTURING PLC,,15/06/2015,49301,17463.6,0,Per quotation 0000001818,Vehicle Management,380000
South Lakeland District Council,http://opendatacommunities.org/id/district-council/south-lakeland,30/06/2015,Business Support Community Services,Internal Trading Accounts,,BRIAN ARMISTEAD LTD T/A SINKFALL RECYCLI,4133280,15/06/2015,49316,1204.8,0,Green waste tipping - 2015/16,Environmental Services,180000
South Lakeland District Council,http://opendatacommunities.org/id/district-council/south-lakeland,30/06/2015,Business Support Community Services,Internal Trading Accounts,,RIBBLESDALE AUTO ELECTRICS 1992 LTD,2732686,22/06/2015,49332,55,0,Batteries,Vehicle Management,380000
South Lakeland District Council,http://opendatacommunities.org/id/district-council/south-lakeland,30/06/2015,Business Support Community Services,Internal Trading Accounts,,RIBBLESDALE AUTO ELECTRICS 1992 LTD,2732686,22/06/2015,49333,160,0,Batteries,Vehicle Management,380000
South Lakeland District Council,http://opendatacommunities.org/id/district-council/south-lakeland,30/06/2015,Social Enterprise Admin,Central Services,http://opendatacommunities.org/def/concept/finance/sercop/objective/102,CUMBRIA COUNTY COUNCIL,,03/06/2015,49377,640,0,LAND CHARGE SEARCH ENQUIRIES COMMONS,Financial Services,200000
South Lakeland District Council,http://opendatacommunities.org/id/district-council/south-lakeland,30/06/2015,Coronation Hall,Central Services,http://opendatacommunities.org/def/concept/finance/sercop/objective/102,OLTEC GROUP CLEANING & JANITORIAL SUPPLI,,10/06/2015,49383,79.68,0,Cleaning Ulverston Town Hall wc 30/3/15,Consultancy,150000
South Lakeland District Council,http://opendatacommunities.org/id/district-council/south-lakeland,30/06/2015,Coronation Hall,Central Services,http://opendatacommunities.org/def/concept/finance/sercop/objective/102,OLTEC GROUP CLEANING & JANITORIAL SUPPLI,,10/06/2015,49384,79.68,0,Cleaning Ulverston Town Hall wc 30/3/15,Consultancy,150000
South Lakeland District Council,http://opendatacommunities.org/id/district-council/south-lakeland,30/06/2015,Coronation Hall,Central Services,http://opendatacommunities.org/def/concept/finance/sercop/objective/102,OLTEC GROUP CLEANING & JANITORIAL SUPPLI,,10/06/2015,49385,99.6,0,Cleaning Ulverston Town Hall wc 30/3/15,Consultancy,150000
South Lakeland District Council,http://opendatacommunities.org/id/district-council/south-lakeland,30/06/2015,Coronation Hall,Central Services,http://opendatacommunities.org/def/concept/finance/sercop/objective/102,OLTEC GROUP CLEANING & JANITORIAL SUPPLI,,10/06/2015,49386,99.6,0,Cleaning Ulverston Town Hall wc 30/3/15,Consultancy,150000
South Lakeland District Council,http://opendatacommunities.org/id/district-council/south-lakeland,30/06/2015,Coronation Hall,Central Services,http://opendatacommunities.org/def/concept/finance/sercop/objective/102,OLTEC GROUP CLEANING & JANITORIAL SUPPLI,,17/06/2015,49387,1215.12,0,Cleaning Ulverston Town Hall wc 30/3/15,Consultancy,150000
South Lakeland District Council,http://opendatacommunities.org/id/district-council/south-lakeland,30/06/2015,Business Support Community Services,Internal Trading Accounts,,TAYLOR ENGINEERING & FABRICATIONS LTD,4989359,22/06/2015,49399,189.49,0,Coils,Vehicle Management,380000
South Lakeland District Council,http://opendatacommunities.org/id/district-council/south-lakeland,30/06/2015,Social Enterprise Admin,Cultural Environmental Regulatory & Planning Services,http://opendatacommunities.org/def/concept/finance/sercop/objective/104,NPS NORTH WEST LTD,6614601,03/06/2015,49472,2750,0,KIKRBY MOOR WIND FARM LANDSCAPE,Consultancy,150000
South Lakeland District Council,http://opendatacommunities.org/id/district-council/south-lakeland,30/06/2015,Social Enterprise Admin,Central Services,http://opendatacommunities.org/def/concept/finance/sercop/objective/102,Masterstaff Limited,2777593,22/06/2015,49535,76,0,Agency cleaning staff,Consultancy,150000
South Lakeland District Council,http://opendatacommunities.org/id/district-council/south-lakeland,30/06/2015,Social Enterprise Admin,Central Services,http://opendatacommunities.org/def/concept/finance/sercop/objective/102,Masterstaff Limited,2777593,22/06/2015,49536,76,0,Agency cleaning staff,Consultancy,150000
South Lakeland District Council,http://opendatacommunities.org/id/district-council/south-lakeland,30/06/2015,Social Enterprise Admin,Highways & Transport Services,http://opendatacommunities.org/def/concept/finance/sercop/objective/107,CUMBRIA WASTE RECYCLING LTD,3162439,01/06/2015,49562,47.48,0,Westmorland Multi-Storey 660ltr wheelie,Environmental Services,180000
South Lakeland District Council,http://opendatacommunities.org/id/district-council/south-lakeland,30/06/2015,Social Enterprise Admin,Central Services,http://opendatacommunities.org/def/concept/finance/sercop/objective/102,CUMBRIA WASTE RECYCLING LTD,3162439,22/06/2015,49566,138.32,0,Wheelie bins Town hall Queen Street,Environmental Services,180000
South Lakeland District Council,http://opendatacommunities.org/id/district-council/south-lakeland,30/06/2015,Social Enterprise Admin,Central Services,http://opendatacommunities.org/def/concept/finance/sercop/objective/102,CUMBRIA WASTE RECYCLING LTD,3162439,01/06/2015,49568,270.48,0,SLH wheelie bin and skip emptying,Environmental Services,180000
South Lakeland District Council,http://opendatacommunities.org/id/district-council/south-lakeland,30/06/2015,Social Enterprise Admin,Central Services,http://opendatacommunities.org/def/concept/finance/sercop/objective/102,CUMBRIA WASTE RECYCLING LTD,3162439,01/06/2015,49576,35.75,0,Langstane House 360ltr wheelie bin,Environmental Services,180000
South Lakeland District Council,http://opendatacommunities.org/id/district-council/south-lakeland,30/06/2015,Business Support Community Services,Internal Trading Accounts,,Preston Trade Parts Specialists,,01/06/2015,49596,31.33,0,Lamp,Vehicle Management,380000
South Lakeland District Council,http://opendatacommunities.org/id/district-council/south-lakeland,30/06/2015,Revenues and Benefits,Central Services,http://opendatacommunities.org/def/concept/finance/sercop/objective/102,TAMESIDE METROPOLITAN BOROUGH,,08/06/2015,49604,255.9,0,2014-15  NAFN credit and other,Financial Services,200000
South Lakeland District Council,http://opendatacommunities.org/id/district-council/south-lakeland,30/06/2015,Human Resources,Central Services,http://opendatacommunities.org/def/concept/finance/sercop/objective/102,EMPLOYMENT PAGES LTD,7363099,01/06/2015,49649,489.6,0,Benefits Officer advert,Human Resources,260000
South Lakeland District Council,http://opendatacommunities.org/id/district-council/south-lakeland,30/06/2015,Social Enterprise Admin,Cultural Environmental Regulatory & Planning Services,http://opendatacommunities.org/def/concept/finance/sercop/objective/104,NPS NORTH WEST LTD,6614601,08/06/2015,49667,320,0,"VIABILITY ASSESSMENT MARTINDALES YARD,",Consultancy,150000
South Lakeland District Council,http://opendatacommunities.org/id/district-council/south-lakeland,30/06/2015,Social Enterprise Admin,Highways & Transport Services,http://opendatacommunities.org/def/concept/finance/sercop/objective/107,BEMROSE BOOTH PARAGON LTD,4891375,01/06/2015,49682,1128.75,0,"187,500 Aura self-adhesive pay and",Stationery,340000
South Lakeland District Council,http://opendatacommunities.org/id/district-council/south-lakeland,30/06/2015,ICT Group,Central Services,http://opendatacommunities.org/def/concept/finance/sercop/objective/102,DAISY COMMUNICATIONS LTD,4145329,10/06/2015,49684,499.32,0,"Daisy Line Rental Charges (Service),",Information Communication Technology,270000
South Lakeland District Council,http://opendatacommunities.org/id/district-council/south-lakeland,30/06/2015,ICT Group,Central Services,http://opendatacommunities.org/def/concept/finance/sercop/objective/102,DAISY COMMUNICATIONS LTD,4145329,10/06/2015,49684,77.25,0,"Daisy Line Rental Charges (Service),",Information Communication Technology,270000
South Lakeland District Council,http://opendatacommunities.org/id/district-council/south-lakeland,30/06/2015,Business Support Community Services,Cultural Environmental Regulatory & Planning Services,http://opendatacommunities.org/def/concept/finance/sercop/objective/104,North Country Leisure,3683103,03/06/2015,49693,98391,0,Leisure Contract 2015/16,Arts & Leisure Services,290000
South Lakeland District Council,http://opendatacommunities.org/id/district-council/south-lakeland,30/06/2015,Social Enterprise Admin,Highways & Transport Services,http://opendatacommunities.org/def/concept/finance/sercop/objective/107,BEMROSE BOOTH PARAGON LTD,4891375,08/06/2015,49703,1128.75,0,"187,500 Aura self-adhesive pay and",Stationery,340000
South Lakeland District Council,http://opendatacommunities.org/id/district-council/south-lakeland,30/06/2015,Business Support Community Services,Internal Trading Accounts,,TAYLOR ENGINEERING & FABRICATIONS LTD,4989359,22/06/2015,49705,35.47,0,Coils,Vehicle Management,380000
South Lakeland District Council,http://opendatacommunities.org/id/district-council/south-lakeland,30/06/2015,Lake Wardens,SLDC as Agent,,LAKE DISTRICT NATIONAL PARK AUTHORITY,,03/06/2015,49709,3645.88,0,Monthly Invoices for 2015/2016 for boat,Financial Services,200000
South Lakeland District Council,http://opendatacommunities.org/id/district-council/south-lakeland,30/06/2015,Social Enterprise Admin,Cultural Environmental Regulatory & Planning Services,http://opendatacommunities.org/def/concept/finance/sercop/objective/104,NEWSQUEST MEDIA GROUP LTD,3102566,08/06/2015,49710,113,0,PUBLIC NOTICES FOR PLANNING 1 APRIL - 31,Facilities & Management Services,190000
South Lakeland District Council,http://opendatacommunities.org/id/district-council/south-lakeland,30/06/2015,Development Management,Cultural Environmental Regulatory & Planning Services,http://opendatacommunities.org/def/concept/finance/sercop/objective/104,BSI,7805321,01/06/2015,49732,639,0,Certification/Management Fee for the,Financial Services,200000
South Lakeland District Council,http://opendatacommunities.org/id/district-council/south-lakeland,30/06/2015,Business Support Community Services,Internal Trading Accounts,,ALLSTAR BUSINESS SOLUTIONS LTD (NCR),2631112,01/06/2015,49744,1222.68,0,Fuel to 15/05,Utilities,370000
South Lakeland District Council,http://opendatacommunities.org/id/district-council/south-lakeland,30/06/2015,Business Support Community Services,Internal Trading Accounts,,ALLSTAR BUSINESS SOLUTIONS LTD (NCR),2631112,01/06/2015,49744,129.66,0,Fuel to 15/05,Utilities,370000
South Lakeland District Council,http://opendatacommunities.org/id/district-council/south-lakeland,30/06/2015,Business Support Community Services,Internal Trading Accounts,,ALLSTAR BUSINESS SOLUTIONS LTD (NCR),2631112,01/06/2015,49744,16369.05,0,Fuel to 15/05,Utilities,370000
South Lakeland District Council,http://opendatacommunities.org/id/district-council/south-lakeland,30/06/2015,Business Support Community Services,Internal Trading Accounts,,Tyre Force NW Ltd,4396284,17/06/2015,49763,612,0,Tyres,Vehicle Management,380000
South Lakeland District Council,http://opendatacommunities.org/id/district-council/south-lakeland,30/06/2015,Social Enterprise Admin,Cultural Environmental Regulatory & Planning Services,http://opendatacommunities.org/def/concept/finance/sercop/objective/104,Matchtech,2526418,03/06/2015,49768,1068.19,0,TO SUPPLY DEVELOPMENT CONTROL TEAM,Consultancy,150000
South Lakeland District Council,http://opendatacommunities.org/id/district-council/south-lakeland,30/06/2015,Social Enterprise Admin,Culture and Related Serv,http://opendatacommunities.org/def/concept/finance/sercop/objective/104,Walcon Marine Ltd,1143519,29/06/2015,49769,107029.99,0,Ferry Nab Marina Development,Financial Services,200000
South Lakeland District Council,http://opendatacommunities.org/id/district-council/south-lakeland,30/06/2015,Electoral Services,Central Services,http://opendatacommunities.org/def/concept/finance/sercop/objective/102,NEWSQUEST MEDIA GROUP LTD,3102566,08/06/2015,49775,385,0,Advert in Westmorland Gazette 19 March,Facilities & Management Services,190000
South Lakeland District Council,http://opendatacommunities.org/id/district-council/south-lakeland,30/06/2015,Electoral Services,Central Services,http://opendatacommunities.org/def/concept/finance/sercop/objective/102,NEWSQUEST MEDIA GROUP LTD,3102566,08/06/2015,49776,245,0,Advert Westmorland Gazette 2 April,Facilities & Management Services,190000
South Lakeland District Council,http://opendatacommunities.org/id/district-council/south-lakeland,30/06/2015,Policy & Partnerships,Cultural Environmental Regulatory & Planning Services,http://opendatacommunities.org/def/concept/finance/sercop/objective/104,Sedbergh People's Gym,,01/06/2015,49795,9464,0,Locally Important Projects Funding 2015,Financial Services,200000
South Lakeland District Council,http://opendatacommunities.org/id/district-council/south-lakeland,30/06/2015,Revenues and Benefits,Central Services,http://opendatacommunities.org/def/concept/finance/sercop/objective/102,NORTHGATE VEHICLE HIRE LTD,1434157,01/06/2015,49797,14.4,0,Car for 19.05.15,Street & Traffic Management,350000
South Lakeland District Council,http://opendatacommunities.org/id/district-council/south-lakeland,30/06/2015,Printing Section,Central Services,http://opendatacommunities.org/def/concept/finance/sercop/objective/102,STANDING STONE DRAWING OFFICE SUPPLIES,5128817,15/06/2015,49798,339.28,0,10 Rolls of A0 90gsm 110m plotter paper,Stationery,340000
South Lakeland District Council,http://opendatacommunities.org/id/district-council/south-lakeland,30/06/2015,Customer Services,Central Services,http://opendatacommunities.org/def/concept/finance/sercop/objective/102,SHRED-IT,4047194,08/06/2015,49799,150,0,Removal of confidential waste,Stationery,340000
South Lakeland District Council,http://opendatacommunities.org/id/district-council/south-lakeland,30/06/2015,Business Support Community Services,Highways & Transport Services,http://opendatacommunities.org/def/concept/finance/sercop/objective/107,CUMBRIA COUNTY COUNCIL,,01/06/2015,49805,21930.82,0,Night scouting (estimate),,
South Lakeland District Council,http://opendatacommunities.org/id/district-council/south-lakeland,30/06/2015,Policy & Partnerships,Cultural Environmental Regulatory & Planning Services,http://opendatacommunities.org/def/concept/finance/sercop/objective/104,BARBON VILLAGE HALL,,22/06/2015,49824,15,0,19 May - Barbon Village Hall,Arts & Leisure Services,290000
South Lakeland District Council,http://opendatacommunities.org/id/district-council/south-lakeland,30/06/2015,Electoral Services,Central Services,http://opendatacommunities.org/def/concept/finance/sercop/objective/102,P & W CONFIDENTIAL BUSINESS SERVICES LTD,,08/06/2015,49830,127.46,0,Removal and secure storage and disposal,Stationery,340000
South Lakeland District Council,http://opendatacommunities.org/id/district-council/south-lakeland,30/06/2015,Electoral Services,Central Services,http://opendatacommunities.org/def/concept/finance/sercop/objective/102,P & W CONFIDENTIAL BUSINESS SERVICES LTD,,08/06/2015,49830,258.79,0,Removal and secure storage and disposal,Stationery,340000
South Lakeland District Council,http://opendatacommunities.org/id/district-council/south-lakeland,30/06/2015,Business Support Community Services,Internal Trading Accounts,,LAKELAND TRUCKS LTD,2464423,03/06/2015,49837,343,0,Repair AdBlue fault,Vehicle Management,380000
South Lakeland District Council,http://opendatacommunities.org/id/district-council/south-lakeland,30/06/2015,Business Support Community Services,Internal Trading Accounts,,EK MOTOR FACTORS LTD,838524,03/06/2015,49838,69.84,0,Ball joints,Vehicle Management,380000
South Lakeland District Council,http://opendatacommunities.org/id/district-council/south-lakeland,30/06/2015,Business Support Community Services,Internal Trading Accounts,,Preston Trade Parts Specialists,,03/06/2015,49839,28.7,0,Lamp,Vehicle Management,380000
South Lakeland District Council,http://opendatacommunities.org/id/district-council/south-lakeland,30/06/2015,Business Support Community Services,Internal Trading Accounts,,DENNIS EAGLE LTD,3794455,03/06/2015,49840,51.98,0,Bearing,Vehicle Management,380000
South Lakeland District Council,http://opendatacommunities.org/id/district-council/south-lakeland,30/06/2015,Business Support Community Services,Internal Trading Accounts,,DENNIS EAGLE LTD,3794455,03/06/2015,49841,3.85,0,Bearing,Vehicle Management,380000
South Lakeland District Council,http://opendatacommunities.org/id/district-council/south-lakeland,30/06/2015,Business Support Community Services,Internal Trading Accounts,,DENNIS EAGLE LTD,3794455,03/06/2015,49841,124.56,0,Bearing,Vehicle Management,380000
South Lakeland District Council,http://opendatacommunities.org/id/district-council/south-lakeland,30/06/2015,Business Support Community Services,Internal Trading Accounts,,DENNIS EAGLE LTD,3794455,03/06/2015,49842,125.56,0,Bearing,Vehicle Management,380000
South Lakeland District Council,http://opendatacommunities.org/id/district-council/south-lakeland,30/06/2015,Business Support Community Services,Internal Trading Accounts,,DENNIS EAGLE LTD,3794455,03/06/2015,49843,51.58,0,Bearing,Vehicle Management,380000
South Lakeland District Council,http://opendatacommunities.org/id/district-council/south-lakeland,30/06/2015,Business Support Community Services,Internal Trading Accounts,,Preston Trade Parts Specialists,,03/06/2015,49845,74.42,0,Lamp,Vehicle Management,380000
South Lakeland District Council,http://opendatacommunities.org/id/district-council/south-lakeland,30/06/2015,Business Support Community Services,Internal Trading Accounts,,Preston Trade Parts Specialists,,03/06/2015,49846,31.33,0,Lamp,Vehicle Management,380000
South Lakeland District Council,http://opendatacommunities.org/id/district-council/south-lakeland,30/06/2015,Business Support Community Services,Internal Trading Accounts,,Preston Trade Parts Specialists,,03/06/2015,49847,24.68,0,Lamp,Vehicle Management,380000
South Lakeland District Council,http://opendatacommunities.org/id/district-council/south-lakeland,30/06/2015,Coronation Hall,External Trading Accounts,,Morson International,,10/06/2015,49848,119.28,0,Ulverston Market Hall cleaner to y/e 31,Consultancy,150000
South Lakeland District Council,http://opendatacommunities.org/id/district-council/south-lakeland,30/06/2015,Business Support Community Services,Internal Trading Accounts,,Preston Trade Parts Specialists,,03/06/2015,49849,23.67,0,Lamp,Vehicle Management,380000
South Lakeland District Council,http://opendatacommunities.org/id/district-council/south-lakeland,30/06/2015,Business Support Community Services,Internal Trading Accounts,,EK MOTOR FACTORS LTD,838524,03/06/2015,49850,115.19,0,Ball joints,Vehicle Management,380000
South Lakeland District Council,http://opendatacommunities.org/id/district-council/south-lakeland,30/06/2015,Development Strategy,Cultural Environmental Regulatory & Planning Services,http://opendatacommunities.org/def/concept/finance/sercop/objective/104,Matchtech,2526418,08/06/2015,49851,818.81,0, the last week of twelve,Consultancy,150000
South Lakeland District Council,http://opendatacommunities.org/id/district-council/south-lakeland,30/06/2015,Development Strategy,Cultural Environmental Regulatory & Planning Services,http://opendatacommunities.org/def/concept/finance/sercop/objective/104,Matchtech,2526418,08/06/2015,49852,459.68,0, extra hours worked at end,Consultancy,150000
South Lakeland District Council,http://opendatacommunities.org/id/district-council/south-lakeland,30/06/2015,Business Support Community Services,Internal Trading Accounts,,EK MOTOR FACTORS LTD,838524,15/06/2015,49853,-5.54,0,Ball joints,Vehicle Management,380000
South Lakeland District Council,http://opendatacommunities.org/id/district-council/south-lakeland,30/06/2015,Business Support Community Services,Housing Services,http://opendatacommunities.org/def/concept/finance/sercop/objective/108,ADECCO UK LIMITED,593232,08/06/2015,49854,153.92,0,Cleaner for Town View Fields Hostel,Consultancy,150000
South Lakeland District Council,http://opendatacommunities.org/id/district-council/south-lakeland,30/06/2015,Business Support Community Services,Internal Trading Accounts,,DENNIS EAGLE LTD,3794455,03/06/2015,49855,114.97,0,Bearing,Vehicle Management,380000
South Lakeland District Council,http://opendatacommunities.org/id/district-council/south-lakeland,30/06/2015,Business Support Community Services,Internal Trading Accounts,,DENNIS EAGLE LTD,3794455,03/06/2015,49856,71.22,0,Bearing,Vehicle Management,380000
South Lakeland District Council,http://opendatacommunities.org/id/district-council/south-lakeland,30/06/2015,Revenues and Benefits,Central Services,http://opendatacommunities.org/def/concept/finance/sercop/objective/102,VENN GROUP RECRUITMENT SOLUTIONS,,01/06/2015,49857,963.5,0,April 2015 ,Consultancy,150000
South Lakeland District Council,http://opendatacommunities.org/id/district-council/south-lakeland,30/06/2015,Business Support Community Services,Internal Trading Accounts,,EK MOTOR FACTORS LTD,838524,03/06/2015,49858,19.63,0,Ball joints,Vehicle Management,380000
South Lakeland District Council,http://opendatacommunities.org/id/district-council/south-lakeland,30/06/2015,Human Resources,Central Services,http://opendatacommunities.org/def/concept/finance/sercop/objective/102,MIDLAND SOFTWARE LTD,1852206,15/06/2015,49859,2915.12,0,Software Maintenance iTrent Rental 01,Information Communication Technology,270000
South Lakeland District Council,http://opendatacommunities.org/id/district-council/south-lakeland,30/06/2015,Business Support Community Services,Internal Trading Accounts,,Harry Park Tyres Ltd,8131208,03/06/2015,49860,12.5,0,Puncture repair,Vehicle Management,380000
South Lakeland District Council,http://opendatacommunities.org/id/district-council/south-lakeland,30/06/2015,Business Support Community Services,Internal Trading Accounts,,EK MOTOR FACTORS LTD,838524,03/06/2015,49861,107.6,0,Ball joints,Vehicle Management,380000
South Lakeland District Council,http://opendatacommunities.org/id/district-council/south-lakeland,30/06/2015,Business Support Community Services,Internal Trading Accounts,,K S INTERNATIONAL LTD,2703321,03/06/2015,49862,76,0,Pedals,Vehicle Management,380000
South Lakeland District Council,http://opendatacommunities.org/id/district-council/south-lakeland,30/06/2015,Human Resources,Central Services,http://opendatacommunities.org/def/concept/finance/sercop/objective/102,MIDLAND SOFTWARE LTD,1852206,01/06/2015,49863,154.04,0,Maintenance RTI II 01 July 15 to 30,Information Communication Technology,270000
South Lakeland District Council,http://opendatacommunities.org/id/district-council/south-lakeland,30/06/2015,Business Support Community Services,Internal Trading Accounts,,DENNIS EAGLE LTD,3794455,03/06/2015,49864,36.85,0,Bearing,Vehicle Management,380000
South Lakeland District Council,http://opendatacommunities.org/id/district-council/south-lakeland,30/06/2015,Human Resources,Central Services,http://opendatacommunities.org/def/concept/finance/sercop/objective/102,MIDLAND SOFTWARE LTD,1852206,01/06/2015,49865,450,0,LGPS Software,Information Communication Technology,270000
South Lakeland District Council,http://opendatacommunities.org/id/district-council/south-lakeland,30/06/2015,Business Support Community Services,Internal Trading Accounts,,EK MOTOR FACTORS LTD,838524,03/06/2015,49866,43.8,0,Ball joints,Vehicle Management,380000
South Lakeland District Council,http://opendatacommunities.org/id/district-council/south-lakeland,30/06/2015,Business Support Community Services,Internal Trading Accounts,,DENNIS EAGLE LTD,3794455,03/06/2015,49867,181.29,0,Bearing,Vehicle Management,380000
South Lakeland District Council,http://opendatacommunities.org/id/district-council/south-lakeland,30/06/2015,Kendal Town Hall,Central Services,http://opendatacommunities.org/def/concept/finance/sercop/objective/102,EVAC CHAIR INTERNATIONAL LTD,3593826,01/06/2015,49868,55,0,Annual service of the Evac Chairs and,Furniture & Soft Furnishings,210000
South Lakeland District Council,http://opendatacommunities.org/id/district-council/south-lakeland,30/06/2015,Kendal Town Hall,Cultural Environmental Regulatory & Planning Services,http://opendatacommunities.org/def/concept/finance/sercop/objective/104,EVAC CHAIR INTERNATIONAL LTD,3593826,01/06/2015,49868,275,0,Annual service of the Evac Chairs and,Furniture & Soft Furnishings,210000
South Lakeland District Council,http://opendatacommunities.org/id/district-council/south-lakeland,30/06/2015,Business Support Community Services,Central Services,http://opendatacommunities.org/def/concept/finance/sercop/objective/102,Occupational Health North West Ltd,6393073,03/06/2015,49869,250,0,Audiometry & HAV tests,Health & Safety,220000
South Lakeland District Council,http://opendatacommunities.org/id/district-council/south-lakeland,30/06/2015,Business Support Community Services,Internal Trading Accounts,,INNOVATIVE SAFETY SYSTEMS LTD,6875015,03/06/2015,49870,961,0,Radar unit,Vehicle Management,380000
South Lakeland District Council,http://opendatacommunities.org/id/district-council/south-lakeland,30/06/2015,Social Enterprise Admin,Cultural Environmental Regulatory & Planning Services,http://opendatacommunities.org/def/concept/finance/sercop/objective/104,PLAYDALE PLAYGROUNDS LTD,525615,03/06/2015,49872,69.2,0,M10 x 100mm Coach bolt,Sports & Playground Equipment & Maintenance,330000
South Lakeland District Council,http://opendatacommunities.org/id/district-council/south-lakeland,30/06/2015,Revenues and Benefits,Central Services,http://opendatacommunities.org/def/concept/finance/sercop/objective/102,MERITEC LTD,3224622,01/06/2015,49873,139.5,0,2015 -2016 RAB Processing Contract and,Consultancy,150000
South Lakeland District Council,http://opendatacommunities.org/id/district-council/south-lakeland,30/06/2015,Revenues and Benefits,Central Services,http://opendatacommunities.org/def/concept/finance/sercop/objective/102,ARVATO GOVERNMENT SERVICES LTD,5429280,01/06/2015,49874,250,0,Training Course,Education,170000
South Lakeland District Council,http://opendatacommunities.org/id/district-council/south-lakeland,30/06/2015,Social Enterprise Admin,Cultural Environmental Regulatory & Planning Services,http://opendatacommunities.org/def/concept/finance/sercop/objective/104,CAPITA SYMONDS LTD,3173410,03/06/2015,49875,2647.5,0,ARBORICULTURE SERVICES,Environmental Services,180000
South Lakeland District Council,http://opendatacommunities.org/id/district-council/south-lakeland,30/06/2015,Policy & Partnerships,Central Services,http://opendatacommunities.org/def/concept/finance/sercop/objective/102,FURNESS TRADITION,,03/06/2015,49876,1000,0,Arts and Events funding - one off,Consultancy,150000
South Lakeland District Council,http://opendatacommunities.org/id/district-council/south-lakeland,30/06/2015,ICT Group,Central Services,http://opendatacommunities.org/def/concept/finance/sercop/objective/102,VODAFONE LIMITED,1471587,03/06/2015,49877,130,0,Motorola MotoG handset to replace,Information Communication Technology,270000
South Lakeland District Council,http://opendatacommunities.org/id/district-council/south-lakeland,30/06/2015,Business Support Community Services,Internal Trading Accounts,,AINSWORTH'S GARAGE,,03/06/2015,49878,63,0,Puncture repair,Vehicle Management,380000
South Lakeland District Council,http://opendatacommunities.org/id/district-council/south-lakeland,30/06/2015,Social Enterprise Admin,Cultural Environmental Regulatory & Planning Services,http://opendatacommunities.org/def/concept/finance/sercop/objective/104,NEWSQUEST MEDIA GROUP LTD,3102566,08/06/2015,49879,149,0,PUBLIC NOTICES FOR PLANNING 1 APRIL - 31,Facilities & Management Services,190000
South Lakeland District Council,http://opendatacommunities.org/id/district-council/south-lakeland,30/06/2015,Business Support Community Services,Internal Trading Accounts,,AINSWORTH'S GARAGE,,03/06/2015,49880,16,0,Puncture repair,Vehicle Management,380000
South Lakeland District Council,http://opendatacommunities.org/id/district-council/south-lakeland,30/06/2015,Policy & Partnerships,SLDC as Agent,,BUSINESS AGAINST CRIME SOUTH LAKELAND,,01/06/2015,49881,15000,0,'Contribution from the Police & Crime,Financial Services,200000
South Lakeland District Council,http://opendatacommunities.org/id/district-council/south-lakeland,30/06/2015,Business Support Community Services,Internal Trading Accounts,,BRIAN ARMISTEAD LTD T/A SINKFALL RECYCLI,4133280,03/06/2015,49882,1402,0,Green waste tipping - 2015/16,Environmental Services,180000
South Lakeland District Council,http://opendatacommunities.org/id/district-council/south-lakeland,30/06/2015,Human Resources,Central Services,http://opendatacommunities.org/def/concept/finance/sercop/objective/102,NEWSQUEST MEDIA GROUP LTD,3102566,01/06/2015,49883,1200,0,Advert,Stationery,340000
South Lakeland District Council,http://opendatacommunities.org/id/district-council/south-lakeland,30/06/2015,Business Support Community Services,Internal Trading Accounts,,JOHNSTON SWEEPERS LTD,199841,08/06/2015,49884,20.96,0,Gasket,Vehicle Management,380000
South Lakeland District Council,http://opendatacommunities.org/id/district-council/south-lakeland,30/06/2015,Revenues and Benefits,Central Services,http://opendatacommunities.org/def/concept/finance/sercop/objective/102,CIPFA,2376684,01/06/2015,49885,1188,0,Benefits & Revenues Service 2015 - 16,Education,170000
South Lakeland District Council,http://opendatacommunities.org/id/district-council/south-lakeland,30/06/2015,Business Support Community Services,Central Services,http://opendatacommunities.org/def/concept/finance/sercop/objective/102,RICARDO-AEA,8229264,03/06/2015,49886,150,0,Examination fee for EMAQ proficiency,Education,170000
South Lakeland District Council,http://opendatacommunities.org/id/district-council/south-lakeland,30/06/2015,Business Support Community Services,Internal Trading Accounts,,ARCO LIMITED,133804,03/06/2015,49887,11.08,0,PPE 2015/16,Cleaning & Janitorial,130000
South Lakeland District Council,http://opendatacommunities.org/id/district-council/south-lakeland,30/06/2015,Business Support Community Services,Internal Trading Accounts,,ARCO LIMITED,133804,03/06/2015,49887,0,0,PPE 2015/16,Cleaning & Janitorial,130000
South Lakeland District Council,http://opendatacommunities.org/id/district-council/south-lakeland,30/06/2015,Policy & Partnerships,Central Services,http://opendatacommunities.org/def/concept/finance/sercop/objective/102,Community Orchard Group Sedbergh,,03/06/2015,49888,1000,0,Community organisations - one off,Consultancy,150000
South Lakeland District Council,http://opendatacommunities.org/id/district-council/south-lakeland,30/06/2015,Coronation Hall,Cultural Environmental Regulatory & Planning Services,http://opendatacommunities.org/def/concept/finance/sercop/objective/104,FURNESS PLASTICS LTD,966727,10/06/2015,49889,95,0,Banner for Kate Rusby on Sunday 27,Facilities & Management Services,190000
South Lakeland District Council,http://opendatacommunities.org/id/district-council/south-lakeland,30/06/2015,Social Enterprise Admin,Cultural Environmental Regulatory & Planning Services,http://opendatacommunities.org/def/concept/finance/sercop/objective/104,NEWSQUEST MEDIA GROUP LTD,3102566,01/06/2015,49890,149,0,PUBLIC NOTICES FOR PLANNING 1 APRIL - 31,Facilities & Management Services,190000
South Lakeland District Council,http://opendatacommunities.org/id/district-council/south-lakeland,30/06/2015,Business Support Community Services,Internal Trading Accounts,,A & W COMMERCIALS LTD,2630625,03/06/2015,49891,259.91,0,Hose,Vehicle Management,380000
South Lakeland District Council,http://opendatacommunities.org/id/district-council/south-lakeland,30/06/2015,Business Support Community Services,Internal Trading Accounts,,JOHNSTON SWEEPERS LTD,199841,03/06/2015,49892,187.74,0,Gasket,Vehicle Management,380000
South Lakeland District Council,http://opendatacommunities.org/id/district-council/south-lakeland,30/06/2015,Business Support Community Services,Central Services,http://opendatacommunities.org/def/concept/finance/sercop/objective/102,UNIVERSITY OF BIRMINGHAM,,01/06/2015,49893,1050,0,Certificate of Competence in,Education,170000
South Lakeland District Council,http://opendatacommunities.org/id/district-council/south-lakeland,30/06/2015,Policy & Partnerships,Cultural Environmental Regulatory & Planning Services,http://opendatacommunities.org/def/concept/finance/sercop/objective/104,GRANTS- MISCELLANEOUS,,01/06/2015,49894,500,0,Members Allowance to Barnes Charitable,Financial Services,200000
South Lakeland District Council,http://opendatacommunities.org/id/district-council/south-lakeland,30/06/2015,ICT Group,Highways & Transport Services,http://opendatacommunities.org/def/concept/finance/sercop/objective/107,Insight Direct (Uk) Ltd,2579852,08/06/2015,49896,125.17,0,Widescreen monitor ,Furniture & Soft Furnishings,210000
South Lakeland District Council,http://opendatacommunities.org/id/district-council/south-lakeland,30/06/2015,Business Support Community Services,Cultural Environmental Regulatory & Planning Services,http://opendatacommunities.org/def/concept/finance/sercop/objective/104,UNITED UTILITIES WATER PLC,2366678,08/06/2015,49897,1078.21,0,Private Water Analysis - April 2015,Environmental Services,180000
South Lakeland District Council,http://opendatacommunities.org/id/district-council/south-lakeland,30/06/2015,ICT Group,Central Services,http://opendatacommunities.org/def/concept/finance/sercop/objective/102,CABLE & WIRELESS UK (VODAFONE),,01/06/2015,49898,168.44,0,Call Charges 25/3/15 to 25/3/16,Information Communication Technology,270000
South Lakeland District Council,http://opendatacommunities.org/id/district-council/south-lakeland,30/06/2015,Human Resources,Central Services,http://opendatacommunities.org/def/concept/finance/sercop/objective/102,OH Acquisitions Ltd,7365943,15/06/2015,49899,961.25,0,Occupational Health Clinic 15 April 2015,Healthcare,310000
South Lakeland District Council,http://opendatacommunities.org/id/district-council/south-lakeland,30/06/2015,Business Support Community Services,Internal Trading Accounts,,EK MOTOR FACTORS LTD,838524,03/06/2015,49900,19.17,0,King pin kit,Vehicle Management,380000
South Lakeland District Council,http://opendatacommunities.org/id/district-council/south-lakeland,30/06/2015,Business Support Community Services,Internal Trading Accounts,,FLEET PARTS LTD,1252714,03/06/2015,49901,1330,0,Subscription for the Texa truck software,Information Communication Technology,270000
South Lakeland District Council,http://opendatacommunities.org/id/district-council/south-lakeland,30/06/2015,Business Support Community Services,Internal Trading Accounts,,M G D LTD,,03/06/2015,49902,35,0,MOTs 01/04/15 - 31/03/16,Vehicle Management,380000
South Lakeland District Council,http://opendatacommunities.org/id/district-council/south-lakeland,30/06/2015,Business Support Community Services,Internal Trading Accounts,,ARCO LIMITED,133804,08/06/2015,49903,2.21,0,PPE 2015/16,Clothing,140000
South Lakeland District Council,http://opendatacommunities.org/id/district-council/south-lakeland,30/06/2015,Business Support Community Services,Internal Trading Accounts,,ARCO LIMITED,133804,08/06/2015,49903,8.87,0,PPE 2015/16,Clothing,140000
South Lakeland District Council,http://opendatacommunities.org/id/district-council/south-lakeland,30/06/2015,Financial Services,Central Services,http://opendatacommunities.org/def/concept/finance/sercop/objective/102,Capita Secure Information Solutions Ltd,1593831,03/06/2015,49904,12772.92,0,Purchase Ordering software maintenance,Information Communication Technology,270000
South Lakeland District Council,http://opendatacommunities.org/id/district-council/south-lakeland,30/06/2015,Business Support Community Services,Internal Trading Accounts,,JOHNSTON SWEEPERS LTD,199841,03/06/2015,49905,35.32,0,Gasket,Vehicle Management,380000
South Lakeland District Council,http://opendatacommunities.org/id/district-council/south-lakeland,30/06/2015,Business Support Community Services,Cultural Environmental Regulatory & Planning Services,http://opendatacommunities.org/def/concept/finance/sercop/objective/104,GRANTS- MISCELLANEOUS,,01/06/2015,49906,2763,0,"Flood safety measures at Rainbow Lodge,",Arts & Leisure Services,290000
South Lakeland District Council,http://opendatacommunities.org/id/district-council/south-lakeland,30/06/2015,Business Support Community Services,Cultural Environmental Regulatory & Planning Services,http://opendatacommunities.org/def/concept/finance/sercop/objective/104,Floodsafe Projects Ltd,8418342,03/06/2015,49907,18174.75,0,Supply & install flood protection,Arts & Leisure Services,290000
South Lakeland District Council,http://opendatacommunities.org/id/district-council/south-lakeland,30/06/2015,Human Resources,Central Services,http://opendatacommunities.org/def/concept/finance/sercop/objective/102,GATENBY SANDERSON,,03/06/2015,49908,5219,0,Assistant Director recruitment,Consultancy,150000
South Lakeland District Council,http://opendatacommunities.org/id/district-council/south-lakeland,30/06/2015,Human Resources,Central Services,http://opendatacommunities.org/def/concept/finance/sercop/objective/102,GATENBY SANDERSON,,03/06/2015,49909,6237.5,0,Assistant Director recruitment,Consultancy,150000
South Lakeland District Council,http://opendatacommunities.org/id/district-council/south-lakeland,30/06/2015,Business Support Community Services,Cultural Environmental Regulatory & Planning Services,http://opendatacommunities.org/def/concept/finance/sercop/objective/104,OCS GROUP LTD T/A CANNON HYGIENE LTD,1298292,03/06/2015,49910,11.53,0,Clinical waste collections - April 2015,Environmental Services,180000
South Lakeland District Council,http://opendatacommunities.org/id/district-council/south-lakeland,30/06/2015,Business Support Community Services,Cultural Environmental Regulatory & Planning Services,http://opendatacommunities.org/def/concept/finance/sercop/objective/104,OCS GROUP LTD T/A CANNON HYGIENE LTD,1298292,03/06/2015,49911,2209.86,0,Clinical waste collections - May 2015,Environmental Services,180000
South Lakeland District Council,http://opendatacommunities.org/id/district-council/south-lakeland,30/06/2015,Business Support Community Services,Internal Trading Accounts,,GREENCHEM SOLUTIONS LTD,5175801,03/06/2015,49912,300,0,AdBlue,Vehicle Management,380000
South Lakeland District Council,http://opendatacommunities.org/id/district-council/south-lakeland,30/06/2015,Business Support Community Services,Internal Trading Accounts,,GREENCHEM SOLUTIONS LTD,5175801,03/06/2015,49912,120.25,0,AdBlue,Vehicle Management,380000
South Lakeland District Council,http://opendatacommunities.org/id/district-council/south-lakeland,30/06/2015,Business Support Community Services,Internal Trading Accounts,,GREENCHEM SOLUTIONS LTD,5175801,03/06/2015,49912,0,0,AdBlue,Vehicle Management,380000
South Lakeland District Council,http://opendatacommunities.org/id/district-council/south-lakeland,30/06/2015,Business Support Community Services,Internal Trading Accounts,,PIER 1 METALWORKS LTD,4291520,03/06/2015,49913,168,0,Pins,Vehicle Management,380000
South Lakeland District Council,http://opendatacommunities.org/id/district-council/south-lakeland,30/06/2015,Business Support Community Services,Internal Trading Accounts,,M G D LTD,,03/06/2015,49914,35,0,MOTs 01/04/15 - 31/03/16,Vehicle Management,380000
South Lakeland District Council,http://opendatacommunities.org/id/district-council/south-lakeland,30/06/2015,Human Resources,Central Services,http://opendatacommunities.org/def/concept/finance/sercop/objective/102,NORTH WEST EMPLOYERS,,03/06/2015,49915,1500,0,ILM Level 5 Coaching and Mentoring on,Education,170000
South Lakeland District Council,http://opendatacommunities.org/id/district-council/south-lakeland,30/06/2015,Human Resources,Central Services,http://opendatacommunities.org/def/concept/finance/sercop/objective/102,FORBES SOLICITORS,,03/06/2015,49916,218,0,General Legal Advise,Legal Services,280000
South Lakeland District Council,http://opendatacommunities.org/id/district-council/south-lakeland,30/06/2015,Coronation Hall,Cultural Environmental Regulatory & Planning Services,http://opendatacommunities.org/def/concept/finance/sercop/objective/104,LINNEY P A SYSTEMS LTD,9016104,03/06/2015,49918,433.76,0,Light/sound technician/equipment for,Consultancy,150000
South Lakeland District Council,http://opendatacommunities.org/id/district-council/south-lakeland,30/06/2015,Legal Services,Internal Trading Accounts,,PENNINGTONS (KENDAL) LIMITED,434649,03/06/2015,49919,2000,0,Annual charge from April 2015 to March,Environmental Services,180000
South Lakeland District Council,http://opendatacommunities.org/id/district-council/south-lakeland,30/06/2015,Business Support Community Services,Internal Trading Accounts,,COMPASS COMPONENTS,,08/06/2015,49920,342.45,0,Consumables 01/04/15 - 31/03/16,Cleaning & Janitorial,130000
South Lakeland District Council,http://opendatacommunities.org/id/district-council/south-lakeland,30/06/2015,Human Resources,Central Services,http://opendatacommunities.org/def/concept/finance/sercop/objective/102,EDEN DISTRICT COUNCIL,,08/06/2015,49923,385.4,0,Event 1 (Overtime & Holiday),Education,170000
South Lakeland District Council,http://opendatacommunities.org/id/district-council/south-lakeland,30/06/2015,Business Support Community Services,Internal Trading Accounts,,FST CONSUMABLES LTD,1342012,03/06/2015,49924,235.35,0,Consumables 01/04/15 - 31/03/16,Cleaning & Janitorial,130000
South Lakeland District Council,http://opendatacommunities.org/id/district-council/south-lakeland,30/06/2015,Business Support Community Services,Internal Trading Accounts,,HAKO MACHINES LIMITED,1414225,03/06/2015,49925,131.99,0,Hose,Vehicle Management,380000
South Lakeland District Council,http://opendatacommunities.org/id/district-council/south-lakeland,30/06/2015,Business Support Community Services,Central Services,http://opendatacommunities.org/def/concept/finance/sercop/objective/102,INNOVATIVE SAFETY SYSTEMS LTD,6875015,03/06/2015,49926,910,0,Safety systems,Vehicle Management,380000
South Lakeland District Council,http://opendatacommunities.org/id/district-council/south-lakeland,30/06/2015,Business Support Community Services,Central Services,http://opendatacommunities.org/def/concept/finance/sercop/objective/102,INNOVATIVE SAFETY SYSTEMS LTD,6875015,03/06/2015,49927,910,0,Safety systems,Vehicle Management,380000
South Lakeland District Council,http://opendatacommunities.org/id/district-council/south-lakeland,30/06/2015,Business Support Community Services,Internal Trading Accounts,,M G D LTD,,03/06/2015,49928,35,0,MOTs 01/04/15 - 31/03/16,Vehicle Management,380000
South Lakeland District Council,http://opendatacommunities.org/id/district-council/south-lakeland,30/06/2015,Business Support Community Services,Housing Services,http://opendatacommunities.org/def/concept/finance/sercop/objective/108,Robinson Property Servs & Joinery Cntrs,,03/06/2015,49929,27,0,Repair work to 18a Bleaswood Road -,Social Community Care Supplies & Services,410000
South Lakeland District Council,http://opendatacommunities.org/id/district-council/south-lakeland,30/06/2015,Environment and Housing,Housing Services,http://opendatacommunities.org/def/concept/finance/sercop/objective/108,CUMBRIA RURAL HOUSING TRUST,2920997,03/06/2015,49932,621.82,0,CLT/self-build support 2015-16,Consultancy,150000
South Lakeland District Council,http://opendatacommunities.org/id/district-council/south-lakeland,30/06/2015,Technical Team,Cultural Environmental Regulatory & Planning Services,http://opendatacommunities.org/def/concept/finance/sercop/objective/104,VICTORIA PINK,,22/06/2015,49933,40.95,0,"TRANSCRIPT - UNDERLEY HALL, KIRKBY",Consultancy,150000
South Lakeland District Council,http://opendatacommunities.org/id/district-council/south-lakeland,30/06/2015,Democratic Services,Culture and Related Serv,http://opendatacommunities.org/def/concept/finance/sercop/objective/104,GRANTS- MISCELLANEOUS,,03/06/2015,49934,200000,0,Grant contribution to the Steamboat,Financial Services,200000
South Lakeland District Council,http://opendatacommunities.org/id/district-council/south-lakeland,30/06/2015,Electoral Services,Central Services,http://opendatacommunities.org/def/concept/finance/sercop/objective/102,GATES TRAVEL SERVICE,,03/06/2015,49935,61.2,0,3 train tickets Oxenholme to Carlisle,Education,170000
South Lakeland District Council,http://opendatacommunities.org/id/district-council/south-lakeland,30/06/2015,Electoral Services,Central Services,http://opendatacommunities.org/def/concept/finance/sercop/objective/102,HALAROSE LIMITED,1362834,08/06/2015,49936,10452.66,0,EROS and associated software annual,Information Communication Technology,270000
South Lakeland District Council,http://opendatacommunities.org/id/district-council/south-lakeland,30/06/2015,Electoral Services,Central Services,http://opendatacommunities.org/def/concept/finance/sercop/objective/102,GATES TRAVEL SERVICE,,03/06/2015,49937,81.5,0,Train to Glasgow for 3 delegates,Education,170000
South Lakeland District Council,http://opendatacommunities.org/id/district-council/south-lakeland,30/06/2015,Electoral Services,Central Services,http://opendatacommunities.org/def/concept/finance/sercop/objective/102,ROYAL MAIL GROUP PLC,,03/06/2015,49938,446.16,0,Parliamentary Response Plus Postage,Mail Services,300000
South Lakeland District Council,http://opendatacommunities.org/id/district-council/south-lakeland,30/06/2015,Electoral Services,Central Services,http://opendatacommunities.org/def/concept/finance/sercop/objective/102,ROYAL MAIL GROUP PLC,,03/06/2015,49938,855.36,0,Parliamentary Response Plus Postage,Mail Services,300000
South Lakeland District Council,http://opendatacommunities.org/id/district-council/south-lakeland,30/06/2015,Electoral Services,Central Services,http://opendatacommunities.org/def/concept/finance/sercop/objective/102,THOMSON REUTERS (PROFESSIONAL) UK LTD,1679046,03/06/2015,49939,172,0,Schofields Election Law Issue 23,Stationery,340000
South Lakeland District Council,http://opendatacommunities.org/id/district-council/south-lakeland,30/06/2015,Revenues and Benefits,Central Services,http://opendatacommunities.org/def/concept/finance/sercop/objective/102,MERITEC LTD,3224622,03/06/2015,49940,139.5,0,2015 -2016 RAB Processing Contract and,Consultancy,150000
South Lakeland District Council,http://opendatacommunities.org/id/district-council/south-lakeland,30/06/2015,Development Strategy,Cultural Environmental Regulatory & Planning Services,http://opendatacommunities.org/def/concept/finance/sercop/objective/104,FURNESS NEWSPAPERS LTD,1155841,08/06/2015,49941,217.56,0,CIL Adoption notice in the North West,Facilities & Management Services,190000
South Lakeland District Council,http://opendatacommunities.org/id/district-council/south-lakeland,30/06/2015,Social Enterprise Admin,Cultural Environmental Regulatory & Planning Services,http://opendatacommunities.org/def/concept/finance/sercop/objective/104,B & J METALS (SKIP HIRE) LTD,4634318,03/06/2015,49942,680,0,Grounds waste disposal - Sandylands Road,Environmental Services,180000
South Lakeland District Council,http://opendatacommunities.org/id/district-council/south-lakeland,30/06/2015,Social Enterprise Admin,Cultural Environmental Regulatory & Planning Services,http://opendatacommunities.org/def/concept/finance/sercop/objective/104,B & J METALS (SKIP HIRE) LTD,4634318,03/06/2015,49942,1590,0,Grounds waste disposal - Sandylands Road,Environmental Services,180000
South Lakeland District Council,http://opendatacommunities.org/id/district-council/south-lakeland,30/06/2015,Development Implementation,Culture and Related Serv,http://opendatacommunities.org/def/concept/finance/sercop/objective/104,Maysand Ltd,2912226,08/06/2015,49943,30286.65,0,"Castle Dairy Works, Kendal",Financial Services,200000
South Lakeland District Council,http://opendatacommunities.org/id/district-council/south-lakeland,30/06/2015,Legal Services,Central Services,http://opendatacommunities.org/def/concept/finance/sercop/objective/102,Sellick Partnership Group Ltd,4156002,03/06/2015,49944,1134,0,Wages for w/k ending,Consultancy,150000
South Lakeland District Council,http://opendatacommunities.org/id/district-council/south-lakeland,30/06/2015,Business Support Community Services,Housing Services,http://opendatacommunities.org/def/concept/finance/sercop/objective/108,Landlord,,03/06/2015,49946,270,0,Rent in advance,Social Community Care Supplies & Services,410000
South Lakeland District Council,http://opendatacommunities.org/id/district-council/south-lakeland,30/06/2015,Business Support Community Services,Housing Services,http://opendatacommunities.org/def/concept/finance/sercop/objective/108,Landlord,,03/06/2015,49947,415,0,Monthly rent ,Social Community Care Supplies & Services,410000
South Lakeland District Council,http://opendatacommunities.org/id/district-council/south-lakeland,30/06/2015,Business Support Community Services,Housing Services,http://opendatacommunities.org/def/concept/finance/sercop/objective/108,Landlord,,03/06/2015,49948,400,0,Monthly rent ,Social Community Care Supplies & Services,410000
South Lakeland District Council,http://opendatacommunities.org/id/district-council/south-lakeland,30/06/2015,Business Support Community Services,Housing Services,http://opendatacommunities.org/def/concept/finance/sercop/objective/108,Landlord,,03/06/2015,49949,400,0,Monthly rent ,Social Community Care Supplies & Services,410000
South Lakeland District Council,http://opendatacommunities.org/id/district-council/south-lakeland,30/06/2015,Business Support Community Services,Housing Services,http://opendatacommunities.org/def/concept/finance/sercop/objective/108,Mrs V Coward & Mrs SA Dickinson,,03/06/2015,49950,600,0,Monthly rent ,Social Community Care Supplies & Services,410000
South Lakeland District Council,http://opendatacommunities.org/id/district-council/south-lakeland,30/06/2015,Environment and Housing,Housing,http://opendatacommunities.org/def/concept/finance/sercop/objective/108,ENVIRONMENT & HOUSING GRANTS,,08/06/2015,49951,2000,0,"Wideways, Church Road, Levens, Kendal,",Financial Services,200000
South Lakeland District Council,http://opendatacommunities.org/id/district-council/south-lakeland,30/06/2015,Environment and Housing,Housing,http://opendatacommunities.org/def/concept/finance/sercop/objective/108,ENVIRONMENT & HOUSING GRANTS,,08/06/2015,49952,1200,0,"Wideways, Church Road, Levens, Kendal,",Financial Services,200000
South Lakeland District Council,http://opendatacommunities.org/id/district-council/south-lakeland,30/06/2015,Lake Wardens,Cultural Environmental Regulatory & Planning Services,http://opendatacommunities.org/def/concept/finance/sercop/objective/104,AUTOPARTS (CUMBRIA) LTD,2579204,08/06/2015,49953,20.52,0,2 x Packs of Reflective Markers,Horticultural,240000
South Lakeland District Council,http://opendatacommunities.org/id/district-council/south-lakeland,30/06/2015,Lake Wardens,Cultural Environmental Regulatory & Planning Services,http://opendatacommunities.org/def/concept/finance/sercop/objective/104,VODAFONE LIMITED,1471587,08/06/2015,49954,104.72,0,Rental for Lake Wardens Emergency,Information Communication Technology,270000
South Lakeland District Council,http://opendatacommunities.org/id/district-council/south-lakeland,30/06/2015,Policy & Partnerships,Cultural Environmental Regulatory & Planning Services,http://opendatacommunities.org/def/concept/finance/sercop/objective/104,ARNSIDE/SILVERDALE AONB-LANC CITY COUNC,,15/06/2015,49955,11500,0,Community organisation funding 2015-17 -,Financial Services,200000
South Lakeland District Council,http://opendatacommunities.org/id/district-council/south-lakeland,30/06/2015,Social Enterprise Admin,Highways & Transport Services,http://opendatacommunities.org/def/concept/finance/sercop/objective/107,CUMBRIA COUNTY COUNCIL,,08/06/2015,49956,306.39,0,Maintenance of car park lighting and,Street & Traffic Management,350000
South Lakeland District Council,http://opendatacommunities.org/id/district-council/south-lakeland,30/06/2015,Social Enterprise Admin,Highways & Transport Services,http://opendatacommunities.org/def/concept/finance/sercop/objective/107,CUMBRIA COUNTY COUNCIL,,08/06/2015,49956,69.27,0,Maintenance of car park lighting and,Street & Traffic Management,350000
South Lakeland District Council,http://opendatacommunities.org/id/district-council/south-lakeland,30/06/2015,Social Enterprise Admin,Highways & Transport Services,http://opendatacommunities.org/def/concept/finance/sercop/objective/107,CUMBRIA COUNTY COUNCIL,,08/06/2015,49956,1098.81,0,Maintenance of car park lighting and,Street & Traffic Management,350000
South Lakeland District Council,http://opendatacommunities.org/id/district-council/south-lakeland,30/06/2015,Social Enterprise Admin,Highways & Transport Services,http://opendatacommunities.org/def/concept/finance/sercop/objective/107,CUMBRIA COUNTY COUNCIL,,08/06/2015,49956,69.27,0,Maintenance of car park lighting and,Street & Traffic Management,350000
South Lakeland District Council,http://opendatacommunities.org/id/district-council/south-lakeland,30/06/2015,Social Enterprise Admin,Highways & Transport Services,http://opendatacommunities.org/def/concept/finance/sercop/objective/107,CUMBRIA COUNTY COUNCIL,,08/06/2015,49956,415.62,0,Maintenance of car park lighting and,Street & Traffic Management,350000
South Lakeland District Council,http://opendatacommunities.org/id/district-council/south-lakeland,30/06/2015,Social Enterprise Admin,Highways & Transport Services,http://opendatacommunities.org/def/concept/finance/sercop/objective/107,CUMBRIA COUNTY COUNCIL,,08/06/2015,49956,120.38,0,Maintenance of car park lighting and,Street & Traffic Management,350000
South Lakeland District Council,http://opendatacommunities.org/id/district-council/south-lakeland,30/06/2015,Social Enterprise Admin,Highways & Transport Services,http://opendatacommunities.org/def/concept/finance/sercop/objective/107,CUMBRIA COUNTY COUNCIL,,08/06/2015,49956,162.47,0,Maintenance of car park lighting and,Street & Traffic Management,350000
South Lakeland District Council,http://opendatacommunities.org/id/district-council/south-lakeland,30/06/2015,Social Enterprise Admin,Highways & Transport Services,http://opendatacommunities.org/def/concept/finance/sercop/objective/107,CUMBRIA COUNTY COUNCIL,,08/06/2015,49956,162.47,0,Maintenance of car park lighting and,Street & Traffic Management,350000
South Lakeland District Council,http://opendatacommunities.org/id/district-council/south-lakeland,30/06/2015,Social Enterprise Admin,Highways & Transport Services,http://opendatacommunities.org/def/concept/finance/sercop/objective/107,CUMBRIA COUNTY COUNCIL,,08/06/2015,49956,277.08,0,Maintenance of car park lighting and,Street & Traffic Management,350000
South Lakeland District Council,http://opendatacommunities.org/id/district-council/south-lakeland,30/06/2015,Social Enterprise Admin,Highways & Transport Services,http://opendatacommunities.org/def/concept/finance/sercop/objective/107,CUMBRIA COUNTY COUNCIL,,08/06/2015,49956,277.08,0,Maintenance of car park lighting and,Street & Traffic Management,350000
South Lakeland District Council,http://opendatacommunities.org/id/district-council/south-lakeland,30/06/2015,Policy & Partnerships,Cultural Environmental Regulatory & Planning Services,http://opendatacommunities.org/def/concept/finance/sercop/objective/104,CUMBRIA CVS,8703970,08/06/2015,49959,5000,0,Community organisations funding 2015-17,Financial Services,200000
South Lakeland District Council,http://opendatacommunities.org/id/district-council/south-lakeland,30/06/2015,Business Support Community Services,Housing Services,http://opendatacommunities.org/def/concept/finance/sercop/objective/108,Robinson Property Servs & Joinery Cntrs,,08/06/2015,49960,18,0,Fitting of a new lock ,Social Community Care Supplies & Services,410000
South Lakeland District Council,http://opendatacommunities.org/id/district-council/south-lakeland,30/06/2015,Human Resources,Central Services,http://opendatacommunities.org/def/concept/finance/sercop/objective/102,EMPLOYMENT PAGES LTD,7363099,08/06/2015,49961,397.8,0,Parking Assistants advert,Human Resources,260000
South Lakeland District Council,http://opendatacommunities.org/id/district-council/south-lakeland,30/06/2015,Business Support Community Services,Internal Trading Accounts,,JOHNSTON SWEEPERS LTD,199841,08/06/2015,49962,175.66,0,Stock,Vehicle Management,380000
South Lakeland District Council,http://opendatacommunities.org/id/district-council/south-lakeland,30/06/2015,Human Resources,Non-Service Payments,,CYCLESCHEME LTD,5363678,08/06/2015,49964,818.66,0,I27046461280 ,Financial Services,200000
South Lakeland District Council,http://opendatacommunities.org/id/district-council/south-lakeland,30/06/2015,Business Support Community Services,SLDC as Agent,,DISCLOSURE AND BARRING SERVICE,,08/06/2015,49965,308,0,DBS Checks for Taxi Drivers,Legal Services,280000
South Lakeland District Council,http://opendatacommunities.org/id/district-council/south-lakeland,30/06/2015,Legal Services,Central Services,http://opendatacommunities.org/def/concept/finance/sercop/objective/102,LGG Ltd,5127694,08/06/2015,49966,215,0,Course fee for  - Committees,Education,170000
South Lakeland District Council,http://opendatacommunities.org/id/district-council/south-lakeland,30/06/2015,Business Support Community Services,Housing Services,http://opendatacommunities.org/def/concept/finance/sercop/objective/108,James Andrews Recruitment Solutions,6834852,08/06/2015,49967,762.5,0,Payment for  - Housing,Consultancy,150000
South Lakeland District Council,http://opendatacommunities.org/id/district-council/south-lakeland,30/06/2015,Business Support Community Services,Housing Services,http://opendatacommunities.org/def/concept/finance/sercop/objective/108,James Andrews Recruitment Solutions,6834852,08/06/2015,49968,806.25,0,Payment for - Housing,Consultancy,150000
South Lakeland District Council,http://opendatacommunities.org/id/district-council/south-lakeland,30/06/2015,Development Implementation,Central Services,http://opendatacommunities.org/def/concept/finance/sercop/objective/102,ADECCO UK LIMITED,593232,08/06/2015,49969,631.4,0,Economic Project Officer - ,Human Resources,260000
South Lakeland District Council,http://opendatacommunities.org/id/district-council/south-lakeland,30/06/2015,Social Enterprise Admin,Cultural Environmental Regulatory & Planning Services,http://opendatacommunities.org/def/concept/finance/sercop/objective/104,Whalan Books,,08/06/2015,49970,1294,0,600 copies of Coronation Hall Book,Stationery,340000
South Lakeland District Council,http://opendatacommunities.org/id/district-council/south-lakeland,30/06/2015,Business Support Community Services,Cultural Environmental Regulatory & Planning Services,http://opendatacommunities.org/def/concept/finance/sercop/objective/104,MILNTHORPE KENNELS & CATTERY,8932302,08/06/2015,49972,2541.67,0,Stray Dog Service 2015-16,Environmental Services,180000
South Lakeland District Council,http://opendatacommunities.org/id/district-council/south-lakeland,30/06/2015,Social Enterprise Admin,Central Services,http://opendatacommunities.org/def/concept/finance/sercop/objective/102,WOOF'S OF SEDBERGH,,08/06/2015,49973,175,0,MINI BUS SITE VISITS FOR MEMBERS RE,Vehicle Management,380000
South Lakeland District Council,http://opendatacommunities.org/id/district-council/south-lakeland,30/06/2015,Business Support Community Services,Cultural Environmental Regulatory & Planning Services,http://opendatacommunities.org/def/concept/finance/sercop/objective/104,LAKELAND SUPPLIES,,15/06/2015,49974,11.9,0,Parts,Domestic Goods,160000
South Lakeland District Council,http://opendatacommunities.org/id/district-council/south-lakeland,30/06/2015,Business Support Community Services,Internal Trading Accounts,,BRIAN ARMISTEAD LTD T/A SINKFALL RECYCLI,4133280,10/06/2015,49975,1486,0,Green waste tipping - 2015/16,Environmental Services,180000
South Lakeland District Council,http://opendatacommunities.org/id/district-council/south-lakeland,30/06/2015,Revenues and Benefits,Central Services,http://opendatacommunities.org/def/concept/finance/sercop/objective/102,SOUTH LAKES HOUSING,IP031419,08/06/2015,49976,90,0,Room Hire 30.04.15 - Zebra Training,Education,170000
South Lakeland District Council,http://opendatacommunities.org/id/district-council/south-lakeland,30/06/2015,Social Enterprise Admin,Highways & Transport Services,http://opendatacommunities.org/def/concept/finance/sercop/objective/107,METRIC GROUP LIMITED,2560839,08/06/2015,49977,990,0,Chip and Pin costs for 66 machines 1,Vehicle Management,380000
South Lakeland District Council,http://opendatacommunities.org/id/district-council/south-lakeland,30/06/2015,Financial Services,Central Services,http://opendatacommunities.org/def/concept/finance/sercop/objective/102,CUMBRIA LGPS,,10/06/2015,49978,750,0,IAS19/FRS17 Accounting Disclosures 15/16,Financial Services,200000
South Lakeland District Council,http://opendatacommunities.org/id/district-council/south-lakeland,30/06/2015,Social Enterprise Admin,Highways & Transport Services,http://opendatacommunities.org/def/concept/finance/sercop/objective/107,METRIC GROUP LIMITED,2560839,08/06/2015,49979,71.25,0,Machine maintenance contract from 1,Vehicle Management,380000
South Lakeland District Council,http://opendatacommunities.org/id/district-council/south-lakeland,30/06/2015,Social Enterprise Admin,Highways & Transport Services,http://opendatacommunities.org/def/concept/finance/sercop/objective/107,METRIC GROUP LIMITED,2560839,08/06/2015,49979,71.25,0,Machine maintenance contract from 1,Vehicle Management,380000
South Lakeland District Council,http://opendatacommunities.org/id/district-council/south-lakeland,30/06/2015,Social Enterprise Admin,Highways & Transport Services,http://opendatacommunities.org/def/concept/finance/sercop/objective/107,METRIC GROUP LIMITED,2560839,08/06/2015,49979,71.25,0,Machine maintenance contract from 1,Vehicle Management,380000
South Lakeland District Council,http://opendatacommunities.org/id/district-council/south-lakeland,30/06/2015,Social Enterprise Admin,Highways & Transport Services,http://opendatacommunities.org/def/concept/finance/sercop/objective/107,METRIC GROUP LIMITED,2560839,08/06/2015,49979,142.5,0,Machine maintenance contract from 1,Vehicle Management,380000
South Lakeland District Council,http://opendatacommunities.org/id/district-council/south-lakeland,30/06/2015,Social Enterprise Admin,Highways & Transport Services,http://opendatacommunities.org/def/concept/finance/sercop/objective/107,METRIC GROUP LIMITED,2560839,08/06/2015,49979,142.5,0,Machine maintenance contract from 1,Vehicle Management,380000
South Lakeland District Council,http://opendatacommunities.org/id/district-council/south-lakeland,30/06/2015,Social Enterprise Admin,Highways & Transport Services,http://opendatacommunities.org/def/concept/finance/sercop/objective/107,METRIC GROUP LIMITED,2560839,08/06/2015,49979,142.5,0,Machine maintenance contract from 1,Vehicle Management,380000
South Lakeland District Council,http://opendatacommunities.org/id/district-council/south-lakeland,30/06/2015,Social Enterprise Admin,Highways & Transport Services,http://opendatacommunities.org/def/concept/finance/sercop/objective/107,METRIC GROUP LIMITED,2560839,08/06/2015,49979,71.25,0,Machine maintenance contract from 1,Vehicle Management,380000
South Lakeland District Council,http://opendatacommunities.org/id/district-council/south-lakeland,30/06/2015,Social Enterprise Admin,Highways & Transport Services,http://opendatacommunities.org/def/concept/finance/sercop/objective/107,METRIC GROUP LIMITED,2560839,08/06/2015,49979,285,0,Machine maintenance contract from 1,Vehicle Management,380000
South Lakeland District Council,http://opendatacommunities.org/id/district-council/south-lakeland,30/06/2015,Social Enterprise Admin,Highways & Transport Services,http://opendatacommunities.org/def/concept/finance/sercop/objective/107,METRIC GROUP LIMITED,2560839,08/06/2015,49979,142.5,0,Machine maintenance contract from 1,Vehicle Management,380000
South Lakeland District Council,http://opendatacommunities.org/id/district-council/south-lakeland,30/06/2015,Social Enterprise Admin,Highways & Transport Services,http://opendatacommunities.org/def/concept/finance/sercop/objective/107,METRIC GROUP LIMITED,2560839,08/06/2015,49979,142.5,0,Machine maintenance contract from 1,Vehicle Management,380000
South Lakeland District Council,http://opendatacommunities.org/id/district-council/south-lakeland,30/06/2015,Social Enterprise Admin,Highways & Transport Services,http://opendatacommunities.org/def/concept/finance/sercop/objective/107,METRIC GROUP LIMITED,2560839,08/06/2015,49979,71.25,0,Machine maintenance contract from 1,Vehicle Management,380000
South Lakeland District Council,http://opendatacommunities.org/id/district-council/south-lakeland,30/06/2015,Social Enterprise Admin,Highways & Transport Services,http://opendatacommunities.org/def/concept/finance/sercop/objective/107,METRIC GROUP LIMITED,2560839,08/06/2015,49979,213.75,0,Machine maintenance contract from 1,Vehicle Management,380000
South Lakeland District Council,http://opendatacommunities.org/id/district-council/south-lakeland,30/06/2015,Social Enterprise Admin,Highways & Transport Services,http://opendatacommunities.org/def/concept/finance/sercop/objective/107,METRIC GROUP LIMITED,2560839,08/06/2015,49979,213.75,0,Machine maintenance contract from 1,Vehicle Management,380000
South Lakeland District Council,http://opendatacommunities.org/id/district-council/south-lakeland,30/06/2015,Social Enterprise Admin,Highways & Transport Services,http://opendatacommunities.org/def/concept/finance/sercop/objective/107,METRIC GROUP LIMITED,2560839,08/06/2015,49979,71.25,0,Machine maintenance contract from 1,Vehicle Management,380000
South Lakeland District Council,http://opendatacommunities.org/id/district-council/south-lakeland,30/06/2015,Social Enterprise Admin,Highways & Transport Services,http://opendatacommunities.org/def/concept/finance/sercop/objective/107,METRIC GROUP LIMITED,2560839,08/06/2015,49979,71.25,0,Machine maintenance contract from 1,Vehicle Management,380000
South Lakeland District Council,http://opendatacommunities.org/id/district-council/south-lakeland,30/06/2015,Social Enterprise Admin,Highways & Transport Services,http://opendatacommunities.org/def/concept/finance/sercop/objective/107,METRIC GROUP LIMITED,2560839,08/06/2015,49979,71.25,0,Machine maintenance contract from 1,Vehicle Management,380000
South Lakeland District Council,http://opendatacommunities.org/id/district-council/south-lakeland,30/06/2015,Social Enterprise Admin,Highways & Transport Services,http://opendatacommunities.org/def/concept/finance/sercop/objective/107,METRIC GROUP LIMITED,2560839,08/06/2015,49979,213.75,0,Machine maintenance contract from 1,Vehicle Management,380000
South Lakeland District Council,http://opendatacommunities.org/id/district-council/south-lakeland,30/06/2015,Social Enterprise Admin,Highways & Transport Services,http://opendatacommunities.org/def/concept/finance/sercop/objective/107,METRIC GROUP LIMITED,2560839,08/06/2015,49979,71.25,0,Machine maintenance contract from 1,Vehicle Management,380000
South Lakeland District Council,http://opendatacommunities.org/id/district-council/south-lakeland,30/06/2015,Social Enterprise Admin,Highways & Transport Services,http://opendatacommunities.org/def/concept/finance/sercop/objective/107,METRIC GROUP LIMITED,2560839,08/06/2015,49979,213.75,0,Machine maintenance contract from 1,Vehicle Management,380000
South Lakeland District Council,http://opendatacommunities.org/id/district-council/south-lakeland,30/06/2015,Social Enterprise Admin,Highways & Transport Services,http://opendatacommunities.org/def/concept/finance/sercop/objective/107,METRIC GROUP LIMITED,2560839,08/06/2015,49979,71.25,0,Machine maintenance contract from 1,Vehicle Management,380000
South Lakeland District Council,http://opendatacommunities.org/id/district-council/south-lakeland,30/06/2015,Social Enterprise Admin,Highways & Transport Services,http://opendatacommunities.org/def/concept/finance/sercop/objective/107,METRIC GROUP LIMITED,2560839,08/06/2015,49979,71.25,0,Machine maintenance contract from 1,Vehicle Management,380000
South Lakeland District Council,http://opendatacommunities.org/id/district-council/south-lakeland,30/06/2015,Social Enterprise Admin,Highways & Transport Services,http://opendatacommunities.org/def/concept/finance/sercop/objective/107,METRIC GROUP LIMITED,2560839,08/06/2015,49979,142.5,0,Machine maintenance contract from 1,Vehicle Management,380000
South Lakeland District Council,http://opendatacommunities.org/id/district-council/south-lakeland,30/06/2015,Social Enterprise Admin,Highways & Transport Services,http://opendatacommunities.org/def/concept/finance/sercop/objective/107,METRIC GROUP LIMITED,2560839,08/06/2015,49979,71.25,0,Machine maintenance contract from 1,Vehicle Management,380000
South Lakeland District Council,http://opendatacommunities.org/id/district-council/south-lakeland,30/06/2015,Social Enterprise Admin,Highways & Transport Services,http://opendatacommunities.org/def/concept/finance/sercop/objective/107,METRIC GROUP LIMITED,2560839,08/06/2015,49979,71.25,0,Machine maintenance contract from 1,Vehicle Management,380000
South Lakeland District Council,http://opendatacommunities.org/id/district-council/south-lakeland,30/06/2015,Social Enterprise Admin,Highways & Transport Services,http://opendatacommunities.org/def/concept/finance/sercop/objective/107,METRIC GROUP LIMITED,2560839,08/06/2015,49979,71.25,0,Machine maintenance contract from 1,Vehicle Management,380000
South Lakeland District Council,http://opendatacommunities.org/id/district-council/south-lakeland,30/06/2015,Social Enterprise Admin,Highways & Transport Services,http://opendatacommunities.org/def/concept/finance/sercop/objective/107,METRIC GROUP LIMITED,2560839,08/06/2015,49979,142.5,0,Machine maintenance contract from 1,Vehicle Management,380000
South Lakeland District Council,http://opendatacommunities.org/id/district-council/south-lakeland,30/06/2015,Social Enterprise Admin,Highways & Transport Services,http://opendatacommunities.org/def/concept/finance/sercop/objective/107,METRIC GROUP LIMITED,2560839,08/06/2015,49979,142.5,0,Machine maintenance contract from 1,Vehicle Management,380000
South Lakeland District Council,http://opendatacommunities.org/id/district-council/south-lakeland,30/06/2015,Social Enterprise Admin,Highways & Transport Services,http://opendatacommunities.org/def/concept/finance/sercop/objective/107,METRIC GROUP LIMITED,2560839,08/06/2015,49979,71.25,0,Machine maintenance contract from 1,Vehicle Management,380000
South Lakeland District Council,http://opendatacommunities.org/id/district-council/south-lakeland,30/06/2015,Social Enterprise Admin,Highways & Transport Services,http://opendatacommunities.org/def/concept/finance/sercop/objective/107,METRIC GROUP LIMITED,2560839,08/06/2015,49979,71.25,0,Machine maintenance contract from 1,Vehicle Management,380000
South Lakeland District Council,http://opendatacommunities.org/id/district-council/south-lakeland,30/06/2015,Social Enterprise Admin,Highways & Transport Services,http://opendatacommunities.org/def/concept/finance/sercop/objective/107,METRIC GROUP LIMITED,2560839,08/06/2015,49979,71.25,0,Machine maintenance contract from 1,Vehicle Management,380000
South Lakeland District Council,http://opendatacommunities.org/id/district-council/south-lakeland,30/06/2015,Social Enterprise Admin,Highways & Transport Services,http://opendatacommunities.org/def/concept/finance/sercop/objective/107,METRIC GROUP LIMITED,2560839,08/06/2015,49979,356.25,0,Machine maintenance contract from 1,Vehicle Management,380000
South Lakeland District Council,http://opendatacommunities.org/id/district-council/south-lakeland,30/06/2015,Social Enterprise Admin,Highways & Transport Services,http://opendatacommunities.org/def/concept/finance/sercop/objective/107,METRIC GROUP LIMITED,2560839,08/06/2015,49979,71.25,0,Machine maintenance contract from 1,Vehicle Management,380000
South Lakeland District Council,http://opendatacommunities.org/id/district-council/south-lakeland,30/06/2015,Social Enterprise Admin,Highways & Transport Services,http://opendatacommunities.org/def/concept/finance/sercop/objective/107,METRIC GROUP LIMITED,2560839,08/06/2015,49979,71.25,0,Machine maintenance contract from 1,Vehicle Management,380000
South Lakeland District Council,http://opendatacommunities.org/id/district-council/south-lakeland,30/06/2015,Social Enterprise Admin,Highways & Transport Services,http://opendatacommunities.org/def/concept/finance/sercop/objective/107,METRIC GROUP LIMITED,2560839,08/06/2015,49979,142.5,0,Machine maintenance contract from 1,Vehicle Management,380000
South Lakeland District Council,http://opendatacommunities.org/id/district-council/south-lakeland,30/06/2015,Social Enterprise Admin,Highways & Transport Services,http://opendatacommunities.org/def/concept/finance/sercop/objective/107,METRIC GROUP LIMITED,2560839,08/06/2015,49979,142.5,0,Machine maintenance contract from 1,Vehicle Management,380000
South Lakeland District Council,http://opendatacommunities.org/id/district-council/south-lakeland,30/06/2015,Social Enterprise Admin,Highways & Transport Services,http://opendatacommunities.org/def/concept/finance/sercop/objective/107,METRIC GROUP LIMITED,2560839,08/06/2015,49979,142.5,0,Machine maintenance contract from 1,Vehicle Management,380000
South Lakeland District Council,http://opendatacommunities.org/id/district-council/south-lakeland,30/06/2015,Social Enterprise Admin,Highways & Transport Services,http://opendatacommunities.org/def/concept/finance/sercop/objective/107,METRIC GROUP LIMITED,2560839,08/06/2015,49979,356.25,0,Machine maintenance contract from 1,Vehicle Management,380000
South Lakeland District Council,http://opendatacommunities.org/id/district-council/south-lakeland,30/06/2015,Social Enterprise Admin,Highways & Transport Services,http://opendatacommunities.org/def/concept/finance/sercop/objective/107,METRIC GROUP LIMITED,2560839,08/06/2015,49979,71.25,0,Machine maintenance contract from 1,Vehicle Management,380000
South Lakeland District Council,http://opendatacommunities.org/id/district-council/south-lakeland,30/06/2015,Social Enterprise Admin,Highways & Transport Services,http://opendatacommunities.org/def/concept/finance/sercop/objective/107,METRIC GROUP LIMITED,2560839,08/06/2015,49979,71.25,0,Machine maintenance contract from 1,Vehicle Management,380000
South Lakeland District Council,http://opendatacommunities.org/id/district-council/south-lakeland,30/06/2015,Policy & Partnerships,Cultural Environmental Regulatory & Planning Services,http://opendatacommunities.org/def/concept/finance/sercop/objective/104,Age Concern Ulverston & District,,08/06/2015,49980,1500,0,Community Organisations funding -,Financial Services,200000
South Lakeland District Council,http://opendatacommunities.org/id/district-council/south-lakeland,30/06/2015,Business Support Community Services,Internal Trading Accounts,,ARCO LIMITED,133804,08/06/2015,49981,55.21,0,PPE 2015/16,Clothing,140000
South Lakeland District Council,http://opendatacommunities.org/id/district-council/south-lakeland,30/06/2015,Business Support Community Services,Internal Trading Accounts,,ARCO LIMITED,133804,08/06/2015,49981,221.28,0,PPE 2015/16,Clothing,140000
South Lakeland District Council,http://opendatacommunities.org/id/district-council/south-lakeland,30/06/2015,Social Enterprise Admin,Cultural Environmental Regulatory & Planning Services,http://opendatacommunities.org/def/concept/finance/sercop/objective/104,Matchtech,2526418,08/06/2015,50132,1068.19,0,TO SUPPLY DEVELOPMENT CONTROL TEAM,Consultancy,150000
South Lakeland District Council,http://opendatacommunities.org/id/district-council/south-lakeland,30/06/2015,Environment and Housing,Housing,http://opendatacommunities.org/def/concept/finance/sercop/objective/108,ENVIRONMENT & HOUSING GRANTS,,08/06/2015,50134,14766.64,0,"Highgate, Kendal. LA9",Financial Services,200000
South Lakeland District Council,http://opendatacommunities.org/id/district-council/south-lakeland,30/06/2015,Customer Services,Central Services,http://opendatacommunities.org/def/concept/finance/sercop/objective/102,SHRED-IT,4047194,10/06/2015,50137,190.35,0,Removal of confidential waste from South,Stationery,340000
South Lakeland District Council,http://opendatacommunities.org/id/district-council/south-lakeland,30/06/2015,Business Support Community Services,Internal Trading Accounts,,INNOVATIVE SAFETY SYSTEMS LTD,6875015,08/06/2015,50139,142,0,Camera,Vehicle Management,380000
South Lakeland District Council,http://opendatacommunities.org/id/district-council/south-lakeland,30/06/2015,Business Support Community Services,Internal Trading Accounts,,FAUN ZOELLER (UK) LTD,751804,08/06/2015,50140,56.45,0,Lever,Vehicle Management,380000
South Lakeland District Council,http://opendatacommunities.org/id/district-council/south-lakeland,30/06/2015,Business Support Community Services,Internal Trading Accounts,,FAUN ZOELLER (UK) LTD,751804,08/06/2015,50141,667.67,0,Pin,Vehicle Management,380000
South Lakeland District Council,http://opendatacommunities.org/id/district-council/south-lakeland,30/06/2015,Business Support Community Services,Internal Trading Accounts,,STAGECOACH NORTHWEST,,08/06/2015,50142,50,0,Steam cleaning 01/04/15 - 31/03/16,Vehicle Management,380000
South Lakeland District Council,http://opendatacommunities.org/id/district-council/south-lakeland,30/06/2015,Business Support Community Services,Internal Trading Accounts,,SITA UK LTD,2291198,10/06/2015,50143,28031.94,0,"Tipping & disposal charges, recyclables",Environmental Services,180000
South Lakeland District Council,http://opendatacommunities.org/id/district-council/south-lakeland,30/06/2015,Business Support Community Services,Environment Regulatory,,Great Green Systems Ltd,6632263,08/06/2015,50144,13378.2,0,Replaces order 24352.,Vehicle Management,380000
South Lakeland District Council,http://opendatacommunities.org/id/district-council/south-lakeland,30/06/2015,Business Support Community Services,Internal Trading Accounts,,M G D LTD,,08/06/2015,50145,35,0,MOTs 01/04/15 - 31/03/16,Vehicle Management,380000
South Lakeland District Council,http://opendatacommunities.org/id/district-council/south-lakeland,30/06/2015,Business Support Community Services,Internal Trading Accounts,,Harry Park Tyres Ltd,8131208,08/06/2015,50146,119.9,0,Puncture repair,Vehicle Management,380000
South Lakeland District Council,http://opendatacommunities.org/id/district-council/south-lakeland,30/06/2015,Policy & Partnerships,Cultural Environmental Regulatory & Planning Services,http://opendatacommunities.org/def/concept/finance/sercop/objective/104,LEVENS PARISH COUNCIL,,08/06/2015,50147,1600,0,LIPS funding - Levens Parish Counil -,Financial Services,200000
South Lakeland District Council,http://opendatacommunities.org/id/district-council/south-lakeland,30/06/2015,Revenues and Benefits,Central Services,http://opendatacommunities.org/def/concept/finance/sercop/objective/102,ROYAL MAIL GROUP PLC,,08/06/2015,50148,70.81,0,2015-2016 Postal Charges a/c 0055114000,Mail Services,300000
South Lakeland District Council,http://opendatacommunities.org/id/district-council/south-lakeland,30/06/2015,Social Enterprise Admin,Highways & Transport Services,http://opendatacommunities.org/def/concept/finance/sercop/objective/107,METRIC GROUP LIMITED,2560839,10/06/2015,50149,693,0,Web hosting and web tariff editor for 66,Vehicle Management,380000
South Lakeland District Council,http://opendatacommunities.org/id/district-council/south-lakeland,30/06/2015,Social Enterprise Admin,Cultural Environmental Regulatory & Planning Services,http://opendatacommunities.org/def/concept/finance/sercop/objective/104,NPS Leeds Ltd,,29/06/2015,50150,1000,0,To provide additionalinput on the review,Consultancy,150000
South Lakeland District Council,http://opendatacommunities.org/id/district-council/south-lakeland,30/06/2015,Social Enterprise Admin,Cultural Environmental Regulatory & Planning Services,http://opendatacommunities.org/def/concept/finance/sercop/objective/104,CONTINENTAL LANDSCAPES LTD,2108452,29/06/2015,50151,3614.62,0,Gravedigging  for April 2015 -March 2106,Cemetery & Crematorium,120000
South Lakeland District Council,http://opendatacommunities.org/id/district-council/south-lakeland,30/06/2015,Social Enterprise Admin,Highways & Transport Services,http://opendatacommunities.org/def/concept/finance/sercop/objective/107,CONTINENTAL LANDSCAPES LTD,2108452,15/06/2015,50152,12,0,Ground maitemance contract 2015 - 2016,Horticultural,240000
South Lakeland District Council,http://opendatacommunities.org/id/district-council/south-lakeland,30/06/2015,Social Enterprise Admin,Highways & Transport Services,http://opendatacommunities.org/def/concept/finance/sercop/objective/107,CONTINENTAL LANDSCAPES LTD,2108452,15/06/2015,50152,12,0,Ground maitemance contract 2015 - 2016,Horticultural,240000
South Lakeland District Council,http://opendatacommunities.org/id/district-council/south-lakeland,30/06/2015,Social Enterprise Admin,Highways & Transport Services,http://opendatacommunities.org/def/concept/finance/sercop/objective/107,CONTINENTAL LANDSCAPES LTD,2108452,15/06/2015,50152,1.2,0,Ground maitemance contract 2015 - 2016,Horticultural,240000
South Lakeland District Council,http://opendatacommunities.org/id/district-council/south-lakeland,30/06/2015,Social Enterprise Admin,Highways & Transport Services,http://opendatacommunities.org/def/concept/finance/sercop/objective/107,CONTINENTAL LANDSCAPES LTD,2108452,15/06/2015,50152,12,0,Ground maitemance contract 2015 - 2016,Horticultural,240000
South Lakeland District Council,http://opendatacommunities.org/id/district-council/south-lakeland,30/06/2015,Social Enterprise Admin,Highways & Transport Services,http://opendatacommunities.org/def/concept/finance/sercop/objective/107,CONTINENTAL LANDSCAPES LTD,2108452,15/06/2015,50152,12,0,Ground maitemance contract 2015 - 2016,Horticultural,240000
South Lakeland District Council,http://opendatacommunities.org/id/district-council/south-lakeland,30/06/2015,Social Enterprise Admin,Highways & Transport Services,http://opendatacommunities.org/def/concept/finance/sercop/objective/107,CONTINENTAL LANDSCAPES LTD,2108452,15/06/2015,50152,12,0,Ground maitemance contract 2015 - 2016,Horticultural,240000
South Lakeland District Council,http://opendatacommunities.org/id/district-council/south-lakeland,30/06/2015,Social Enterprise Admin,Highways & Transport Services,http://opendatacommunities.org/def/concept/finance/sercop/objective/107,CONTINENTAL LANDSCAPES LTD,2108452,15/06/2015,50152,35.99,0,Ground maitemance contract 2015 - 2016,Horticultural,240000
South Lakeland District Council,http://opendatacommunities.org/id/district-council/south-lakeland,30/06/2015,Social Enterprise Admin,Highways & Transport Services,http://opendatacommunities.org/def/concept/finance/sercop/objective/107,CONTINENTAL LANDSCAPES LTD,2108452,15/06/2015,50152,239.94,0,Ground maitemance contract 2015 - 2016,Horticultural,240000
South Lakeland District Council,http://opendatacommunities.org/id/district-council/south-lakeland,30/06/2015,Social Enterprise Admin,Highways & Transport Services,http://opendatacommunities.org/def/concept/finance/sercop/objective/107,CONTINENTAL LANDSCAPES LTD,2108452,15/06/2015,50152,149.96,0,Ground maitemance contract 2015 - 2016,Horticultural,240000
South Lakeland District Council,http://opendatacommunities.org/id/district-council/south-lakeland,30/06/2015,Social Enterprise Admin,Highways & Transport Services,http://opendatacommunities.org/def/concept/finance/sercop/objective/107,CONTINENTAL LANDSCAPES LTD,2108452,15/06/2015,50152,6,0,Ground maitemance contract 2015 - 2016,Horticultural,240000
South Lakeland District Council,http://opendatacommunities.org/id/district-council/south-lakeland,30/06/2015,Social Enterprise Admin,Highways & Transport Services,http://opendatacommunities.org/def/concept/finance/sercop/objective/107,CONTINENTAL LANDSCAPES LTD,2108452,15/06/2015,50152,59.98,0,Ground maitemance contract 2015 - 2016,Horticultural,240000
South Lakeland District Council,http://opendatacommunities.org/id/district-council/south-lakeland,30/06/2015,Social Enterprise Admin,Highways & Transport Services,http://opendatacommunities.org/def/concept/finance/sercop/objective/107,CONTINENTAL LANDSCAPES LTD,2108452,15/06/2015,50152,59.98,0,Ground maitemance contract 2015 - 2016,Horticultural,240000
South Lakeland District Council,http://opendatacommunities.org/id/district-council/south-lakeland,30/06/2015,Social Enterprise Admin,Highways & Transport Services,http://opendatacommunities.org/def/concept/finance/sercop/objective/107,CONTINENTAL LANDSCAPES LTD,2108452,15/06/2015,50152,119.97,0,Ground maitemance contract 2015 - 2016,Horticultural,240000
South Lakeland District Council,http://opendatacommunities.org/id/district-council/south-lakeland,30/06/2015,Social Enterprise Admin,Highways & Transport Services,http://opendatacommunities.org/def/concept/finance/sercop/objective/107,CONTINENTAL LANDSCAPES LTD,2108452,15/06/2015,50152,47.99,0,Ground maitemance contract 2015 - 2016,Horticultural,240000
South Lakeland District Council,http://opendatacommunities.org/id/district-council/south-lakeland,30/06/2015,Social Enterprise Admin,Highways & Transport Services,http://opendatacommunities.org/def/concept/finance/sercop/objective/107,CONTINENTAL LANDSCAPES LTD,2108452,15/06/2015,50152,6,0,Ground maitemance contract 2015 - 2016,Horticultural,240000
South Lakeland District Council,http://opendatacommunities.org/id/district-council/south-lakeland,30/06/2015,Social Enterprise Admin,Highways & Transport Services,http://opendatacommunities.org/def/concept/finance/sercop/objective/107,CONTINENTAL LANDSCAPES LTD,2108452,15/06/2015,50152,6,0,Ground maitemance contract 2015 - 2016,Horticultural,240000
South Lakeland District Council,http://opendatacommunities.org/id/district-council/south-lakeland,30/06/2015,Social Enterprise Admin,Highways & Transport Services,http://opendatacommunities.org/def/concept/finance/sercop/objective/107,CONTINENTAL LANDSCAPES LTD,2108452,15/06/2015,50152,3,0,Ground maitemance contract 2015 - 2016,Horticultural,240000
South Lakeland District Council,http://opendatacommunities.org/id/district-council/south-lakeland,30/06/2015,Social Enterprise Admin,Highways & Transport Services,http://opendatacommunities.org/def/concept/finance/sercop/objective/107,CONTINENTAL LANDSCAPES LTD,2108452,15/06/2015,50152,59.98,0,Ground maitemance contract 2015 - 2016,Horticultural,240000
South Lakeland District Council,http://opendatacommunities.org/id/district-council/south-lakeland,30/06/2015,Social Enterprise Admin,Highways & Transport Services,http://opendatacommunities.org/def/concept/finance/sercop/objective/107,CONTINENTAL LANDSCAPES LTD,2108452,15/06/2015,50152,53.99,0,Ground maitemance contract 2015 - 2016,Horticultural,240000
South Lakeland District Council,http://opendatacommunities.org/id/district-council/south-lakeland,30/06/2015,Social Enterprise Admin,Highways & Transport Services,http://opendatacommunities.org/def/concept/finance/sercop/objective/107,CONTINENTAL LANDSCAPES LTD,2108452,15/06/2015,50152,65.98,0,Ground maitemance contract 2015 - 2016,Horticultural,240000
South Lakeland District Council,http://opendatacommunities.org/id/district-council/south-lakeland,30/06/2015,Social Enterprise Admin,Highways & Transport Services,http://opendatacommunities.org/def/concept/finance/sercop/objective/107,CONTINENTAL LANDSCAPES LTD,2108452,15/06/2015,50152,125.97,0,Ground maitemance contract 2015 - 2016,Horticultural,240000
South Lakeland District Council,http://opendatacommunities.org/id/district-council/south-lakeland,30/06/2015,Social Enterprise Admin,Highways & Transport Services,http://opendatacommunities.org/def/concept/finance/sercop/objective/107,CONTINENTAL LANDSCAPES LTD,2108452,15/06/2015,50152,119.97,0,Ground maitemance contract 2015 - 2016,Horticultural,240000
South Lakeland District Council,http://opendatacommunities.org/id/district-council/south-lakeland,30/06/2015,Social Enterprise Admin,Highways & Transport Services,http://opendatacommunities.org/def/concept/finance/sercop/objective/107,CONTINENTAL LANDSCAPES LTD,2108452,15/06/2015,50152,12,0,Ground maitemance contract 2015 - 2016,Horticultural,240000
South Lakeland District Council,http://opendatacommunities.org/id/district-council/south-lakeland,30/06/2015,Social Enterprise Admin,Highways & Transport Services,http://opendatacommunities.org/def/concept/finance/sercop/objective/107,CONTINENTAL LANDSCAPES LTD,2108452,15/06/2015,50152,12,0,Ground maitemance contract 2015 - 2016,Horticultural,240000
South Lakeland District Council,http://opendatacommunities.org/id/district-council/south-lakeland,30/06/2015,Social Enterprise Admin,Highways & Transport Services,http://opendatacommunities.org/def/concept/finance/sercop/objective/107,CONTINENTAL LANDSCAPES LTD,2108452,15/06/2015,50152,36.05,0,Ground maitemance contract 2015 - 2016,Horticultural,240000
South Lakeland District Council,http://opendatacommunities.org/id/district-council/south-lakeland,30/06/2015,Social Enterprise Admin,Highways & Transport Services,http://opendatacommunities.org/def/concept/finance/sercop/objective/107,CONTINENTAL LANDSCAPES LTD,2108452,15/06/2015,50152,59.98,0,Ground maitemance contract 2015 - 2016,Horticultural,240000
South Lakeland District Council,http://opendatacommunities.org/id/district-council/south-lakeland,30/06/2015,Social Enterprise Admin,Highways & Transport Services,http://opendatacommunities.org/def/concept/finance/sercop/objective/107,CONTINENTAL LANDSCAPES LTD,2108452,15/06/2015,50152,106.71,0,Ground maitemance contract 2015 - 2016,Horticultural,240000
South Lakeland District Council,http://opendatacommunities.org/id/district-council/south-lakeland,30/06/2015,Social Enterprise Admin,Highways & Transport Services,http://opendatacommunities.org/def/concept/finance/sercop/objective/107,CONTINENTAL LANDSCAPES LTD,2108452,15/06/2015,50152,119.97,0,Ground maitemance contract 2015 - 2016,Horticultural,240000
South Lakeland District Council,http://opendatacommunities.org/id/district-council/south-lakeland,30/06/2015,Social Enterprise Admin,Highways & Transport Services,http://opendatacommunities.org/def/concept/finance/sercop/objective/107,CONTINENTAL LANDSCAPES LTD,2108452,15/06/2015,50152,221.94,0,Ground maitemance contract 2015 - 2016,Horticultural,240000
South Lakeland District Council,http://opendatacommunities.org/id/district-council/south-lakeland,30/06/2015,Social Enterprise Admin,Highways & Transport Services,http://opendatacommunities.org/def/concept/finance/sercop/objective/107,CONTINENTAL LANDSCAPES LTD,2108452,15/06/2015,50152,119.97,0,Ground maitemance contract 2015 - 2016,Horticultural,240000
South Lakeland District Council,http://opendatacommunities.org/id/district-council/south-lakeland,30/06/2015,Social Enterprise Admin,Highways & Transport Services,http://opendatacommunities.org/def/concept/finance/sercop/objective/107,CONTINENTAL LANDSCAPES LTD,2108452,15/06/2015,50152,179.95,0,Ground maitemance contract 2015 - 2016,Horticultural,240000
South Lakeland District Council,http://opendatacommunities.org/id/district-council/south-lakeland,30/06/2015,Social Enterprise Admin,Cultural Environmental Regulatory & Planning Services,http://opendatacommunities.org/def/concept/finance/sercop/objective/104,CONTINENTAL LANDSCAPES LTD,2108452,15/06/2015,50152,9597.41,0,Ground maitemance contract 2015 - 2016,Horticultural,240000
South Lakeland District Council,http://opendatacommunities.org/id/district-council/south-lakeland,30/06/2015,Social Enterprise Admin,Cultural Environmental Regulatory & Planning Services,http://opendatacommunities.org/def/concept/finance/sercop/objective/104,CONTINENTAL LANDSCAPES LTD,2108452,15/06/2015,50152,1388.96,0,Ground maitemance contract 2015 - 2016,Cemetery & Crematorium,120000
South Lakeland District Council,http://opendatacommunities.org/id/district-council/south-lakeland,30/06/2015,Social Enterprise Admin,Cultural Environmental Regulatory & Planning Services,http://opendatacommunities.org/def/concept/finance/sercop/objective/104,CONTINENTAL LANDSCAPES LTD,2108452,15/06/2015,50152,23.99,0,Ground maitemance contract 2015 - 2016,Horticultural,240000
South Lakeland District Council,http://opendatacommunities.org/id/district-council/south-lakeland,30/06/2015,Social Enterprise Admin,Cultural Environmental Regulatory & Planning Services,http://opendatacommunities.org/def/concept/finance/sercop/objective/104,CONTINENTAL LANDSCAPES LTD,2108452,15/06/2015,50152,44527.71,0,Ground maitemance contract 2015 - 2016,Horticultural,240000
South Lakeland District Council,http://opendatacommunities.org/id/district-council/south-lakeland,30/06/2015,Social Enterprise Admin,Cultural Environmental Regulatory & Planning Services,http://opendatacommunities.org/def/concept/finance/sercop/objective/104,CONTINENTAL LANDSCAPES LTD,2108452,15/06/2015,50152,359.9,0,Ground maitemance contract 2015 - 2016,Horticultural,240000
South Lakeland District Council,http://opendatacommunities.org/id/district-council/south-lakeland,30/06/2015,Social Enterprise Admin,Cultural Environmental Regulatory & Planning Services,http://opendatacommunities.org/def/concept/finance/sercop/objective/104,CONTINENTAL LANDSCAPES LTD,2108452,15/06/2015,50152,2279.38,0,Ground maitemance contract 2015 - 2016,Horticultural,240000
South Lakeland District Council,http://opendatacommunities.org/id/district-council/south-lakeland,30/06/2015,Social Enterprise Admin,External Trading Accounts,,CONTINENTAL LANDSCAPES LTD,2108452,15/06/2015,50152,104.97,0,Ground maitemance contract 2015 - 2016,Horticultural,240000
South Lakeland District Council,http://opendatacommunities.org/id/district-council/south-lakeland,30/06/2015,Development Implementation,Cultural Environmental Regulatory & Planning Services,http://opendatacommunities.org/def/concept/finance/sercop/objective/104,PS BUSINESS MATTERS,8147185,15/06/2015,50153,2000,0,Kendal Futures Programme Support,Consultancy,150000
South Lakeland District Council,http://opendatacommunities.org/id/district-council/south-lakeland,30/06/2015,Social Enterprise Admin,Highways & Transport Services,http://opendatacommunities.org/def/concept/finance/sercop/objective/107,BEMROSE BOOTH PARAGON LTD,4891375,15/06/2015,50154,2212.5,0,"375,000 Aura Self Adhesive Single Issue",Stationery,340000
South Lakeland District Council,http://opendatacommunities.org/id/district-council/south-lakeland,30/06/2015,Social Enterprise Admin,Highways & Transport Services,http://opendatacommunities.org/def/concept/finance/sercop/objective/107,BEMROSE BOOTH PARAGON LTD,4891375,15/06/2015,50155,-1687.5,0,"375,000 Aura Self Adhesive Single Issue",Stationery,340000
South Lakeland District Council,http://opendatacommunities.org/id/district-council/south-lakeland,30/06/2015,Development Management,Cultural Environmental Regulatory & Planning Services,http://opendatacommunities.org/def/concept/finance/sercop/objective/104,NPS NORTH WEST LTD,6614601,29/06/2015,50156,1200,0,VIABILITY AND ASSESMENT APPRAISALS FOR,Consultancy,150000
South Lakeland District Council,http://opendatacommunities.org/id/district-council/south-lakeland,30/06/2015,Development Management,Cultural Environmental Regulatory & Planning Services,http://opendatacommunities.org/def/concept/finance/sercop/objective/104,NPS NORTH WEST LTD,6614601,29/06/2015,50157,2100,0,VIABILITY AND ASSESMENT APPRAISALS FOR,Consultancy,150000
South Lakeland District Council,http://opendatacommunities.org/id/district-council/south-lakeland,30/06/2015,Development Implementation,Cultural Environmental Regulatory & Planning Services,http://opendatacommunities.org/def/concept/finance/sercop/objective/104,NEWSCO INSIDER LTD,2709518,08/06/2015,50158,4000,0,Sponsorship of Insider event on 5th June,Environmental Services,180000
South Lakeland District Council,http://opendatacommunities.org/id/district-council/south-lakeland,30/06/2015,Kendal Town Hall,Central Services,http://opendatacommunities.org/def/concept/finance/sercop/objective/102,BERENDSEN UK LTD,228604,08/06/2015,50159,64.87,0,Rental and weekly replacement of the 2,Cleaning & Janitorial,130000
South Lakeland District Council,http://opendatacommunities.org/id/district-council/south-lakeland,30/06/2015,Kendal Town Hall,Cultural Environmental Regulatory & Planning Services,http://opendatacommunities.org/def/concept/finance/sercop/objective/104,BERENDSEN UK LTD,228604,08/06/2015,50159,26.08,0,Rental and weekly replacement of the 2,Cleaning & Janitorial,130000
South Lakeland District Council,http://opendatacommunities.org/id/district-council/south-lakeland,30/06/2015,Legal Services,Central Services,http://opendatacommunities.org/def/concept/finance/sercop/objective/102,LTT VENDING GROUP LTD,3021756,08/06/2015,50160,388.95,0,3 x English Breakfast tea,Catering,110000
South Lakeland District Council,http://opendatacommunities.org/id/district-council/south-lakeland,30/06/2015,Lake Wardens,Cultural Environmental Regulatory & Planning Services,http://opendatacommunities.org/def/concept/finance/sercop/objective/104,THE SIGN MAN,5748839,29/06/2015,50161,359,0,2 x Alluminium Composite 2' x 4' Signs,Arts & Leisure Services,290000
South Lakeland District Council,http://opendatacommunities.org/id/district-council/south-lakeland,30/06/2015,Business Support Community Services,Housing Services,http://opendatacommunities.org/def/concept/finance/sercop/objective/108,ADECCO UK LIMITED,593232,15/06/2015,50162,82.88,0,Cleaner for Town View Fields Hostel,Consultancy,150000
South Lakeland District Council,http://opendatacommunities.org/id/district-council/south-lakeland,30/06/2015,Revenues and Benefits,Central Services,http://opendatacommunities.org/def/concept/finance/sercop/objective/102,JACOBS,,08/06/2015,50165,75,0,2015-2016 Vat only,Financial Services,200000
South Lakeland District Council,http://opendatacommunities.org/id/district-council/south-lakeland,30/06/2015,Revenues and Benefits,Central Services,http://opendatacommunities.org/def/concept/finance/sercop/objective/102,HER MAJESTY'S COURTS & TRIBUNAL SERVICE,,08/06/2015,50166,201,0,2015-2016 Council Tax Service,Legal Services,280000
South Lakeland District Council,http://opendatacommunities.org/id/district-council/south-lakeland,30/06/2015,Revenues and Benefits,Central Services,http://opendatacommunities.org/def/concept/finance/sercop/objective/102,HER MAJESTY'S COURTS & TRIBUNAL SERVICE,,08/06/2015,50166,1917,0,2015-2016 Council Tax Service,Legal Services,280000
South Lakeland District Council,http://opendatacommunities.org/id/district-council/south-lakeland,30/06/2015,Revenues and Benefits,Central Services,http://opendatacommunities.org/def/concept/finance/sercop/objective/102,MERITEC LTD,3224622,08/06/2015,50167,418.5,0,2015 -2016 RAB Processing Contract and,Consultancy,150000
South Lakeland District Council,http://opendatacommunities.org/id/district-council/south-lakeland,30/06/2015,Revenues and Benefits,Central Services,http://opendatacommunities.org/def/concept/finance/sercop/objective/102,ARVATO GOVERNMENT SERVICES LTD,5429280,08/06/2015,50168,750,0,Council Tax Master Class - Training,Education,170000
South Lakeland District Council,http://opendatacommunities.org/id/district-council/south-lakeland,30/06/2015,Revenues and Benefits,SLDC as Agent,,ROYAL MAIL GROUP PLC,,08/06/2015,50169,2244.66,0,2015-2016 Postal Charges a/c 0198123013,Financial Services,200000
South Lakeland District Council,http://opendatacommunities.org/id/district-council/south-lakeland,30/06/2015,Revenues and Benefits,SLDC as Agent,,ROYAL MAIL GROUP PLC,,10/06/2015,50170,94,0,Response Service Licence a/c  0917139001,Financial Services,200000
South Lakeland District Council,http://opendatacommunities.org/id/district-council/south-lakeland,30/06/2015,Revenues and Benefits,SLDC as Agent,,ROYAL MAIL GROUP PLC,,08/06/2015,50171,2639,0,2015-2016 Postal Charges a/c 0198123013,Financial Services,200000
South Lakeland District Council,http://opendatacommunities.org/id/district-council/south-lakeland,30/06/2015,Revenues and Benefits,SLDC as Agent,,ROYAL MAIL GROUP PLC,,08/06/2015,50172,1108.75,0,2015-2016 Postal Charges a/c 0198123013,Financial Services,200000
South Lakeland District Council,http://opendatacommunities.org/id/district-council/south-lakeland,30/06/2015,Customer Services,Central Services,http://opendatacommunities.org/def/concept/finance/sercop/objective/102,SHRED-IT,4047194,15/06/2015,50173,237.18,0,Removal of confidential waste,Stationery,340000
South Lakeland District Council,http://opendatacommunities.org/id/district-council/south-lakeland,30/06/2015,Social Enterprise Admin,Central Services,http://opendatacommunities.org/def/concept/finance/sercop/objective/102,ENVIROFIRST LTD,5999123,22/06/2015,50174,165.4,0,Lowther Street Wheelie bin mixed,Environmental Services,180000
South Lakeland District Council,http://opendatacommunities.org/id/district-council/south-lakeland,30/06/2015,Revenues and Benefits,Central Services,http://opendatacommunities.org/def/concept/finance/sercop/objective/102,F P Mailing T/A The Mailing Room,8708033,08/06/2015,50175,2851,0,Letter Opener & Machine Service Plan,Financial Services,200000
South Lakeland District Council,http://opendatacommunities.org/id/district-council/south-lakeland,30/06/2015,Coronation Hall,External Trading Accounts,,Morson International,,10/06/2015,50176,79.52,0,Ulverston Market Hall cleaner to y/e 31,Consultancy,150000
South Lakeland District Council,http://opendatacommunities.org/id/district-council/south-lakeland,30/06/2015,Environment and Housing,Housing,http://opendatacommunities.org/def/concept/finance/sercop/objective/108,CUMBRIA COUNTY COUNCIL,,08/06/2015,50177,225,0,"High Sparrowmire,",Financial Services,200000
South Lakeland District Council,http://opendatacommunities.org/id/district-council/south-lakeland,30/06/2015,Social Enterprise Admin,Cultural Environmental Regulatory & Planning Services,http://opendatacommunities.org/def/concept/finance/sercop/objective/104,FURNESS NEWSPAPERS LTD,1155841,08/06/2015,50178,103.6,0,PUBLIC NOTICES FOR PLANNING 1 APRIL 2015,Facilities & Management Services,190000
South Lakeland District Council,http://opendatacommunities.org/id/district-council/south-lakeland,30/06/2015,Social Enterprise Admin,Cultural Environmental Regulatory & Planning Services,http://opendatacommunities.org/def/concept/finance/sercop/objective/104,Matchtech,2526418,22/06/2015,50179,721.75,0,TO SUPPLY DEVELOPMENT CONTROL TEAM,Consultancy,150000
South Lakeland District Council,http://opendatacommunities.org/id/district-council/south-lakeland,30/06/2015,Lake Wardens,Cultural Environmental Regulatory & Planning Services,http://opendatacommunities.org/def/concept/finance/sercop/objective/104,ENVIROFIRST LTD,5999123,29/06/2015,50180,58.88,0,Rental & Emptying of Re-Cycling Bins at,Environmental Services,180000
South Lakeland District Council,http://opendatacommunities.org/id/district-council/south-lakeland,30/06/2015,Business Support Community Services,Cultural Environmental Regulatory & Planning Services,http://opendatacommunities.org/def/concept/finance/sercop/objective/104,GREEN BROTHERS SIGNS LTD,7433026,15/06/2015,50181,109.31,0,Serpentine Road,Domestic Goods,160000
South Lakeland District Council,http://opendatacommunities.org/id/district-council/south-lakeland,30/06/2015,Business Support Community Services,Internal Trading Accounts,,GARWOOD EUROPE LTD,4333504,15/06/2015,50182,49.66,0,Switch,Vehicle Management,380000
South Lakeland District Council,http://opendatacommunities.org/id/district-council/south-lakeland,30/06/2015,Revenues and Benefits,Central Services,http://opendatacommunities.org/def/concept/finance/sercop/objective/102,VENN GROUP RECRUITMENT SOLUTIONS,,08/06/2015,50185,775.5,0,April 2015,Consultancy,150000
South Lakeland District Council,http://opendatacommunities.org/id/district-council/south-lakeland,30/06/2015,Policy & Partnerships,Cultural Environmental Regulatory & Planning Services,http://opendatacommunities.org/def/concept/finance/sercop/objective/104,Selside Village Hall Committee,,08/06/2015,50186,13972.42,0,LIPS funding - Selside Memorial Hall -,Financial Services,200000
South Lakeland District Council,http://opendatacommunities.org/id/district-council/south-lakeland,30/06/2015,ICT Group,Central Services,http://opendatacommunities.org/def/concept/finance/sercop/objective/102,Insight Direct (Uk) Ltd,2579852,15/06/2015,50188,184.39,0,Insight Part Number:0003609247   Lenovo,Information Communication Technology,270000
South Lakeland District Council,http://opendatacommunities.org/id/district-council/south-lakeland,30/06/2015,ICT Group,Central Services,http://opendatacommunities.org/def/concept/finance/sercop/objective/102,Insight Direct (Uk) Ltd,2579852,15/06/2015,50188,3449,0,Insight Part Number:0003609247   Lenovo,Information Communication Technology,270000
South Lakeland District Council,http://opendatacommunities.org/id/district-council/south-lakeland,30/06/2015,Coronation Hall,Central Services,http://opendatacommunities.org/def/concept/finance/sercop/objective/102,OLTEC GROUP CLEANING & JANITORIAL SUPPLI,,17/06/2015,50189,-896.4,0,Cleaning of Ulverston Town Hall up to 31,Consultancy,150000
South Lakeland District Council,http://opendatacommunities.org/id/district-council/south-lakeland,30/06/2015,Social Enterprise Admin,Cultural Environmental Regulatory & Planning Services,http://opendatacommunities.org/def/concept/finance/sercop/objective/104,NEWSQUEST MEDIA GROUP LTD,3102566,22/06/2015,50190,95,0,PUBLIC NOTICES FOR PLANNING 1 APRIL - 31,Facilities & Management Services,190000
South Lakeland District Council,http://opendatacommunities.org/id/district-council/south-lakeland,30/06/2015,Development Strategy,Cultural Environmental Regulatory & Planning Services,http://opendatacommunities.org/def/concept/finance/sercop/objective/104,NEWSQUEST MEDIA GROUP LTD,3102566,10/06/2015,50191,149,0,CIL Adoption Press Notice that will be,Facilities & Management Services,190000
South Lakeland District Council,http://opendatacommunities.org/id/district-council/south-lakeland,30/06/2015,ICT Group,Central Services,http://opendatacommunities.org/def/concept/finance/sercop/objective/102,FERRET INFORMATION SYSTEMS LTD,2126033,10/06/2015,50192,190,0,"Renovator PC Renewal, Updating service",Information Communication Technology,270000
South Lakeland District Council,http://opendatacommunities.org/id/district-council/south-lakeland,30/06/2015,Business Support Community Services,Internal Trading Accounts,,H WICKS (LINDAL) LTD,754590,15/06/2015,50193,1820.68,0,"Gate fees, handling & baling of",Environmental Services,180000
South Lakeland District Council,http://opendatacommunities.org/id/district-council/south-lakeland,30/06/2015,ICT Group,Highways & Transport Services,http://opendatacommunities.org/def/concept/finance/sercop/objective/107,Insight Direct (Uk) Ltd,2579852,15/06/2015,50194,118.57,0,Insight Part Number:0003609247   Lenovo,Furniture & Soft Furnishings,210000
South Lakeland District Council,http://opendatacommunities.org/id/district-council/south-lakeland,30/06/2015,ICT Group,Central Services,http://opendatacommunities.org/def/concept/finance/sercop/objective/102,Insight Direct (Uk) Ltd,2579852,15/06/2015,50194,202.8,0,Insight Part Number:0003609247   Lenovo,Information Communication Technology,270000
South Lakeland District Council,http://opendatacommunities.org/id/district-council/south-lakeland,30/06/2015,Financial Services,Central Services,http://opendatacommunities.org/def/concept/finance/sercop/objective/102,GREATER MANCHESTER PENSION FUND,,10/06/2015,50195,10805.38,0,Line 1 first 1/2 year additional pension,Financial Services,200000
South Lakeland District Council,http://opendatacommunities.org/id/district-council/south-lakeland,30/06/2015,Democratic Services,Central Services,http://opendatacommunities.org/def/concept/finance/sercop/objective/102,Brambles Tea Room,,15/06/2015,50196,125,0,Buffet for 25 at 5 per head for Lake,Education,170000
South Lakeland District Council,http://opendatacommunities.org/id/district-council/south-lakeland,30/06/2015,Financial Services,SLDC as Agent,,LAKELAND ESTATES (AMBLESIDE) LTD,3022544,10/06/2015,50198,18203.4,0,2015/16 Income,Financial Services,200000
South Lakeland District Council,http://opendatacommunities.org/id/district-council/south-lakeland,30/06/2015,Financial Services,SLDC as Agent,,KIRKLAND TRUST (KENDAL),,10/06/2015,50199,4779.9,0,15/16 Income,Financial Services,200000
South Lakeland District Council,http://opendatacommunities.org/id/district-council/south-lakeland,30/06/2015,Social Enterprise Admin,Central Services,http://opendatacommunities.org/def/concept/finance/sercop/objective/102,Southerns Office Interiors Ltd,3478080,10/06/2015,50200,100.8,0,"TMP3 Drawer Unit.  Oak finish, black",Furniture & Soft Furnishings,210000
South Lakeland District Council,http://opendatacommunities.org/id/district-council/south-lakeland,30/06/2015,Business Support Community Services,Internal Trading Accounts,,Harry Park Tyres Ltd,8131208,10/06/2015,50201,12.5,0,Puncture,Vehicle Management,380000
South Lakeland District Council,http://opendatacommunities.org/id/district-council/south-lakeland,30/06/2015,Business Support Community Services,Internal Trading Accounts,,Harry Park Tyres Ltd,8131208,10/06/2015,50202,58.95,0,Puncture,Vehicle Management,380000
South Lakeland District Council,http://opendatacommunities.org/id/district-council/south-lakeland,30/06/2015,Business Support Community Services,Internal Trading Accounts,,EK MOTOR FACTORS LTD,838524,17/06/2015,50203,51.08,0,Batteries,Vehicle Management,380000
South Lakeland District Council,http://opendatacommunities.org/id/district-council/south-lakeland,30/06/2015,Business Support Community Services,Internal Trading Accounts,,K S INTERNATIONAL LTD,2703321,15/06/2015,50204,22,0,Track rod end,Vehicle Management,380000
South Lakeland District Council,http://opendatacommunities.org/id/district-council/south-lakeland,30/06/2015,Business Support Community Services,Internal Trading Accounts,,Harry Park Tyres Ltd,8131208,10/06/2015,50205,1118,0,Puncture,Vehicle Management,380000
South Lakeland District Council,http://opendatacommunities.org/id/district-council/south-lakeland,30/06/2015,Business Support Community Services,Internal Trading Accounts,,HYDRAIR TRUCK & TRAILER PARTS LTD,,10/06/2015,50206,34.8,0,Nylon,Vehicle Management,380000
South Lakeland District Council,http://opendatacommunities.org/id/district-council/south-lakeland,30/06/2015,Business Support Community Services,Internal Trading Accounts,,EK MOTOR FACTORS LTD,838524,15/06/2015,50207,20.66,0,Batteries,Vehicle Management,380000
South Lakeland District Council,http://opendatacommunities.org/id/district-council/south-lakeland,30/06/2015,Business Support Community Services,Internal Trading Accounts,,EK MOTOR FACTORS LTD,838524,15/06/2015,50208,112.73,0,Batteries,Vehicle Management,380000
South Lakeland District Council,http://opendatacommunities.org/id/district-council/south-lakeland,30/06/2015,Business Support Community Services,Internal Trading Accounts,,EK MOTOR FACTORS LTD,838524,15/06/2015,50209,-64.75,0,Batteries,Vehicle Management,380000
South Lakeland District Council,http://opendatacommunities.org/id/district-council/south-lakeland,30/06/2015,Business Support Community Services,Internal Trading Accounts,,DENNIS EAGLE LTD,3794455,15/06/2015,50210,286.19,0,Link rod,,
South Lakeland District Council,http://opendatacommunities.org/id/district-council/south-lakeland,30/06/2015,Business Support Community Services,Internal Trading Accounts,,DENNIS EAGLE LTD,3794455,15/06/2015,50211,276.82,0,Link rod,Vehicle Management,380000
South Lakeland District Council,http://opendatacommunities.org/id/district-council/south-lakeland,30/06/2015,Business Support Community Services,Internal Trading Accounts,,Harry Park Tyres Ltd,8131208,10/06/2015,50212,81,0,Puncture,Vehicle Management,380000
South Lakeland District Council,http://opendatacommunities.org/id/district-council/south-lakeland,30/06/2015,Business Support Community Services,Internal Trading Accounts,,Harry Park Tyres Ltd,8131208,10/06/2015,50213,149,0,Puncture,Vehicle Management,380000
South Lakeland District Council,http://opendatacommunities.org/id/district-council/south-lakeland,30/06/2015,Business Support Community Services,Internal Trading Accounts,,EK MOTOR FACTORS LTD,838524,15/06/2015,50214,13.48,0,Batteries,Vehicle Management,380000
South Lakeland District Council,http://opendatacommunities.org/id/district-council/south-lakeland,30/06/2015,Business Support Community Services,Internal Trading Accounts,,EK MOTOR FACTORS LTD,838524,15/06/2015,50215,20.15,0,Batteries,Vehicle Management,380000
South Lakeland District Council,http://opendatacommunities.org/id/district-council/south-lakeland,30/06/2015,Business Support Community Services,Internal Trading Accounts,,EK MOTOR FACTORS LTD,838524,15/06/2015,50215,46.7,0,Batteries,Cleaning & Janitorial,130000
South Lakeland District Council,http://opendatacommunities.org/id/district-council/south-lakeland,30/06/2015,Business Support Community Services,Internal Trading Accounts,,EK MOTOR FACTORS LTD,838524,15/06/2015,50216,-12.93,0,Batteries,Vehicle Management,380000
South Lakeland District Council,http://opendatacommunities.org/id/district-council/south-lakeland,30/06/2015,Business Support Community Services,Internal Trading Accounts,,EK MOTOR FACTORS LTD,838524,15/06/2015,50217,31.95,0,Batteries,Vehicle Management,380000
South Lakeland District Council,http://opendatacommunities.org/id/district-council/south-lakeland,30/06/2015,Business Support Community Services,Internal Trading Accounts,,EK MOTOR FACTORS LTD,838524,15/06/2015,50218,91.8,0,Batteries,Vehicle Management,380000
South Lakeland District Council,http://opendatacommunities.org/id/district-council/south-lakeland,30/06/2015,Business Support Community Services,Internal Trading Accounts,,HYDRAIR TRUCK & TRAILER PARTS LTD,,15/06/2015,50219,982,0,Nylon,Vehicle Management,380000
South Lakeland District Council,http://opendatacommunities.org/id/district-council/south-lakeland,30/06/2015,Business Support Community Services,Internal Trading Accounts,,K S INTERNATIONAL LTD,2703321,10/06/2015,50220,275.7,0,Track rod end,Vehicle Management,380000
South Lakeland District Council,http://opendatacommunities.org/id/district-council/south-lakeland,30/06/2015,Business Support Community Services,Internal Trading Accounts,,EK MOTOR FACTORS LTD,838524,15/06/2015,50221,142.96,0,Batteries,Vehicle Management,380000
South Lakeland District Council,http://opendatacommunities.org/id/district-council/south-lakeland,30/06/2015,Business Support Community Services,Internal Trading Accounts,,EK MOTOR FACTORS LTD,838524,15/06/2015,50222,69.62,0,Batteries,Vehicle Management,380000
South Lakeland District Council,http://opendatacommunities.org/id/district-council/south-lakeland,30/06/2015,Business Support Community Services,Internal Trading Accounts,,EK MOTOR FACTORS LTD,838524,15/06/2015,50223,36.31,0,Batteries,Vehicle Management,380000
South Lakeland District Council,http://opendatacommunities.org/id/district-council/south-lakeland,30/06/2015,Business Support Community Services,Internal Trading Accounts,,EK MOTOR FACTORS LTD,838524,15/06/2015,50224,51.67,0,Batteries,Vehicle Management,380000
South Lakeland District Council,http://opendatacommunities.org/id/district-council/south-lakeland,30/06/2015,Business Support Community Services,Internal Trading Accounts,,DENNIS EAGLE LTD,3794455,15/06/2015,50225,172.32,0,Link rod,Vehicle Management,380000
South Lakeland District Council,http://opendatacommunities.org/id/district-council/south-lakeland,30/06/2015,Business Support Community Services,Internal Trading Accounts,,HYDRAIR TRUCK & TRAILER PARTS LTD,,15/06/2015,50226,61.2,0,Nylon,Vehicle Management,380000
South Lakeland District Council,http://opendatacommunities.org/id/district-council/south-lakeland,30/06/2015,Business Support Community Services,Cultural Environmental Regulatory & Planning Services,http://opendatacommunities.org/def/concept/finance/sercop/objective/104,CHARLESWORTH TREE CARE & FENCING LTD,5628824,10/06/2015,50227,220,0,Woodchips for Scroggs Bank,Facilities & Management Services,190000
South Lakeland District Council,http://opendatacommunities.org/id/district-council/south-lakeland,30/06/2015,Business Support Community Services,Cultural Environmental Regulatory & Planning Services,http://opendatacommunities.org/def/concept/finance/sercop/objective/104,GRANTS- MISCELLANEOUS,,10/06/2015,50228,4166.67,0,"Flood safety measures at Ship Inn,",Arts & Leisure Services,290000
South Lakeland District Council,http://opendatacommunities.org/id/district-council/south-lakeland,30/06/2015,Business Support Community Services,Housing Services,http://opendatacommunities.org/def/concept/finance/sercop/objective/108,Landlord,,10/06/2015,50229,400,0,Monthly rent ,Social Community Care Supplies & Services,410000
South Lakeland District Council,http://opendatacommunities.org/id/district-council/south-lakeland,30/06/2015,Business Support Community Services,Housing Services,http://opendatacommunities.org/def/concept/finance/sercop/objective/108,Landlord,,10/06/2015,50230,520,0,Monthly rent ,Social Community Care Supplies & Services,410000
South Lakeland District Council,http://opendatacommunities.org/id/district-council/south-lakeland,30/06/2015,Business Support Community Services,Housing Services,http://opendatacommunities.org/def/concept/finance/sercop/objective/108,Landlord,,10/06/2015,50231,520,0,Monthly rent ,Social Community Care Supplies & Services,410000
South Lakeland District Council,http://opendatacommunities.org/id/district-council/south-lakeland,30/06/2015,Business Support Community Services,Housing Services,http://opendatacommunities.org/def/concept/finance/sercop/objective/108,Landlord,7121028,10/06/2015,50232,400,0,Monthly rent ,Social Community Care Supplies & Services,410000
South Lakeland District Council,http://opendatacommunities.org/id/district-council/south-lakeland,30/06/2015,Business Support Community Services,Housing Services,http://opendatacommunities.org/def/concept/finance/sercop/objective/108,Landlord,,10/06/2015,50233,500,0,Monthly rent ,Social Community Care Supplies & Services,410000
South Lakeland District Council,http://opendatacommunities.org/id/district-council/south-lakeland,30/06/2015,Business Support Community Services,Housing Services,http://opendatacommunities.org/def/concept/finance/sercop/objective/108,Landlord,,10/06/2015,50234,520,0,Monthly rent ,Social Community Care Supplies & Services,410000
South Lakeland District Council,http://opendatacommunities.org/id/district-council/south-lakeland,30/06/2015,Business Support Community Services,Housing Services,http://opendatacommunities.org/def/concept/finance/sercop/objective/108,Landlord,,10/06/2015,50235,520,0,Monthly rent ,Social Community Care Supplies & Services,410000
South Lakeland District Council,http://opendatacommunities.org/id/district-council/south-lakeland,30/06/2015,Social Enterprise Admin,Highways & Transport Services,http://opendatacommunities.org/def/concept/finance/sercop/objective/107,G4S SECURE SOLUTIONS (UK) LTD,1046019,10/06/2015,50236,874.84,0,Patrol Services for South Lakeland House,Consultancy,150000
South Lakeland District Council,http://opendatacommunities.org/id/district-council/south-lakeland,30/06/2015,Social Enterprise Admin,SLDC as Agent,,PAY BY PHONE (PAYPOINT),,10/06/2015,50237,256.59,0,Pay-by-phone charges from 1 April 2015,Financial Services,200000
South Lakeland District Council,http://opendatacommunities.org/id/district-council/south-lakeland,30/06/2015,Printing Section,Central Services,http://opendatacommunities.org/def/concept/finance/sercop/objective/102,GANDLAKE TECHNOLOGY LTD,,10/06/2015,50238,2231.52,0,Rental License for LaserServe for 3,Stationery,340000
South Lakeland District Council,http://opendatacommunities.org/id/district-council/south-lakeland,30/06/2015,Business Support Community Services,Internal Trading Accounts,,LANCASHIRE DAF,,17/06/2015,50239,177.65,0,Glass,Vehicle Management,380000
South Lakeland District Council,http://opendatacommunities.org/id/district-council/south-lakeland,30/06/2015,Development Implementation,Central Services,http://opendatacommunities.org/def/concept/finance/sercop/objective/102,CASTLE ALARMS 1981 LTD,9231500,15/06/2015,50241,1185,0,CCTV & Panic Alarms for New Contact,Financial Services,200000
South Lakeland District Council,http://opendatacommunities.org/id/district-council/south-lakeland,30/06/2015,Revenues and Benefits,Central Services,http://opendatacommunities.org/def/concept/finance/sercop/objective/102,BADENOCH & CLARK,1356186,15/06/2015,50244,526.73,0,Denise Calvert May 2015,Consultancy,150000
South Lakeland District Council,http://opendatacommunities.org/id/district-council/south-lakeland,30/06/2015,Revenues and Benefits,Central Services,http://opendatacommunities.org/def/concept/finance/sercop/objective/102,BADENOCH & CLARK,1356186,15/06/2015,50245,400.05,0,Denise Calvert May 2015,Consultancy,150000
South Lakeland District Council,http://opendatacommunities.org/id/district-council/south-lakeland,30/06/2015,Democratic Services,Central Services,http://opendatacommunities.org/def/concept/finance/sercop/objective/102,MARCHESI CENTRE,,10/06/2015,50246,64,0,Room hire for 5 June 2015 Lake,Arts & Leisure Services,290000
South Lakeland District Council,http://opendatacommunities.org/id/district-council/south-lakeland,30/06/2015,Social Enterprise Admin,Highways & Transport Services,http://opendatacommunities.org/def/concept/finance/sercop/objective/107,ALLSTAR BUSINESS SOLUTIONS LTD (NCR),2631112,01/06/2015,50247,219.65,0,Fuel for car parks' vehicles starting 1,Utilities,370000
South Lakeland District Council,http://opendatacommunities.org/id/district-council/south-lakeland,30/06/2015,Social Enterprise Admin,Cultural Environmental Regulatory & Planning Services,http://opendatacommunities.org/def/concept/finance/sercop/objective/104,ALLSTAR BUSINESS SOLUTIONS LTD (NCR),2631112,01/06/2015,50247,83.99,0,Fuel for car parks' vehicles starting 1,Utilities,370000
South Lakeland District Council,http://opendatacommunities.org/id/district-council/south-lakeland,30/06/2015,Social Enterprise Admin,Cultural Environmental Regulatory & Planning Services,http://opendatacommunities.org/def/concept/finance/sercop/objective/104,ALLSTAR BUSINESS SOLUTIONS LTD (NCR),2631112,01/06/2015,50248,151.4,0,parks fuel,Utilities,370000
South Lakeland District Council,http://opendatacommunities.org/id/district-council/south-lakeland,30/06/2015,Business Support Community Services,Cultural Environmental Regulatory & Planning Services,http://opendatacommunities.org/def/concept/finance/sercop/objective/104,INTELLIGENT DATA SYSTEMS (UK) LTD,5148878,15/06/2015,50249,68.25,0,IDS Checks for Taxi Drivers,Highway Equipment & Materials,230000
South Lakeland District Council,http://opendatacommunities.org/id/district-council/south-lakeland,30/06/2015,Policy & Partnerships,Cultural Environmental Regulatory & Planning Services,http://opendatacommunities.org/def/concept/finance/sercop/objective/104,STAVELEY WITH INGS PARISH COUNCIL,,10/06/2015,50252,1000,0,Community development - grant from Cllr,Financial Services,200000
South Lakeland District Council,http://opendatacommunities.org/id/district-council/south-lakeland,30/06/2015,Legal Services,Cultural Environmental Regulatory & Planning Services,http://opendatacommunities.org/def/concept/finance/sercop/objective/104,HYGIENE CLEANING SUPPLIES LTD,4753934,15/06/2015,50253,187.12,0,5 x 12 Mini Jumbo toilet rolls,Cleaning & Janitorial,130000
South Lakeland District Council,http://opendatacommunities.org/id/district-council/south-lakeland,30/06/2015,ICT Group,Central Services,http://opendatacommunities.org/def/concept/finance/sercop/objective/102,VODAFONE LIMITED,1471587,10/06/2015,50254,55,0,Mobile phone ,Information Communication Technology,270000
South Lakeland District Council,http://opendatacommunities.org/id/district-council/south-lakeland,30/06/2015,ICT Group,External Trading Accounts,,VODAFONE LIMITED,1471587,10/06/2015,50254,55,0,Mobile phone ,Utilities,370000
South Lakeland District Council,http://opendatacommunities.org/id/district-council/south-lakeland,30/06/2015,ICT Group,Cultural Environmental Regulatory & Planning Services,http://opendatacommunities.org/def/concept/finance/sercop/objective/104,VODAFONE LIMITED,1471587,10/06/2015,50254,55,0,Mobile phone ,Utilities,370000
South Lakeland District Council,http://opendatacommunities.org/id/district-council/south-lakeland,30/06/2015,Business Support Community Services,Cultural Environmental Regulatory & Planning Services,http://opendatacommunities.org/def/concept/finance/sercop/objective/104,GRANTS- MISCELLANEOUS,,10/06/2015,50255,5000,0,Repair and Renew Grant 2014 - Flood,Arts & Leisure Services,290000
South Lakeland District Council,http://opendatacommunities.org/id/district-council/south-lakeland,30/06/2015,ICT Group,Central Services,http://opendatacommunities.org/def/concept/finance/sercop/objective/102,DAISY COMMUNICATIONS LTD,4145329,10/06/2015,50256,481.66,0,"Daisy Line Rental Charges (Service),",Information Communication Technology,270000
South Lakeland District Council,http://opendatacommunities.org/id/district-council/south-lakeland,30/06/2015,ICT Group,Central Services,http://opendatacommunities.org/def/concept/finance/sercop/objective/102,DAISY COMMUNICATIONS LTD,4145329,10/06/2015,50256,88.64,0,"Daisy Line Rental Charges (Service),",Information Communication Technology,270000
South Lakeland District Council,http://opendatacommunities.org/id/district-council/south-lakeland,30/06/2015,Policy & Partnerships,Cultural Environmental Regulatory & Planning Services,http://opendatacommunities.org/def/concept/finance/sercop/objective/104,Sedbergh Wanderers Junior Football Club,,10/06/2015,50261,264,0,Locally Important Projects funding to,Financial Services,200000
South Lakeland District Council,http://opendatacommunities.org/id/district-council/south-lakeland,30/06/2015,Policy & Partnerships,Cultural Environmental Regulatory & Planning Services,http://opendatacommunities.org/def/concept/finance/sercop/objective/104,GRANGE OVER SANDS TOWN COUNCIL,,10/06/2015,50262,1000,0,Neighbourhood Plan,Financial Services,200000
South Lakeland District Council,http://opendatacommunities.org/id/district-council/south-lakeland,30/06/2015,Legal Services,Central Services,http://opendatacommunities.org/def/concept/finance/sercop/objective/102,Sellick Partnership Group Ltd,4156002,15/06/2015,50265,1134,0,Fees for : w/k ending,Consultancy,150000
South Lakeland District Council,http://opendatacommunities.org/id/district-council/south-lakeland,30/06/2015,Legal Services,Central Services,http://opendatacommunities.org/def/concept/finance/sercop/objective/102,W MCCLURE LTD,685360,15/06/2015,50266,112,0,12 boxes semi-skimmed milk portions,Catering,110000
South Lakeland District Council,http://opendatacommunities.org/id/district-council/south-lakeland,30/06/2015,Business Support Community Services,Internal Trading Accounts,,ARCO LIMITED,133804,17/06/2015,50267,306,0,PPE 2015/16,Clothing,140000
South Lakeland District Council,http://opendatacommunities.org/id/district-council/south-lakeland,30/06/2015,Policy & Partnerships,Cultural Environmental Regulatory & Planning Services,http://opendatacommunities.org/def/concept/finance/sercop/objective/104,GRANTS- MISCELLANEOUS,,15/06/2015,50268,500,0,Childrens playground safety improvements,Financial Services,200000
South Lakeland District Council,http://opendatacommunities.org/id/district-council/south-lakeland,30/06/2015,Development Management,Cultural Environmental Regulatory & Planning Services,http://opendatacommunities.org/def/concept/finance/sercop/objective/104,CHRIS BOWKER LTD,1642561,15/06/2015,50269,30,0,Checking of electrical work under Part P,Facilities & Management Services,190000
South Lakeland District Council,http://opendatacommunities.org/id/district-council/south-lakeland,30/06/2015,Development Management,Cultural Environmental Regulatory & Planning Services,http://opendatacommunities.org/def/concept/finance/sercop/objective/104,CHRIS BOWKER LTD,1642561,15/06/2015,50270,30,0,Checking of electrical work under Part P,Facilities & Management Services,190000
South Lakeland District Council,http://opendatacommunities.org/id/district-council/south-lakeland,30/06/2015,Business Support Community Services,Housing Services,http://opendatacommunities.org/def/concept/finance/sercop/objective/108,James Andrews Recruitment Solutions,6834852,15/06/2015,50271,943.75,0,Payment for  - Housing,Consultancy,150000
South Lakeland District Council,http://opendatacommunities.org/id/district-council/south-lakeland,30/06/2015,Social Enterprise Admin,Highways & Transport Services,http://opendatacommunities.org/def/concept/finance/sercop/objective/107,CREDIT CALL LTD (NCR),,01/06/2015,50272,667.7,0,Credit Call Commission  2015/16,Financial Services,200000
South Lakeland District Council,http://opendatacommunities.org/id/district-council/south-lakeland,30/06/2015,Development Implementation,Central Services,http://opendatacommunities.org/def/concept/finance/sercop/objective/102,Robson Liddle Ltd,3240492,15/06/2015,50273,800,0,Roof Survey at South Lakeland House,Financial Services,200000
South Lakeland District Council,http://opendatacommunities.org/id/district-council/south-lakeland,30/06/2015,Development Implementation,Cultural Environmental Regulatory & Planning Services,http://opendatacommunities.org/def/concept/finance/sercop/objective/104,Echo Events & Association Management,,15/06/2015,50274,3080,0,Project Management for Invest in South,Environmental Services,180000
South Lakeland District Council,http://opendatacommunities.org/id/district-council/south-lakeland,30/06/2015,Financial Services,Central Services,http://opendatacommunities.org/def/concept/finance/sercop/objective/102,BOTTOMLINE TECHNOLOGIES EUROPE LTD,3693514,15/06/2015,50279,1531,0,Bottomline C-Series BACS software annual,Information Communication Technology,270000
South Lakeland District Council,http://opendatacommunities.org/id/district-council/south-lakeland,30/06/2015,Legal Services,Central Services,http://opendatacommunities.org/def/concept/finance/sercop/objective/102,Sellick Partnership Group Ltd,4156002,15/06/2015,50280,1134,0,Wages for w/k,Consultancy,150000
South Lakeland District Council,http://opendatacommunities.org/id/district-council/south-lakeland,30/06/2015,Legal Services,Central Services,http://opendatacommunities.org/def/concept/finance/sercop/objective/102,LTT VENDING GROUP LTD,3021756,15/06/2015,50281,112.26,0,3 x 1000 CP023 Flavia Paper Cups,Catering,110000
South Lakeland District Council,http://opendatacommunities.org/id/district-council/south-lakeland,30/06/2015,Social Enterprise Admin,Central Services,http://opendatacommunities.org/def/concept/finance/sercop/objective/102,CUMBRIA COUNTY COUNCIL,,22/06/2015,50282,3797.4,0,LAND SEARCH CHARGE SEARCH ENQUIRIES CCC,Financial Services,200000
South Lakeland District Council,http://opendatacommunities.org/id/district-council/south-lakeland,30/06/2015,Social Enterprise Admin,Cultural Environmental Regulatory & Planning Services,http://opendatacommunities.org/def/concept/finance/sercop/objective/104,HAYMARKET MEDIA GROUP LTD,267189,22/06/2015,50283,810,0,"APPEAL DECISION, HEARINGS, INQUIRIES AND",Consultancy,150000
South Lakeland District Council,http://opendatacommunities.org/id/district-council/south-lakeland,30/06/2015,Coronation Hall,Cultural Environmental Regulatory & Planning Services,http://opendatacommunities.org/def/concept/finance/sercop/objective/104,OCS GROUP LTD T/A CANNON HYGIENE LTD,1298292,15/06/2015,50284,231,0,Medical waste and sanitary disposal to,Cleaning & Janitorial,130000
South Lakeland District Council,http://opendatacommunities.org/id/district-council/south-lakeland,30/06/2015,Social Enterprise Admin,Cultural Environmental Regulatory & Planning Services,http://opendatacommunities.org/def/concept/finance/sercop/objective/104,NEWSQUEST MEDIA GROUP LTD,3102566,22/06/2015,50285,95,0,PUBLIC NOTICES FOR PLANNING 1 APRIL - 31,Facilities & Management Services,190000
South Lakeland District Council,http://opendatacommunities.org/id/district-council/south-lakeland,30/06/2015,Policy & Partnerships,Central Services,http://opendatacommunities.org/def/concept/finance/sercop/objective/102,CUMBRIA WILDLIFE TRUST,,15/06/2015,50286,4000,0,Community Organisations one off project,Consultancy,150000
South Lakeland District Council,http://opendatacommunities.org/id/district-council/south-lakeland,30/06/2015,Financial Services,Central Services,http://opendatacommunities.org/def/concept/finance/sercop/objective/102,GRANT THORNTON UK LLP,OC307742,15/06/2015,50287,20066,0,Instalment 4 of 14/15 External Audit,Financial Services,200000
South Lakeland District Council,http://opendatacommunities.org/id/district-council/south-lakeland,30/06/2015,Coronation Hall,Cultural Environmental Regulatory & Planning Services,http://opendatacommunities.org/def/concept/finance/sercop/objective/104,ST JOHN AMBULANCE CUMBRIA,,15/06/2015,50288,52.8,0,FAO ,Consultancy,150000
South Lakeland District Council,http://opendatacommunities.org/id/district-council/south-lakeland,30/06/2015,Coronation Hall,Cultural Environmental Regulatory & Planning Services,http://opendatacommunities.org/def/concept/finance/sercop/objective/104,ST JOHN AMBULANCE CUMBRIA,,22/06/2015,50289,105.6,0,FAO ,Consultancy,150000
South Lakeland District Council,http://opendatacommunities.org/id/district-council/south-lakeland,30/06/2015,Legal Services,Cultural Environmental Regulatory & Planning Services,http://opendatacommunities.org/def/concept/finance/sercop/objective/104,THE FAIRGROUND,,15/06/2015,50290,154.84,0,1 x 1000 cafe direct decaf instant,Catering,110000
South Lakeland District Council,http://opendatacommunities.org/id/district-council/south-lakeland,30/06/2015,Coronation Hall,Cultural Environmental Regulatory & Planning Services,http://opendatacommunities.org/def/concept/finance/sercop/objective/104,ST JOHN AMBULANCE CUMBRIA,,22/06/2015,50291,70.4,0,FAO ,Consultancy,150000
South Lakeland District Council,http://opendatacommunities.org/id/district-council/south-lakeland,30/06/2015,ICT Group,Central Services,http://opendatacommunities.org/def/concept/finance/sercop/objective/102,VODAFONE LIMITED,1471587,22/06/2015,50292,55,0,Moto G black mobile 07833 059 348,Utilities,370000
South Lakeland District Council,http://opendatacommunities.org/id/district-council/south-lakeland,30/06/2015,ICT Group,Housing Services,http://opendatacommunities.org/def/concept/finance/sercop/objective/108,VODAFONE LIMITED,1471587,22/06/2015,50292,55,0,Moto G black mobile 07833 059 348,Utilities,370000
South Lakeland District Council,http://opendatacommunities.org/id/district-council/south-lakeland,30/06/2015,Development Implementation,Central Services,http://opendatacommunities.org/def/concept/finance/sercop/objective/102,Pugh & Company Ltd,3960050,17/06/2015,50293,650,0,"Auction Fees for Greenbank, Kendal.",Information Communication Technology,270000
South Lakeland District Council,http://opendatacommunities.org/id/district-council/south-lakeland,30/06/2015,Human Resources,Non-Service Payments,,BUSY BEES BENEFITS LTD,6758298,15/06/2015,50294,696,0,child care vouchers,Financial Services,200000
South Lakeland District Council,http://opendatacommunities.org/id/district-council/south-lakeland,30/06/2015,Human Resources,Central Services,http://opendatacommunities.org/def/concept/finance/sercop/objective/102,BUSY BEES BENEFITS LTD,6758298,15/06/2015,50295,24.36,0,child care vouchers,Financial Services,200000
South Lakeland District Council,http://opendatacommunities.org/id/district-council/south-lakeland,30/06/2015,Human Resources,Non-Service Payments,,COMPUTERSHARE VOUCHER SERVICES LTD,4968447,15/06/2015,50296,587,0,child care vouchers,Financial Services,200000
South Lakeland District Council,http://opendatacommunities.org/id/district-council/south-lakeland,30/06/2015,Human Resources,Central Services,http://opendatacommunities.org/def/concept/finance/sercop/objective/102,COMPUTERSHARE VOUCHER SERVICES LTD,4968447,15/06/2015,50297,22.01,0,child care vouchers,Financial Services,200000
South Lakeland District Council,http://opendatacommunities.org/id/district-council/south-lakeland,30/06/2015,Development Implementation,Cultural Environmental Regulatory & Planning Services,http://opendatacommunities.org/def/concept/finance/sercop/objective/104,Darren Nelson,,15/06/2015,50299,75,0,"Images from Insider Breakfast Event, 5th",Environmental Services,180000
South Lakeland District Council,http://opendatacommunities.org/id/district-council/south-lakeland,30/06/2015,Revenues and Benefits,Central Services,http://opendatacommunities.org/def/concept/finance/sercop/objective/102,VENN GROUP RECRUITMENT SOLUTIONS,,15/06/2015,50301,869.5,0,April 2015 ,Consultancy,150000
South Lakeland District Council,http://opendatacommunities.org/id/district-council/south-lakeland,30/06/2015,Business Support Community Services,Cultural Environmental Regulatory & Planning Services,http://opendatacommunities.org/def/concept/finance/sercop/objective/104,Another Space,,15/06/2015,50302,3000,0,Funding contribution re  the 10th,Financial Services,200000
South Lakeland District Council,http://opendatacommunities.org/id/district-council/south-lakeland,30/06/2015,Business Support Community Services,Housing Services,http://opendatacommunities.org/def/concept/finance/sercop/objective/108,DC Transport,,15/06/2015,50303,50,0,Van for moving belongings from 6 Camden,Social Community Care Supplies & Services,410000
South Lakeland District Council,http://opendatacommunities.org/id/district-council/south-lakeland,30/06/2015,Business Support Community Services,Housing Services,http://opendatacommunities.org/def/concept/finance/sercop/objective/108,Vigilant Security Services UK Ltd,5914271,15/06/2015,50304,3168.92,0,Monthly payment for the security Guard,Human Resources,260000
South Lakeland District Council,http://opendatacommunities.org/id/district-council/south-lakeland,30/06/2015,Policy & Partnerships,Cultural Environmental Regulatory & Planning Services,http://opendatacommunities.org/def/concept/finance/sercop/objective/104,CASTERTON PARISH COUNCIL,,17/06/2015,50306,5500,0,Locally Important Funidng -Casteton,Financial Services,200000
South Lakeland District Council,http://opendatacommunities.org/id/district-council/south-lakeland,30/06/2015,Policy & Partnerships,Cultural Environmental Regulatory & Planning Services,http://opendatacommunities.org/def/concept/finance/sercop/objective/104,KIRKBY LONSDALE TOWN COUNCIL,,17/06/2015,50307,500,0,"Back Lane Improvement Scheme, replacing",Financial Services,200000
South Lakeland District Council,http://opendatacommunities.org/id/district-council/south-lakeland,30/06/2015,Policy & Partnerships,Cultural Environmental Regulatory & Planning Services,http://opendatacommunities.org/def/concept/finance/sercop/objective/104,KIRKBY LONSDALE TOWN COUNCIL,,17/06/2015,50308,500,0,The funding will go to thecost of,Financial Services,200000
South Lakeland District Council,http://opendatacommunities.org/id/district-council/south-lakeland,30/06/2015,Democratic Services,Central Services,http://opendatacommunities.org/def/concept/finance/sercop/objective/102,RIVERBANK HOSPITALITY CATERING,,17/06/2015,50309,142.5,0,Buffet for 30 for briefing before Full,Education,170000
South Lakeland District Council,http://opendatacommunities.org/id/district-council/south-lakeland,30/06/2015,Revenues and Benefits,Housing Benefit Payments,,South Lakes Citizens Advice Bureau,6113551,17/06/2015,50310,25,0,Universal Credit,Consultancy,150000
South Lakeland District Council,http://opendatacommunities.org/id/district-council/south-lakeland,30/06/2015,Policy & Partnerships,Cultural Environmental Regulatory & Planning Services,http://opendatacommunities.org/def/concept/finance/sercop/objective/104,CUMBRIA COUNTY COUNCIL,,17/06/2015,50311,1000,0,The project involves getting the,Financial Services,200000
South Lakeland District Council,http://opendatacommunities.org/id/district-council/south-lakeland,30/06/2015,Business Support Community Services,Central Services,http://opendatacommunities.org/def/concept/finance/sercop/objective/102,APP USER GROUP,,17/06/2015,50312,110,0,APP User Group,Information Communication Technology,270000
South Lakeland District Council,http://opendatacommunities.org/id/district-council/south-lakeland,30/06/2015,Revenues and Benefits,Central Services,http://opendatacommunities.org/def/concept/finance/sercop/objective/102,KENDAL SECURITY CENTRE LTD,3179893,17/06/2015,50313,295,0,Safe's key pad,Consultancy,150000
South Lakeland District Council,http://opendatacommunities.org/id/district-council/south-lakeland,30/06/2015,Social Enterprise Admin,Highways & Transport Services,http://opendatacommunities.org/def/concept/finance/sercop/objective/107,EE UK Limited,,17/06/2015,50314,164.23,0,19 sims sharing 12GB of data for a total,Street & Traffic Management,350000
South Lakeland District Council,http://opendatacommunities.org/id/district-council/south-lakeland,30/06/2015,Policy & Partnerships,Cultural Environmental Regulatory & Planning Services,http://opendatacommunities.org/def/concept/finance/sercop/objective/104,CUMBRIA COUNTY COUNCIL,,17/06/2015,50315,400,0,A new Grit Bin and to be done within a,Financial Services,200000
South Lakeland District Council,http://opendatacommunities.org/id/district-council/south-lakeland,30/06/2015,Financial Services,Central Services,http://opendatacommunities.org/def/concept/finance/sercop/objective/102,Capita Secure Information Solutions Ltd,1593831,17/06/2015,50316,650,0,Integra 2 test upgrade consultancy,Financial Services,200000
South Lakeland District Council,http://opendatacommunities.org/id/district-council/south-lakeland,30/06/2015,Business Support Community Services,Internal Trading Accounts,,ARCO LIMITED,133804,17/06/2015,50317,41.95,0,Shoes,Clothing,140000
South Lakeland District Council,http://opendatacommunities.org/id/district-council/south-lakeland,30/06/2015,Human Resources,Central Services,http://opendatacommunities.org/def/concept/finance/sercop/objective/102,GBS Corporate Training,6452080,17/06/2015,50318,995,0,Project Management - 11th June 2015,Education,170000
South Lakeland District Council,http://opendatacommunities.org/id/district-council/south-lakeland,30/06/2015,Policy & Partnerships,Cultural Environmental Regulatory & Planning Services,http://opendatacommunities.org/def/concept/finance/sercop/objective/104,GRANTS- MISCELLANEOUS,,17/06/2015,50319,200,0,Defribrillator will be available to the,Financial Services,200000
South Lakeland District Council,http://opendatacommunities.org/id/district-council/south-lakeland,30/06/2015,Policy & Partnerships,Cultural Environmental Regulatory & Planning Services,http://opendatacommunities.org/def/concept/finance/sercop/objective/104,GRANTS- MISCELLANEOUS,,17/06/2015,50320,100,0,Planter and plants outside Windermere,Financial Services,200000
South Lakeland District Council,http://opendatacommunities.org/id/district-council/south-lakeland,30/06/2015,Social Enterprise Admin,Central Services,http://opendatacommunities.org/def/concept/finance/sercop/objective/102,HYGIENE CLEANING SUPPLIES LTD,4753934,22/06/2015,50321,215.97,0,JP38 White paper centre feed roll,Cleaning & Janitorial,130000
South Lakeland District Council,http://opendatacommunities.org/id/district-council/south-lakeland,30/06/2015,Legal Services,Cultural Environmental Regulatory & Planning Services,http://opendatacommunities.org/def/concept/finance/sercop/objective/104,HYGIENE CLEANING SUPPLIES LTD,4753934,17/06/2015,50323,21.04,0,2 x 5 lt. Pearlised hand soap,Cleaning & Janitorial,130000
South Lakeland District Council,http://opendatacommunities.org/id/district-council/south-lakeland,30/06/2015,Legal Services,Cultural Environmental Regulatory & Planning Services,http://opendatacommunities.org/def/concept/finance/sercop/objective/104,HYGIENE CLEANING SUPPLIES LTD,4753934,17/06/2015,50323,21.2,0,2 x 5 lt. Pearlised hand soap,Furniture & Soft Furnishings,210000
South Lakeland District Council,http://opendatacommunities.org/id/district-council/south-lakeland,30/06/2015,Environmental Protection,Cultural Environmental Regulatory & Planning Services,http://opendatacommunities.org/def/concept/finance/sercop/objective/104,CUMBRIA WASTE RECYCLING LTD,3162439,17/06/2015,50324,98.86,0,SLDC Cemetery waster bin emptying April,Environmental Services,180000
South Lakeland District Council,http://opendatacommunities.org/id/district-council/south-lakeland,30/06/2015,Social Enterprise Admin,Central Services,http://opendatacommunities.org/def/concept/finance/sercop/objective/102,CUMBRIA WASTE RECYCLING LTD,3162439,22/06/2015,50325,31.12,0,Langstane House 360ltr wheelie bin,Environmental Services,180000
South Lakeland District Council,http://opendatacommunities.org/id/district-council/south-lakeland,30/06/2015,Environmental Protection,Cultural Environmental Regulatory & Planning Services,http://opendatacommunities.org/def/concept/finance/sercop/objective/104,CUMBRIA WASTE RECYCLING LTD,3162439,22/06/2015,50326,48.33,0,SLDC Cemetery waster bin emptying April,Environmental Services,180000
South Lakeland District Council,http://opendatacommunities.org/id/district-council/south-lakeland,30/06/2015,Environmental Protection,Cultural Environmental Regulatory & Planning Services,http://opendatacommunities.org/def/concept/finance/sercop/objective/104,CUMBRIA WASTE RECYCLING LTD,3162439,22/06/2015,50327,58.81,0,SLDC Cemetery waster bin emptying April,Environmental Services,180000
South Lakeland District Council,http://opendatacommunities.org/id/district-council/south-lakeland,30/06/2015,Coronation Hall,Cultural Environmental Regulatory & Planning Services,http://opendatacommunities.org/def/concept/finance/sercop/objective/104,CUMBRIA WASTE RECYCLING LTD,3162439,17/06/2015,50328,90.86,0,"Emptying of skips from Coronation Hall,",Environmental Services,180000
South Lakeland District Council,http://opendatacommunities.org/id/district-council/south-lakeland,30/06/2015,Environmental Protection,Cultural Environmental Regulatory & Planning Services,http://opendatacommunities.org/def/concept/finance/sercop/objective/104,CUMBRIA WASTE RECYCLING LTD,3162439,22/06/2015,50329,62.24,0,SLDC Cemetery waster bin emptying April,Environmental Services,180000
South Lakeland District Council,http://opendatacommunities.org/id/district-council/south-lakeland,30/06/2015,Lake Wardens,Cultural Environmental Regulatory & Planning Services,http://opendatacommunities.org/def/concept/finance/sercop/objective/104,CUMBRIA WASTE RECYCLING LTD,3162439,29/06/2015,50330,224.28,0,Emptying of Refuse Wheelie Bins held at,Environmental Services,180000
South Lakeland District Council,http://opendatacommunities.org/id/district-council/south-lakeland,30/06/2015,Coronation Hall,External Trading Accounts,,CUMBRIA WASTE RECYCLING LTD,3162439,17/06/2015,50331,495.38,0,"Emptying of skips from Market Hall,",Environmental Services,180000
South Lakeland District Council,http://opendatacommunities.org/id/district-council/south-lakeland,30/06/2015,Environmental Protection,Cultural Environmental Regulatory & Planning Services,http://opendatacommunities.org/def/concept/finance/sercop/objective/104,CUMBRIA WASTE RECYCLING LTD,3162439,22/06/2015,50332,79.64,0,SLDC Cemetery waster bin emptying April,Environmental Services,180000
South Lakeland District Council,http://opendatacommunities.org/id/district-council/south-lakeland,30/06/2015,Social Enterprise Admin,Central Services,http://opendatacommunities.org/def/concept/finance/sercop/objective/102,CUMBRIA WASTE RECYCLING LTD,3162439,22/06/2015,50333,220.02,0,SLH wheelie bin and skip emptying,Environmental Services,180000
South Lakeland District Council,http://opendatacommunities.org/id/district-council/south-lakeland,30/06/2015,Kendal Town Hall,Cultural Environmental Regulatory & Planning Services,http://opendatacommunities.org/def/concept/finance/sercop/objective/104,CUMBRIA WASTE RECYCLING LTD,3162439,22/06/2015,50334,156.75,0,Weekly collection of the bins at Kendal,Environmental Services,180000
South Lakeland District Council,http://opendatacommunities.org/id/district-council/south-lakeland,30/06/2015,Environmental Protection,Cultural Environmental Regulatory & Planning Services,http://opendatacommunities.org/def/concept/finance/sercop/objective/104,CUMBRIA WASTE RECYCLING LTD,3162439,22/06/2015,50335,27.32,0,SLDC Cemetery waster bin emptying April,Environmental Services,180000
South Lakeland District Council,http://opendatacommunities.org/id/district-council/south-lakeland,30/06/2015,Social Enterprise Admin,Highways & Transport Services,http://opendatacommunities.org/def/concept/finance/sercop/objective/107,CUMBRIA WASTE RECYCLING LTD,3162439,22/06/2015,50336,57.22,0,Westmorland Multi-Storey 660ltr wheelie,Environmental Services,180000
South Lakeland District Council,http://opendatacommunities.org/id/district-council/south-lakeland,30/06/2015,Environmental Protection,Cultural Environmental Regulatory & Planning Services,http://opendatacommunities.org/def/concept/finance/sercop/objective/104,CUMBRIA WASTE RECYCLING LTD,3162439,22/06/2015,50337,31.12,0,SLDC Cemetery waster bin emptying April,Environmental Services,180000
South Lakeland District Council,http://opendatacommunities.org/id/district-council/south-lakeland,30/06/2015,Lake Wardens,Cultural Environmental Regulatory & Planning Services,http://opendatacommunities.org/def/concept/finance/sercop/objective/104,CUMBRIA WASTE RECYCLING LTD,3162439,29/06/2015,50338,202.4,0,Emptying of Refuse Wheelie Bins held at,Environmental Services,180000
South Lakeland District Council,http://opendatacommunities.org/id/district-council/south-lakeland,30/06/2015,Human Resources,Central Services,http://opendatacommunities.org/def/concept/finance/sercop/objective/102,SOUTH LAKES HOUSING,IP031419,17/06/2015,50339,90,0,working safely for 12 people,Education,170000
South Lakeland District Council,http://opendatacommunities.org/id/district-council/south-lakeland,30/06/2015,Revenues and Benefits,Central Services,http://opendatacommunities.org/def/concept/finance/sercop/objective/102,MERITEC LTD,3224622,17/06/2015,50340,418.5,0,2015 -2016 RAB Processing Contract and,Consultancy,150000
South Lakeland District Council,http://opendatacommunities.org/id/district-council/south-lakeland,30/06/2015,Revenues and Benefits,SLDC as Agent,,ROYAL MAIL GROUP PLC,,17/06/2015,50341,1883.13,0,2015-2016 Postal Charges a/c 0198123013,Financial Services,200000
South Lakeland District Council,http://opendatacommunities.org/id/district-council/south-lakeland,30/06/2015,Revenues and Benefits,SLDC as Agent,,ROYAL MAIL GROUP PLC,,17/06/2015,50342,1945.64,0,2015-2016 Postal Charges a/c 0198123013,Financial Services,200000
South Lakeland District Council,http://opendatacommunities.org/id/district-council/south-lakeland,30/06/2015,Policy & Partnerships,Cultural Environmental Regulatory & Planning Services,http://opendatacommunities.org/def/concept/finance/sercop/objective/104,BEETHAM PARISH COUNCIL,,17/06/2015,50343,500,0,The Jubilee Garden. The area needs some,Financial Services,200000
South Lakeland District Council,http://opendatacommunities.org/id/district-council/south-lakeland,30/06/2015,Social Enterprise Admin,Cultural Environmental Regulatory & Planning Services,http://opendatacommunities.org/def/concept/finance/sercop/objective/104,Matchtech,2526418,22/06/2015,50344,1068.19,0,TO SUPPLY DEVELOPMENT CONTROL TEAM,Consultancy,150000
South Lakeland District Council,http://opendatacommunities.org/id/district-council/south-lakeland,30/06/2015,Business Support Community Services,Internal Trading Accounts,,BRIAN ARMISTEAD LTD T/A SINKFALL RECYCLI,4133280,22/06/2015,50345,1701.6,0,Green waste tipping - 2015/16,Environmental Services,180000
South Lakeland District Council,http://opendatacommunities.org/id/district-council/south-lakeland,30/06/2015,Policy & Partnerships,Cultural Environmental Regulatory & Planning Services,http://opendatacommunities.org/def/concept/finance/sercop/objective/104,ACTION WITH COMMUNITIES IN CUMBRIA,,17/06/2015,50346,5000,0,Community Organisations funding 2015-17,Financial Services,200000
South Lakeland District Council,http://opendatacommunities.org/id/district-council/south-lakeland,30/06/2015,Development Implementation,Central Services,http://opendatacommunities.org/def/concept/finance/sercop/objective/102,NPS NORTH WEST LTD,6614601,17/06/2015,50347,38333.33,0,Professional Property Services for,"Works - Construction, Repair & Maintenance",390000
South Lakeland District Council,http://opendatacommunities.org/id/district-council/south-lakeland,30/06/2015,Legal Services,Central Services,http://opendatacommunities.org/def/concept/finance/sercop/objective/102,SEFTON COUNCIL,2832920,22/06/2015,50349,500,0,NW Legal Consortium subscription 2015/16,Legal Services,280000
South Lakeland District Council,http://opendatacommunities.org/id/district-council/south-lakeland,30/06/2015,Policy & Partnerships,Central Services,http://opendatacommunities.org/def/concept/finance/sercop/objective/102,Cumbria Action for Sustainability,6492907,17/06/2015,50350,15000,0,Community Organisations funding 2015-17,Consultancy,150000
South Lakeland District Council,http://opendatacommunities.org/id/district-council/south-lakeland,30/06/2015,Policy & Partnerships,Cultural Environmental Regulatory & Planning Services,http://opendatacommunities.org/def/concept/finance/sercop/objective/104,GRANTS- MISCELLANEOUS,,17/06/2015,50351,600,0,Contribution to a trim trail and larger,Financial Services,200000
South Lakeland District Council,http://opendatacommunities.org/id/district-council/south-lakeland,30/06/2015,Business Support Community Services,Housing Services,http://opendatacommunities.org/def/concept/finance/sercop/objective/108,ADECCO UK LIMITED,593232,22/06/2015,50353,118.4,0,Cleaner for Town View Fields Hostel,Consultancy,150000
South Lakeland District Council,http://opendatacommunities.org/id/district-council/south-lakeland,30/06/2015,Business Support Community Services,Internal Trading Accounts,,ALLSTAR BUSINESS SOLUTIONS LTD (NCR),2631112,01/06/2015,50354,3698.93,0,Fuel to 31/05,Utilities,370000
South Lakeland District Council,http://opendatacommunities.org/id/district-council/south-lakeland,30/06/2015,Business Support Community Services,Internal Trading Accounts,,ALLSTAR BUSINESS SOLUTIONS LTD (NCR),2631112,01/06/2015,50354,220.14,0,Fuel to 31/05,Utilities,370000
South Lakeland District Council,http://opendatacommunities.org/id/district-council/south-lakeland,30/06/2015,Business Support Community Services,Internal Trading Accounts,,ALLSTAR BUSINESS SOLUTIONS LTD (NCR),2631112,01/06/2015,50354,12967.02,0,Fuel to 31/05,Utilities,370000
South Lakeland District Council,http://opendatacommunities.org/id/district-council/south-lakeland,30/06/2015,Business Support Community Services,Internal Trading Accounts,,ALAN MYERSCOUGH LTD,2027076,17/06/2015,50355,1449.16,0,Repair PX63 XEB,Vehicle Management,380000
South Lakeland District Council,http://opendatacommunities.org/id/district-council/south-lakeland,30/06/2015,Business Support Community Services,Internal Trading Accounts,,M G D LTD,,17/06/2015,50356,35,0,MOTs 01/04/15 - 31/03/16,Vehicle Management,380000
South Lakeland District Council,http://opendatacommunities.org/id/district-council/south-lakeland,30/06/2015,Policy & Partnerships,Cultural Environmental Regulatory & Planning Services,http://opendatacommunities.org/def/concept/finance/sercop/objective/104,GRANTS- MISCELLANEOUS,,17/06/2015,50357,1000,0,Transform old tennis court into,Financial Services,200000
South Lakeland District Council,http://opendatacommunities.org/id/district-council/south-lakeland,30/06/2015,Democratic Services,Central Services,http://opendatacommunities.org/def/concept/finance/sercop/objective/102,VODAFONE LIMITED,1471587,17/06/2015,50358,4625,0,Vodafone order - SM and BE,Utilities,370000
South Lakeland District Council,http://opendatacommunities.org/id/district-council/south-lakeland,30/06/2015,Democratic Services,Central Services,http://opendatacommunities.org/def/concept/finance/sercop/objective/102,VODAFONE LIMITED,1471587,17/06/2015,50359,3500,0,Vodafone order - SM and BE,Utilities,370000
South Lakeland District Council,http://opendatacommunities.org/id/district-council/south-lakeland,30/06/2015,Democratic Services,Central Services,http://opendatacommunities.org/def/concept/finance/sercop/objective/102,VODAFONE LIMITED,1471587,17/06/2015,50360,1870,0,Vodafone order - SM and BE,Utilities,370000
South Lakeland District Council,http://opendatacommunities.org/id/district-council/south-lakeland,30/06/2015,Democratic Services,Central Services,http://opendatacommunities.org/def/concept/finance/sercop/objective/102,VODAFONE LIMITED,1471587,17/06/2015,50361,990,0,Vodafone order - SM and BE,Utilities,370000
South Lakeland District Council,http://opendatacommunities.org/id/district-council/south-lakeland,30/06/2015,Democratic Services,Central Services,http://opendatacommunities.org/def/concept/finance/sercop/objective/102,VODAFONE LIMITED,1471587,17/06/2015,50362,340,0,Vodafone order - SM and BE,Utilities,370000
South Lakeland District Council,http://opendatacommunities.org/id/district-council/south-lakeland,30/06/2015,Democratic Services,Central Services,http://opendatacommunities.org/def/concept/finance/sercop/objective/102,VODAFONE LIMITED,1471587,17/06/2015,50363,210,0,Vodafone order - SM and BE,Utilities,370000
South Lakeland District Council,http://opendatacommunities.org/id/district-council/south-lakeland,30/06/2015,Democratic Services,Central Services,http://opendatacommunities.org/def/concept/finance/sercop/objective/102,VODAFONE LIMITED,1471587,17/06/2015,50364,275,0,Vodafone order - SM and BE,Utilities,370000
South Lakeland District Council,http://opendatacommunities.org/id/district-council/south-lakeland,30/06/2015,Democratic Services,Central Services,http://opendatacommunities.org/def/concept/finance/sercop/objective/102,VODAFONE LIMITED,1471587,17/06/2015,50365,55,0,Vodafone order - SM and BE,Utilities,370000
South Lakeland District Council,http://opendatacommunities.org/id/district-council/south-lakeland,30/06/2015,Democratic Services,Central Services,http://opendatacommunities.org/def/concept/finance/sercop/objective/102,VODAFONE LIMITED,1471587,17/06/2015,50366,55,0,Vodafone order - SM and BE,Utilities,370000
South Lakeland District Council,http://opendatacommunities.org/id/district-council/south-lakeland,30/06/2015,Democratic Services,Central Services,http://opendatacommunities.org/def/concept/finance/sercop/objective/102,VODAFONE LIMITED,1471587,17/06/2015,50367,55,0,Vodafone order - SM and BE,Utilities,370000
South Lakeland District Council,http://opendatacommunities.org/id/district-council/south-lakeland,30/06/2015,Democratic Services,Central Services,http://opendatacommunities.org/def/concept/finance/sercop/objective/102,VODAFONE LIMITED,1471587,17/06/2015,50368,1595,0,Vodafone order - SM and BE,Utilities,370000
South Lakeland District Council,http://opendatacommunities.org/id/district-council/south-lakeland,30/06/2015,Democratic Services,Central Services,http://opendatacommunities.org/def/concept/finance/sercop/objective/102,VODAFONE LIMITED,1471587,17/06/2015,50369,1375,0,Vodafone order - SM and BE,Utilities,370000
South Lakeland District Council,http://opendatacommunities.org/id/district-council/south-lakeland,30/06/2015,Democratic Services,Central Services,http://opendatacommunities.org/def/concept/finance/sercop/objective/102,VODAFONE LIMITED,1471587,17/06/2015,50370,165,0,Vodafone order - SM and BE,Utilities,370000
South Lakeland District Council,http://opendatacommunities.org/id/district-council/south-lakeland,30/06/2015,Democratic Services,Central Services,http://opendatacommunities.org/def/concept/finance/sercop/objective/102,VODAFONE LIMITED,1471587,17/06/2015,50371,70,0,Vodafone order - SM and BE,Utilities,370000
South Lakeland District Council,http://opendatacommunities.org/id/district-council/south-lakeland,30/06/2015,Human Resources,Central Services,http://opendatacommunities.org/def/concept/finance/sercop/objective/102,NORTH WEST EMPLOYERS,,17/06/2015,50376,1253,0,Optimising Income Generation 08/07/2015,Education,170000
South Lakeland District Council,http://opendatacommunities.org/id/district-council/south-lakeland,30/06/2015,Human Resources,Central Services,http://opendatacommunities.org/def/concept/finance/sercop/objective/102,SPECSAVERS,2604077,17/06/2015,50377,68,0,VDU Eye test for employees,Healthcare,310000
South Lakeland District Council,http://opendatacommunities.org/id/district-council/south-lakeland,30/06/2015,Coronation Hall,External Trading Accounts,,Morson International,,17/06/2015,50379,119.28,0,Ulverston Market Hall cleaner to y/e 31,Consultancy,150000
South Lakeland District Council,http://opendatacommunities.org/id/district-council/south-lakeland,30/06/2015,Development Implementation,Cultural Environmental Regulatory & Planning Services,http://opendatacommunities.org/def/concept/finance/sercop/objective/104,MASON OWEN,2936041,22/06/2015,50380,3611.01,0,"Housing of CCTV system at WSC, Kendal -",Financial Services,200000
South Lakeland District Council,http://opendatacommunities.org/id/district-council/south-lakeland,30/06/2015,Social Enterprise Admin,Cultural Environmental Regulatory & Planning Services,http://opendatacommunities.org/def/concept/finance/sercop/objective/104,R J MOORHOUSE WELDING & FABRICATIONS,,22/06/2015,50382,1723.65,0,Replace stairs on sky town tower Grange,Sports & Playground Equipment & Maintenance,330000
South Lakeland District Council,http://opendatacommunities.org/id/district-council/south-lakeland,30/06/2015,Social Enterprise Admin,Cultural Environmental Regulatory & Planning Services,http://opendatacommunities.org/def/concept/finance/sercop/objective/104,FURNESS NEWSPAPERS LTD,1155841,22/06/2015,50383,103.6,0,PUBLIC NOTICES FOR PLANNING 1 APRIL 2015,Facilities & Management Services,190000
South Lakeland District Council,http://opendatacommunities.org/id/district-council/south-lakeland,30/06/2015,Business Support Community Services,Internal Trading Accounts,,ATV CONTRACT SERVICES,,29/06/2015,50384,8487.5,0,Weed Spraying,Facilities & Management Services,190000
South Lakeland District Council,http://opendatacommunities.org/id/district-council/south-lakeland,30/06/2015,Development Implementation,Central Services,http://opendatacommunities.org/def/concept/finance/sercop/objective/102,NPS NORTH WEST LTD,6614601,22/06/2015,50385,1160,0,Asbestos Management Plan,"Works - Construction, Repair & Maintenance",390000
South Lakeland District Council,http://opendatacommunities.org/id/district-council/south-lakeland,30/06/2015,Development Implementation,Central Services,http://opendatacommunities.org/def/concept/finance/sercop/objective/102,NPS NORTH WEST LTD,6614601,22/06/2015,50386,2146,0,Green Energy Reports,"Works - Construction, Repair & Maintenance",390000
South Lakeland District Council,http://opendatacommunities.org/id/district-council/south-lakeland,30/06/2015,Business Support Community Services,Internal Trading Accounts,,BRIAN ARMISTEAD LTD T/A SINKFALL RECYCLI,4133280,29/06/2015,50387,1456.8,0,Green waste tipping - 2015/16,Environmental Services,180000
South Lakeland District Council,http://opendatacommunities.org/id/district-council/south-lakeland,30/06/2015,Social Enterprise Admin,Cultural Environmental Regulatory & Planning Services,http://opendatacommunities.org/def/concept/finance/sercop/objective/104,NETWORK RAIL COMMERCIAL PROPERTY,,18/06/2015,50394,46.21,0,Kents Bank - Privilege of Footpath,Financial Services,200000
South Lakeland District Council,http://opendatacommunities.org/id/district-council/south-lakeland,30/06/2015,Revenues and Benefits,Central Services,http://opendatacommunities.org/def/concept/finance/sercop/objective/102,HER MAJESTY'S COURTS & TRIBUNAL SERVICE,,22/06/2015,50395,492,0,2015-2016 Council Tax Service,Legal Services,280000
South Lakeland District Council,http://opendatacommunities.org/id/district-council/south-lakeland,30/06/2015,Revenues and Benefits,Central Services,http://opendatacommunities.org/def/concept/finance/sercop/objective/102,HER MAJESTY'S COURTS & TRIBUNAL SERVICE,,22/06/2015,50395,3480,0,2015-2016 Council Tax Service,Legal Services,280000
South Lakeland District Council,http://opendatacommunities.org/id/district-council/south-lakeland,30/06/2015,Business Support Community Services,Internal Trading Accounts,,PIER 1 METALWORKS LTD,4291520,22/06/2015,50396,65,0,Repair stillage,Vehicle Management,380000
South Lakeland District Council,http://opendatacommunities.org/id/district-council/south-lakeland,30/06/2015,Business Support Community Services,Cultural Environmental Regulatory & Planning Services,http://opendatacommunities.org/def/concept/finance/sercop/objective/104,CUMBRIA WASTE RECYCLING LTD,3162439,22/06/2015,50397,58,0,"Delivery of 1st skip to Scrogg Bank,",Facilities & Management Services,190000
South Lakeland District Council,http://opendatacommunities.org/id/district-council/south-lakeland,30/06/2015,Business Support Community Services,Cultural Environmental Regulatory & Planning Services,http://opendatacommunities.org/def/concept/finance/sercop/objective/104,CUMBRIA WASTE RECYCLING LTD,3162439,22/06/2015,50398,58,0,Delivery of 1st skip to Rawthey Bridge,Facilities & Management Services,190000
South Lakeland District Council,http://opendatacommunities.org/id/district-council/south-lakeland,30/06/2015,Business Support Community Services,Cultural Environmental Regulatory & Planning Services,http://opendatacommunities.org/def/concept/finance/sercop/objective/104,CUMBRIA WASTE RECYCLING LTD,3162439,22/06/2015,50399,58,0,Delivery of 1st skip to Middleton Common,Facilities & Management Services,190000
South Lakeland District Council,http://opendatacommunities.org/id/district-council/south-lakeland,30/06/2015,Business Support Community Services,Cultural Environmental Regulatory & Planning Services,http://opendatacommunities.org/def/concept/finance/sercop/objective/104,CUMBRIA WASTE RECYCLING LTD,3162439,22/06/2015,50400,58,0,Delivery of 1st skip to Devils Bridge,Facilities & Management Services,190000
South Lakeland District Council,http://opendatacommunities.org/id/district-council/south-lakeland,30/06/2015,Business Support Community Services,Internal Trading Accounts,,CUMBRIA WASTE RECYCLING LTD,3162439,22/06/2015,50401,1210.08,0,Skip emptying at Ecclerigg & Ulverston,Environmental Services,180000
South Lakeland District Council,http://opendatacommunities.org/id/district-council/south-lakeland,30/06/2015,Business Support Community Services,Internal Trading Accounts,,CUMBRIA WASTE RECYCLING LTD,3162439,22/06/2015,50402,324,0,Skip emptying at Ecclerigg & Ulverston,Environmental Services,180000
South Lakeland District Council,http://opendatacommunities.org/id/district-council/south-lakeland,30/06/2015,Business Support Community Services,Internal Trading Accounts,,M G D LTD,,22/06/2015,50403,35,0,MOTs 01/04/15 - 31/03/16,Vehicle Management,380000
South Lakeland District Council,http://opendatacommunities.org/id/district-council/south-lakeland,30/06/2015,Business Support Community Services,Central Services,http://opendatacommunities.org/def/concept/finance/sercop/objective/102,EPIC Media Group Ltd,4914098,22/06/2015,50404,1895,0,Provide livery for Romaquip recycling,Vehicle Management,380000
South Lakeland District Council,http://opendatacommunities.org/id/district-council/south-lakeland,30/06/2015,Business Support Community Services,Internal Trading Accounts,,ARCO LIMITED,133804,22/06/2015,50405,195,0,PPE 2015/16,Clothing,140000
South Lakeland District Council,http://opendatacommunities.org/id/district-council/south-lakeland,30/06/2015,Human Resources,Cultural Environmental Regulatory & Planning Services,http://opendatacommunities.org/def/concept/finance/sercop/objective/104,FURNESS NEWSPAPERS LTD,1155841,22/06/2015,50407,1190,0,Adverts for Box Office Assistant and,Facilities & Management Services,190000
South Lakeland District Council,http://opendatacommunities.org/id/district-council/south-lakeland,30/06/2015,Legal Services,Central Services,http://opendatacommunities.org/def/concept/finance/sercop/objective/102,Sellick Partnership Group Ltd,4156002,17/06/2015,50408,850.5,0,Wages for w/k,Consultancy,150000
South Lakeland District Council,http://opendatacommunities.org/id/district-council/south-lakeland,30/06/2015,Human Resources,Central Services,http://opendatacommunities.org/def/concept/finance/sercop/objective/102,RIVERBANK HOSPITALITY CATERING,,22/06/2015,50409,47.5,0,1x Traditional Tastes buffet for 10,Consultancy,150000
South Lakeland District Council,http://opendatacommunities.org/id/district-council/south-lakeland,30/06/2015,Business Support Community Services,Internal Trading Accounts,,STAGECOACH NORTHWEST,,22/06/2015,50410,75,0,Steam cleaning 01/04/15 - 31/03/16,Vehicle Management,380000
South Lakeland District Council,http://opendatacommunities.org/id/district-council/south-lakeland,30/06/2015,Business Support Community Services,Internal Trading Accounts,,Masterstaff Limited,2777593,17/06/2015,50411,1198.8,0,Agency staff - May 2015,Consultancy,150000
South Lakeland District Council,http://opendatacommunities.org/id/district-council/south-lakeland,30/06/2015,Business Support Community Services,Internal Trading Accounts,,Masterstaff Limited,2777593,17/06/2015,50412,290.48,0,Agency staff - May 2015,Consultancy,150000
South Lakeland District Council,http://opendatacommunities.org/id/district-council/south-lakeland,30/06/2015,Business Support Community Services,Internal Trading Accounts,,Masterstaff Limited,2777593,17/06/2015,50413,1665.18,0,Agency staff - June 2015,Consultancy,150000
South Lakeland District Council,http://opendatacommunities.org/id/district-council/south-lakeland,30/06/2015,Business Support Community Services,Internal Trading Accounts,,AINSWORTH'S GARAGE,,22/06/2015,50414,162.5,0,Puncture repair,Vehicle Management,380000
South Lakeland District Council,http://opendatacommunities.org/id/district-council/south-lakeland,30/06/2015,Business Support Community Services,Internal Trading Accounts,,AINSWORTH'S GARAGE,,22/06/2015,50415,16,0,Puncture repair,Vehicle Management,380000
South Lakeland District Council,http://opendatacommunities.org/id/district-council/south-lakeland,30/06/2015,Business Support Community Services,Internal Trading Accounts,,FAUN ZOELLER (UK) LTD,751804,22/06/2015,50416,79.2,0,Lever,Vehicle Management,380000
South Lakeland District Council,http://opendatacommunities.org/id/district-council/south-lakeland,30/06/2015,Business Support Community Services,Internal Trading Accounts,,DENNIS EAGLE LTD,3794455,22/06/2015,50417,3.23,0,Link rod,Vehicle Management,380000
South Lakeland District Council,http://opendatacommunities.org/id/district-council/south-lakeland,30/06/2015,Business Support Community Services,Internal Trading Accounts,,HAKO MACHINES LIMITED,1414225,22/06/2015,50418,67.78,0,Hose,Vehicle Management,380000
South Lakeland District Council,http://opendatacommunities.org/id/district-council/south-lakeland,30/06/2015,Revenues and Benefits,Central Services,http://opendatacommunities.org/def/concept/finance/sercop/objective/102,BADENOCH & CLARK,1356186,17/06/2015,50422,500.06,0,Revs and Bens May 2015,Consultancy,150000
South Lakeland District Council,http://opendatacommunities.org/id/district-council/south-lakeland,30/06/2015,ICT Group,Central Services,http://opendatacommunities.org/def/concept/finance/sercop/objective/102,NORTHGATE PUBLIC SERVICES (UK) LTD,968498,22/06/2015,50423,467,0,"35 l@w licences with ETD, Case manager &",Information Communication Technology,270000
South Lakeland District Council,http://opendatacommunities.org/id/district-council/south-lakeland,30/06/2015,Business Support Community Services,Housing Services,http://opendatacommunities.org/def/concept/finance/sercop/objective/108,Landlord,,17/06/2015,50424,350,0,Rent in advance ,Social Community Care Supplies & Services,410000
South Lakeland District Council,http://opendatacommunities.org/id/district-council/south-lakeland,30/06/2015,Business Support Community Services,Housing Services,http://opendatacommunities.org/def/concept/finance/sercop/objective/108,Landlord,,17/06/2015,50425,890,0,Monthly rent ,Social Community Care Supplies & Services,410000
South Lakeland District Council,http://opendatacommunities.org/id/district-council/south-lakeland,30/06/2015,Business Support Community Services,Housing Services,http://opendatacommunities.org/def/concept/finance/sercop/objective/108,Landlord,,17/06/2015,50426,1190,0,Monthly rent ,Social Community Care Supplies & Services,410000
South Lakeland District Council,http://opendatacommunities.org/id/district-council/south-lakeland,30/06/2015,Business Support Community Services,Housing Services,http://opendatacommunities.org/def/concept/finance/sercop/objective/108,Landlord,8672920,17/06/2015,50427,400,0,Monthly rent ,Social Community Care Supplies & Services,410000
South Lakeland District Council,http://opendatacommunities.org/id/district-council/south-lakeland,30/06/2015,Business Support Community Services,Housing Services,http://opendatacommunities.org/def/concept/finance/sercop/objective/108,Landlord,,17/06/2015,50428,520,0,Monthly rent ,Social Community Care Supplies & Services,410000
South Lakeland District Council,http://opendatacommunities.org/id/district-council/south-lakeland,30/06/2015,Business Support Community Services,Internal Trading Accounts,,Masterstaff Limited,2777593,22/06/2015,50430,1641.83,0,Agency staff - May 2015,Consultancy,150000
South Lakeland District Council,http://opendatacommunities.org/id/district-council/south-lakeland,30/06/2015,Business Support Community Services,Internal Trading Accounts,,K S INTERNATIONAL LTD,2703321,22/06/2015,50431,130,0,Switch,Vehicle Management,380000
South Lakeland District Council,http://opendatacommunities.org/id/district-council/south-lakeland,30/06/2015,Business Support Community Services,Internal Trading Accounts,,Harry Park Tyres Ltd,8131208,22/06/2015,50432,25,0,Tyres,Vehicle Management,380000
South Lakeland District Council,http://opendatacommunities.org/id/district-council/south-lakeland,30/06/2015,Business Support Community Services,Internal Trading Accounts,,FAUN ZOELLER (UK) LTD,751804,22/06/2015,50433,79.2,0,Lever,Vehicle Management,380000
South Lakeland District Council,http://opendatacommunities.org/id/district-council/south-lakeland,30/06/2015,Business Support Community Services,Internal Trading Accounts,,Harry Park Tyres Ltd,8131208,22/06/2015,50434,25,0,Tyres,Vehicle Management,380000
South Lakeland District Council,http://opendatacommunities.org/id/district-council/south-lakeland,30/06/2015,Business Support Community Services,Internal Trading Accounts,,HYDRAIR TRUCK & TRAILER PARTS LTD,,22/06/2015,50435,229.6,0,Pads,Vehicle Management,380000
South Lakeland District Council,http://opendatacommunities.org/id/district-council/south-lakeland,30/06/2015,Business Support Community Services,Internal Trading Accounts,,K S INTERNATIONAL LTD,2703321,22/06/2015,50436,333,0,Switch,Vehicle Management,380000
South Lakeland District Council,http://opendatacommunities.org/id/district-council/south-lakeland,30/06/2015,Business Support Community Services,Internal Trading Accounts,,EK MOTOR FACTORS LTD,838524,22/06/2015,50437,91.8,0,Batteries,Vehicle Management,380000
South Lakeland District Council,http://opendatacommunities.org/id/district-council/south-lakeland,30/06/2015,Business Support Community Services,Internal Trading Accounts,,K S INTERNATIONAL LTD,2703321,22/06/2015,50438,100,0,Switch,Vehicle Management,380000
South Lakeland District Council,http://opendatacommunities.org/id/district-council/south-lakeland,30/06/2015,Business Support Community Services,Internal Trading Accounts,,K S INTERNATIONAL LTD,2703321,22/06/2015,50439,55,0,Switch,Vehicle Management,380000
South Lakeland District Council,http://opendatacommunities.org/id/district-council/south-lakeland,30/06/2015,Business Support Community Services,Internal Trading Accounts,,Harry Park Tyres Ltd,8131208,22/06/2015,50440,2899.7,0,Tyres,Vehicle Management,380000
South Lakeland District Council,http://opendatacommunities.org/id/district-council/south-lakeland,30/06/2015,Business Support Community Services,Internal Trading Accounts,,Harry Park Tyres Ltd,8131208,22/06/2015,50441,165,0,Tyres,Vehicle Management,380000
South Lakeland District Council,http://opendatacommunities.org/id/district-council/south-lakeland,30/06/2015,Business Support Community Services,Internal Trading Accounts,,ARCO LIMITED,133804,22/06/2015,50442,25.97,0,PPE 2015/16,Clothing,140000
South Lakeland District Council,http://opendatacommunities.org/id/district-council/south-lakeland,30/06/2015,Business Support Community Services,Transport Planning Policy,http://opendatacommunities.org/def/concept/finance/sercop/objective/107,ARCO LIMITED,133804,22/06/2015,50443,6.74,0,PPE 2015/16,Cleaning & Janitorial,130000
South Lakeland District Council,http://opendatacommunities.org/id/district-council/south-lakeland,30/06/2015,Business Support Community Services,Internal Trading Accounts,,ARCO LIMITED,133804,22/06/2015,50443,828.75,0,PPE 2015/16,Clothing,140000
South Lakeland District Council,http://opendatacommunities.org/id/district-council/south-lakeland,30/06/2015,Business Support Community Services,Internal Trading Accounts,,ARCO LIMITED,133804,22/06/2015,50443,3.16,0,PPE 2015/16,Furniture & Soft Furnishings,210000
South Lakeland District Council,http://opendatacommunities.org/id/district-council/south-lakeland,30/06/2015,Business Support Community Services,Internal Trading Accounts,,ARCO LIMITED,133804,22/06/2015,50443,45.44,0,PPE 2015/16,Clothing,140000
South Lakeland District Council,http://opendatacommunities.org/id/district-council/south-lakeland,30/06/2015,Business Support Community Services,Transport Planning Policy,http://opendatacommunities.org/def/concept/finance/sercop/objective/107,ARCO LIMITED,133804,22/06/2015,50444,10.88,0,PPE 2015/16,Cleaning & Janitorial,130000
South Lakeland District Council,http://opendatacommunities.org/id/district-council/south-lakeland,30/06/2015,Business Support Community Services,Internal Trading Accounts,,K S INTERNATIONAL LTD,2703321,22/06/2015,50445,80,0,Switch,Vehicle Management,380000
South Lakeland District Council,http://opendatacommunities.org/id/district-council/south-lakeland,30/06/2015,Business Support Community Services,Internal Trading Accounts,,HYDRAIR TRUCK & TRAILER PARTS LTD,,22/06/2015,50446,177.05,0,Pads,Vehicle Management,380000
South Lakeland District Council,http://opendatacommunities.org/id/district-council/south-lakeland,30/06/2015,Business Support Community Services,Internal Trading Accounts,,Harry Park Tyres Ltd,8131208,22/06/2015,50447,25,0,Tyres,Vehicle Management,380000
South Lakeland District Council,http://opendatacommunities.org/id/district-council/south-lakeland,30/06/2015,Business Support Community Services,Internal Trading Accounts,,SOLWAY DAF,1393710,22/06/2015,50448,354.43,0,Collar,Vehicle Management,380000
South Lakeland District Council,http://opendatacommunities.org/id/district-council/south-lakeland,30/06/2015,Business Support Community Services,Internal Trading Accounts,,SOLWAY DAF,1393710,22/06/2015,50449,343.19,0,Collar,Vehicle Management,380000
South Lakeland District Council,http://opendatacommunities.org/id/district-council/south-lakeland,30/06/2015,Business Support Community Services,Internal Trading Accounts,,TAYLOR ENGINEERING & FABRICATIONS LTD,4989359,22/06/2015,50450,294.93,0,Coils,Vehicle Management,380000
South Lakeland District Council,http://opendatacommunities.org/id/district-council/south-lakeland,30/06/2015,Business Support Community Services,Internal Trading Accounts,,DENNIS EAGLE LTD,3794455,22/06/2015,50451,14.64,0,Link rod,Vehicle Management,380000
South Lakeland District Council,http://opendatacommunities.org/id/district-council/south-lakeland,30/06/2015,Business Support Community Services,Internal Trading Accounts,,DENNIS EAGLE LTD,3794455,22/06/2015,50452,10.55,0,Link rod,Vehicle Management,380000
South Lakeland District Council,http://opendatacommunities.org/id/district-council/south-lakeland,30/06/2015,Business Support Community Services,Internal Trading Accounts,,RIBBLESDALE AUTO ELECTRICS 1992 LTD,2732686,22/06/2015,50453,46.5,0,Lamps,Vehicle Management,380000
South Lakeland District Council,http://opendatacommunities.org/id/district-council/south-lakeland,30/06/2015,Business Support Community Services,Internal Trading Accounts,,RIBBLESDALE AUTO ELECTRICS 1992 LTD,2732686,22/06/2015,50454,113.5,0,Lamps,Vehicle Management,380000
South Lakeland District Council,http://opendatacommunities.org/id/district-council/south-lakeland,30/06/2015,Business Support Community Services,Internal Trading Accounts,,RIBBLESDALE AUTO ELECTRICS 1992 LTD,2732686,22/06/2015,50455,60,0,Lamps,Vehicle Management,380000
South Lakeland District Council,http://opendatacommunities.org/id/district-council/south-lakeland,30/06/2015,Business Support Community Services,Internal Trading Accounts,,RIBBLESDALE AUTO ELECTRICS 1992 LTD,2732686,22/06/2015,50456,65.8,0,Lamps,Vehicle Management,380000
South Lakeland District Council,http://opendatacommunities.org/id/district-council/south-lakeland,30/06/2015,Business Support Community Services,Internal Trading Accounts,,RIBBLESDALE AUTO ELECTRICS 1992 LTD,2732686,22/06/2015,50457,15.03,0,Lamps,Vehicle Management,380000
South Lakeland District Council,http://opendatacommunities.org/id/district-council/south-lakeland,30/06/2015,Legal Services,Central Services,http://opendatacommunities.org/def/concept/finance/sercop/objective/102,NO 5 CHAMBERS,2727465,24/06/2015,50458,3350,0,Fees  in respect of 'Cocklea',Legal Services,280000
South Lakeland District Council,http://opendatacommunities.org/id/district-council/south-lakeland,30/06/2015,Printing Section,Central Services,http://opendatacommunities.org/def/concept/finance/sercop/objective/102,ROSEFOX PAPER LIMITED,1655083,22/06/2015,50460,167.98,0,1 box of canary yellow A4 80gsm,Stationery,340000
South Lakeland District Council,http://opendatacommunities.org/id/district-council/south-lakeland,30/06/2015,Electoral Services,Central Services,http://opendatacommunities.org/def/concept/finance/sercop/objective/102,P & W CONFIDENTIAL BUSINESS SERVICES LTD,,22/06/2015,50461,9.87,0,Removal and secure storage and disposal,Stationery,340000
South Lakeland District Council,http://opendatacommunities.org/id/district-council/south-lakeland,30/06/2015,Electoral Services,Central Services,http://opendatacommunities.org/def/concept/finance/sercop/objective/102,P & W CONFIDENTIAL BUSINESS SERVICES LTD,,22/06/2015,50461,15.88,0,Removal and secure storage and disposal,Stationery,340000
South Lakeland District Council,http://opendatacommunities.org/id/district-council/south-lakeland,30/06/2015,Social Enterprise Admin,Cultural Environmental Regulatory & Planning Services,http://opendatacommunities.org/def/concept/finance/sercop/objective/104,HAGS-SMP Ltd,908021,22/06/2015,50462,1155,0,HDPE 18mm thick 2 colour laminate in,Sports & Playground Equipment & Maintenance,330000
South Lakeland District Council,http://opendatacommunities.org/id/district-council/south-lakeland,30/06/2015,Development Implementation,Central Services,http://opendatacommunities.org/def/concept/finance/sercop/objective/102,MEDIA FRIENDLY LTD,3569979,22/06/2015,50463,1690,0,Media Interview Skills Workshop -,Education,170000
South Lakeland District Council,http://opendatacommunities.org/id/district-council/south-lakeland,30/06/2015,ICT Group,Central Services,http://opendatacommunities.org/def/concept/finance/sercop/objective/102,NORTHGATE PUBLIC SERVICES (UK) LTD,968498,22/06/2015,50464,233.87,0,Adlib Express DTF Annual Support,Information Communication Technology,270000
South Lakeland District Council,http://opendatacommunities.org/id/district-council/south-lakeland,30/06/2015,Business Support Community Services,Housing Services,http://opendatacommunities.org/def/concept/finance/sercop/objective/108,James Andrews Recruitment Solutions,6834852,22/06/2015,50465,925,0,Payment for - Housing,Consultancy,150000
South Lakeland District Council,http://opendatacommunities.org/id/district-council/south-lakeland,30/06/2015,Financial Services,Central Services,http://opendatacommunities.org/def/concept/finance/sercop/objective/102,NORTH WEST EMPLOYERS,,22/06/2015,50467,4488.61,0,2015/16 Subs to associaitons,Financial Services,200000
South Lakeland District Council,http://opendatacommunities.org/id/district-council/south-lakeland,30/06/2015,Business Support Community Services,Internal Trading Accounts,,RIBBLESDALE AUTO ELECTRICS 1992 LTD,2732686,22/06/2015,50468,65.8,0,Lamps,Vehicle Management,380000
South Lakeland District Council,http://opendatacommunities.org/id/district-council/south-lakeland,30/06/2015,Business Support Community Services,Internal Trading Accounts,,RIBBLESDALE AUTO ELECTRICS 1992 LTD,2732686,22/06/2015,50469,46.76,0,Batteries,Vehicle Management,380000
South Lakeland District Council,http://opendatacommunities.org/id/district-council/south-lakeland,30/06/2015,Business Support Community Services,Internal Trading Accounts,,RIBBLESDALE AUTO ELECTRICS 1992 LTD,2732686,22/06/2015,50470,13.84,0,Batteries,Vehicle Management,380000
South Lakeland District Council,http://opendatacommunities.org/id/district-council/south-lakeland,30/06/2015,Business Support Community Services,Internal Trading Accounts,,RIBBLESDALE AUTO ELECTRICS 1992 LTD,2732686,22/06/2015,50471,123.44,0,Batteries,Vehicle Management,380000
South Lakeland District Council,http://opendatacommunities.org/id/district-council/south-lakeland,30/06/2015,Business Support Community Services,Internal Trading Accounts,,RIBBLESDALE AUTO ELECTRICS 1992 LTD,2732686,22/06/2015,50472,38.48,0,Batteries,Vehicle Management,380000
South Lakeland District Council,http://opendatacommunities.org/id/district-council/south-lakeland,30/06/2015,Business Support Community Services,Internal Trading Accounts,,RIBBLESDALE AUTO ELECTRICS 1992 LTD,2732686,22/06/2015,50473,-60,0,Lamps,Vehicle Management,380000
South Lakeland District Council,http://opendatacommunities.org/id/district-council/south-lakeland,30/06/2015,Business Support Community Services,Internal Trading Accounts,,K S INTERNATIONAL LTD,2703321,22/06/2015,50474,40,0,Switch,Vehicle Management,380000
South Lakeland District Council,http://opendatacommunities.org/id/district-council/south-lakeland,30/06/2015,Policy & Partnerships,Cultural Environmental Regulatory & Planning Services,http://opendatacommunities.org/def/concept/finance/sercop/objective/104,SEDBERGH PEOPLE'S HALL,,22/06/2015,50475,18,0,hire of sedbergh peoples hall,Arts & Leisure Services,290000
South Lakeland District Council,http://opendatacommunities.org/id/district-council/south-lakeland,30/06/2015,ICT Group,Central Services,http://opendatacommunities.org/def/concept/finance/sercop/objective/102,NORTHGATE PUBLIC SERVICES (UK) LTD,968498,22/06/2015,50476,612,0,IBS Integration Support 1/4/15 - 31/3/16,Information Communication Technology,270000
South Lakeland District Council,http://opendatacommunities.org/id/district-council/south-lakeland,30/06/2015,Revenues and Benefits,Central Services,http://opendatacommunities.org/def/concept/finance/sercop/objective/102,LOOMIS UK LTD,3200432,22/06/2015,50477,101.53,0,2015-16  Langstone House Surcharge,Mail Services,300000
South Lakeland District Council,http://opendatacommunities.org/id/district-council/south-lakeland,30/06/2015,Revenues and Benefits,Highways & Transport Services,http://opendatacommunities.org/def/concept/finance/sercop/objective/107,LOOMIS UK LTD,3200432,22/06/2015,50477,914.6,0,2015-16  Langstone House Surcharge,Consultancy,150000
South Lakeland District Council,http://opendatacommunities.org/id/district-council/south-lakeland,30/06/2015,Development Management,Cultural Environmental Regulatory & Planning Services,http://opendatacommunities.org/def/concept/finance/sercop/objective/104,SALFORD CITY COUNCIL,,29/06/2015,50478,92,0,Checking work under the Building,Facilities & Management Services,190000
South Lakeland District Council,http://opendatacommunities.org/id/district-council/south-lakeland,30/06/2015,Business Support Community Services,Internal Trading Accounts,,COMPASS COMPONENTS,,29/06/2015,50479,155.54,0,Consumables 01/04/15 - 31/03/16,Cleaning & Janitorial,130000
South Lakeland District Council,http://opendatacommunities.org/id/district-council/south-lakeland,30/06/2015,Business Support Community Services,Internal Trading Accounts,,ARCO LIMITED,133804,22/06/2015,50481,58.2,0,Gloves,Clothing,140000
South Lakeland District Council,http://opendatacommunities.org/id/district-council/south-lakeland,30/06/2015,Business Support Community Services,Internal Trading Accounts,,HAKO MACHINES LIMITED,1414225,22/06/2015,50482,5779.54,0,Hire of KX14 KHP 01/04/15 - 31/03/16,Vehicle Management,380000
South Lakeland District Council,http://opendatacommunities.org/id/district-council/south-lakeland,30/06/2015,Business Support Community Services,Internal Trading Accounts,,HAKO MACHINES LIMITED,1414225,22/06/2015,50483,11559.08,0,Hire of KX14 KHP 01/04/15 - 31/03/16,Vehicle Management,380000
South Lakeland District Council,http://opendatacommunities.org/id/district-council/south-lakeland,30/06/2015,Business Support Community Services,Internal Trading Accounts,,HAKO MACHINES LIMITED,1414225,22/06/2015,50484,4626.7,0,Hire of KX14 KHP 01/04/15 - 31/03/16,Vehicle Management,380000
South Lakeland District Council,http://opendatacommunities.org/id/district-council/south-lakeland,30/06/2015,Business Support Community Services,Internal Trading Accounts,,HAKO MACHINES LIMITED,1414225,22/06/2015,50485,5779.54,0,Hire of KX14 KHP 01/04/15 - 31/03/16,Vehicle Management,380000
South Lakeland District Council,http://opendatacommunities.org/id/district-council/south-lakeland,30/06/2015,Business Support Community Services,Cultural Environmental Regulatory & Planning Services,http://opendatacommunities.org/def/concept/finance/sercop/objective/104,GREEN BROTHERS SIGNS LTD,7433026,22/06/2015,50486,166.15,0,Serpentine Road,Domestic Goods,160000
South Lakeland District Council,http://opendatacommunities.org/id/district-council/south-lakeland,30/06/2015,Business Support Community Services,Cultural Environmental Regulatory & Planning Services,http://opendatacommunities.org/def/concept/finance/sercop/objective/104,CUMBRIA WASTE RECYCLING LTD,3162439,22/06/2015,50487,12017.3,0,Empty recycling banks in 2015/16,Environmental Services,180000
South Lakeland District Council,http://opendatacommunities.org/id/district-council/south-lakeland,30/06/2015,Business Support Community Services,Central Services,http://opendatacommunities.org/def/concept/finance/sercop/objective/102,Weir & Carmichael Ltd,551299,22/06/2015,50488,33382.8,0,Kerbside Recycling Bags,Vehicle Management,380000
South Lakeland District Council,http://opendatacommunities.org/id/district-council/south-lakeland,30/06/2015,Business Support Community Services,Central Services,http://opendatacommunities.org/def/concept/finance/sercop/objective/102,INNOVATIVE SAFETY SYSTEMS LTD,6875015,22/06/2015,50489,3701.18,0,Safety systems,Vehicle Management,380000
South Lakeland District Council,http://opendatacommunities.org/id/district-council/south-lakeland,30/06/2015,Business Support Community Services,Internal Trading Accounts,,FAUN ZOELLER (UK) LTD,751804,22/06/2015,50490,1554,0,Display,Vehicle Management,380000
South Lakeland District Council,http://opendatacommunities.org/id/district-council/south-lakeland,30/06/2015,Business Support Community Services,Internal Trading Accounts,,CUMBRIA TRUCK CENTRE LTD,4298488,22/06/2015,50491,542.75,0,Casing,Vehicle Management,380000
South Lakeland District Council,http://opendatacommunities.org/id/district-council/south-lakeland,30/06/2015,Business Support Community Services,Internal Trading Accounts,,J R RICHARDSON LTD,2225792,22/06/2015,50492,230.91,0,Vehicle washing consumables,Cleaning & Janitorial,130000
South Lakeland District Council,http://opendatacommunities.org/id/district-council/south-lakeland,30/06/2015,Business Support Community Services,Internal Trading Accounts,,RIBBLESDALE AUTO ELECTRICS 1992 LTD,2732686,22/06/2015,50493,175.5,0,Lamps,Vehicle Management,380000
South Lakeland District Council,http://opendatacommunities.org/id/district-council/south-lakeland,30/06/2015,Business Support Community Services,Internal Trading Accounts,,SOLWAY DAF,1393710,22/06/2015,50494,27.07,0,Collar,Vehicle Management,380000
South Lakeland District Council,http://opendatacommunities.org/id/district-council/south-lakeland,30/06/2015,Business Support Community Services,Internal Trading Accounts,,TAYLOR ENGINEERING & FABRICATIONS LTD,4989359,24/06/2015,50495,255.2,0,Coils,Vehicle Management,380000
South Lakeland District Council,http://opendatacommunities.org/id/district-council/south-lakeland,30/06/2015,Business Support Community Services,Internal Trading Accounts,,TAYLOR ENGINEERING & FABRICATIONS LTD,4989359,22/06/2015,50496,603.91,0,Contacts,Vehicle Management,380000
South Lakeland District Council,http://opendatacommunities.org/id/district-council/south-lakeland,30/06/2015,Business Support Community Services,Internal Trading Accounts,,TAYLOR ENGINEERING & FABRICATIONS LTD,4989359,22/06/2015,50497,80.65,0,Coils,Vehicle Management,380000
South Lakeland District Council,http://opendatacommunities.org/id/district-council/south-lakeland,30/06/2015,Human Resources,Central Services,http://opendatacommunities.org/def/concept/finance/sercop/objective/102,NATIONWIDE FIRE TRAINING LTD,5034855,22/06/2015,50498,400,0,Fire Warden Training 3rd June 2015 am,Health & Safety,220000
South Lakeland District Council,http://opendatacommunities.org/id/district-council/south-lakeland,30/06/2015,Social Enterprise Admin,Cultural Environmental Regulatory & Planning Services,http://opendatacommunities.org/def/concept/finance/sercop/objective/104,GATES TRAVEL SERVICE,,22/06/2015,50499,33.8,0,Returntrain ticket to Manchester Oxford,Education,170000
